Workbook

Sheet SERIES
A2: LSL ACADATA E&W HPI NATIONAL AND REGIONAL FORMATTED DATA FROM 2005 | K2: 16th March 2020
A3: A TRUE MEASURE OF HOUSE PRICE INFLATION | K3: FEBRUARY 2020
A4: For data prior to 2005 please see | D4: APAT LGA
A6: The following table provides national smoothed, seasonally and mix adjusted current and back data for our LSL Acadata E&W HPI. The data are based upon the prices for all residential transactions in England and Wales, including cash purchases, reported by the Land Registry.
A7: At national level, only some 60,000 monthly transactions are occurring. For any given month, only c.35% of the transactions which took place in the month are available from LR. Rather than rely upon a small sample of c.21,000 potentially unrepresentative transactions, we base our initial results for each, most recent, month upon our Academic “index of indices” forecasting model, developed at the University of Cambridge and the Sir John Cass Business School. One month later, however, LR provides c.80% of the transactions, which we use to replace our initial forecast with an updated LSL Acadata E&W HPI result. Two months after any given month, LR provides c.90% of the transactions. We then regard our results as sufficiently updated to describe them as the final LSL Acadata E&W HPI index.
A8: The final LSL Acadata E&W HPI index comprises some 90% of the ultimate LR transactions, smoothed, seasonally and mix adjusted. Every further update from LR is used monthly until the ultimate LSL Acadata E&W HPI result based upon 100% of the LR data is reached.These results are the complete transaction data for England and Wales smoothed, seasonally and mix adjusted. Normally, these show no significant change from the final LSL Acadata E&W HPI result. Our Acadata House Prices series is calibrated to provide portfolio revaluations with standard errors.
A9: In this LSL Acadata Data Series, new weights have been adopted from April 2004 and prices on and after this date have been recalculated based on these new weights. The Index however remains based on the original weights and has not been re-cast. There is therefore discontinuity between the recalculated prices and the original Index.
A10: LSL Acadata E&W HPI is prepared from Land Registry data that we believe to be correct using a methodology designed to provide the best possible guide to house price movements in England and Wales, and applied with care. We do not guarantee the accuracy of the results and Acadata shall not be liable for any loss or damage, whatsoever, consequential upon any error, misdescription or other inadequacy in the data. Persons using the data do so entirely at their own risk. No part of the house price index may be reproduced in any form or for any purpose without the prior permission of Acadata. Please email information@Acadata.co.uk
L12: © Acadata Limited
M13: LSL Acadata E&W HPI clb/cms
M14: www.acadata.co.uk
B16: 2005-01-01 | C16: 2005-02-01 | D16: 2005-03-01 | E16: 2005-04-01 | F16: 2005-05-01 | G16: 2005-06-01 | H16: 2005-07-01 | I16: 2005-08-01 | J16: 2005-09-01 | K16: 2005-10-01 | L16: 2005-11-01 | M16: 2005-12-01
A17: HP | B17: 189021.1118 | C17: 190183.9524 | D17: 190005.8173 | E17: 190071.8753 | F17: 189485.5386 | G17: 190073.3661 | H17: 190099.846 | I17: 190409.4161 | J17: 191025.7048 | K17: 192128.2291 | L17: 193022.7495 | M17: 194589.4719
A18: Index | B18: 194.6273523 | C18: 195.7195186 | D18: 195.6551615 | E18: 195.7536815 | F18: 195.1941451 | G18: 195.7926608 | H18: 195.8667879 | I18: 196.1748084 | J18: 196.7364411 | K18: 197.9376874 | L18: 198.8839387 | M18: 200.6449221
A19: Monthly% | B19: 0.4326105935 | C19: =+C17/B17*100-100 -> 0.6151908989 | D19: =+D17/C17*100-100 -> -0.0936646516 | E19: 0.03476627991 | F19: -0.3084815307 | G19: 0.3102228596 | H19: 0.01393140307 | I19: 0.1628460835 | J19: 0.3236650324 | K19: 0.5771601784 | L19: 0.4655850684 | M19: 0.8116775895
A20: Annual% | B20: 12.5413267 | C20: 11.71642877 | D20: 10.16070918 | E20: 8.915189179 | F20: 7.209154725 | G20: 6.2481465 | H20: 5.041676407 | I20: 4.020839509 | J20: 3.440427376 | K20: 3.117129325 | L20: 3.118902098 | M20: 3.391248054
B22: 2006-01-01 | C22: 2006-02-01 | D22: 2006-03-01 | E22: 2006-04-01 | F22: 2006-05-01 | G22: 2006-06-01 | H22: 2006-07-01 | I22: 2006-08-01 | J22: 2006-09-01 | K22: 2006-10-01 | L22: 2006-11-01 | M22: 2006-12-01
A23: HP | B23: 195561.8888 | C23: 197180.2333 | D23: 198290.0177 | E23: 199521.2097 | F23: 200291.8777 | G23: 200874.2397 | H23: 201753.7724 | I23: 202945.4761 | J23: 204665.9093 | K23: 206669.8525 | L23: 208271.9925 | M23: 210431.7062
A24: Index | B24: 201.6606224 | C24: 203.3743721 | D24: 204.5109404 | E24: 205.8608886 | F24: 206.8261824 | G24: 207.510648 | H24: 208.3876235 | I24: 209.5672334 | J24: 211.3531339 | K24: 213.4431741 | L24: 215.1395739 | M24: 217.4753687
A25: Monthly% | B25: 0.4997274246 | C25: 0.8275357268 | D25: 0.5628274183 | E25: 0.6209046798 | F25: 0.3862586823 | G25: 0.2907566613 | H25: 0.4378523864 | I25: 0.5906723413 | J25: 0.8477317515 | K25: 0.9791289653 | L25: 0.7752170679 | M25: 1.036967914
A26: Annual% | B26: 3.460342075 | C26: 3.678691495 | D26: 4.359972002 | E26: 4.971453283 | F26: 5.702988833 | G26: 5.682476114 | H26: 6.130423901 | I26: 6.583739515 | J26: 7.140507359 | K26: 7.568707357 | L26: 7.900230972 | M26: 8.141362541
B28: 2007-01-01 | C28: 2007-02-01 | D28: 2007-03-01 | E28: 2007-04-01 | F28: 2007-05-01 | G28: 2007-06-01 | H28: 2007-07-01 | I28: 2007-08-01 | J28: 2007-09-01 | K28: 2007-10-01 | L28: 2007-11-01 | M28: 2007-12-01
A29: HP | B29: 212236.5725 | C29: 214691.9241 | D29: 215960.5978 | E29: 217668.2084 | F29: 218745.5258 | G29: 220436.7572 | H29: 221128.9796 | I29: 222903.2841 | J29: 224639.2699 | K29: 225909.9828 | L29: 225637.6498 | M29: 225795.9905
A30: Index | B30: 219.4963176 | C30: 222.2308868 | D30: 223.6998581 | E30: 225.5798747 | F30: 226.8685956 | G30: 228.8121942 | H30: 229.7011053 | I30: 231.6302491 | J30: 233.3844212 | K30: 234.663941 | L30: 234.3124214 | M30: 234.5554226
A31: Monthly% | B31: =+B29/M23*100-100 -> 0.8576969266 | C31: =+C29/B29*100-100 -> 1.156893735 | D31: =+D29/C29*100-100 -> 0.5909275099 | E31: =+E29/D29*100-100 -> 0.7907046985 | F31: 0.4949355907 | G31: 0.7731501773 | H31: 0.3140231203 | I31: 0.8023844127 | J31: 0.7788067621 | K31: 0.5656682012 | L31: -0.1205493623 | M31: 0.07017478938
A32: Annual% | B32: =+B29/B23*100-100 -> 8.526550747 | C32: =+C29/C23*100-100 -> 8.88105796 | D32: =+D29/D23*100-100 -> 8.9114824 | E32: 9.095272953 | F32: 9.213378132 | G32: 9.73868901 | H32: 9.603392794 | I32: 9.834073838 | J32: 9.75900708 | K32: 9.309596955 | L32: 8.337970495 | M32: 7.301316217
B34: 2008-01-01 | C34: 2008-02-01 | D34: 2008-03-01 | E34: 2008-04-01 | F34: 2008-05-01 | G34: 2008-06-01 | H34: 2008-07-01 | I34: 2008-08-01 | J34: 2008-09-01 | K34: 2008-10-01 | L34: 2008-11-01 | M34: 2008-12-01
A35: HP | B35: 226230.7438 | C35: 227150.6772 | D35: 226536.2366 | E35: 226088.7495 | F35: 224583.8935 | G35: 222870.9345 | H35: 219624.9043 | I35: 216697.2694 | J35: 213087.2917 | K35: 209193.3054 | L35: 204692.2739 | M35: 201599.2311
A36: Index | B36: 235.0860769 | C36: 236.0262065 | D36: 235.3635725 | E36: 234.9646059 | F36: 233.5998212 | G36: 231.7023164 | H36: 228.2902382 | I36: 225.1524361 | J36: 221.4854194 | K36: 217.4847387 | L36: 212.7583728 | M36: 209.3227504
A37: Monthly% | B37: =+B35/M29*100-100 -> 0.1925424947 | C37: =+C35/B35*100-100 -> 0.4066350221 | D37: =+D35/C35*100-100 -> -0.270499139 | E37: =+E35/D35*100-100 -> -0.1975344386 | F37: -0.6656040984 | G37: -0.7627256814 | H37: -1.456461857 | I37: -1.333015916 | J37: -1.665908265 | K37: -1.827413675 | L37: -2.151613545 | M37: -1.511069645
A38: Annual% | B38: =+B35/B29*100-100 -> 6.593666248 | C38: =+C35/C29*100-100 -> 5.803084174 | D38: =+D35/D29*100-100 -> 4.89702238 | E38: 3.868521357 | F38: 2.669022688 | G38: 1.104251982 | H38: -0.6801800817 | I38: -2.784173725 | J38: -5.142457168 | K38: -7.399707288 | L38: -9.282748661 | M38: -10.71620422
B40: 2009-01-01 | C40: 2009-02-01 | D40: 2009-03-01 | E40: 2009-04-01 | F40: 2009-05-01 | G40: 2009-06-01 | H40: 2009-07-01 | I40: 2009-08-01 | J40: 2009-09-01 | K40: 2009-10-01 | L40: 2009-11-01 | M40: 2009-12-01
A41: HP | B41: 200403.3201 | C41: 201116.8091 | D41: 199383.5821 | E41: 198315.6056 | F41: 196756.7153 | G41: 198255.4893 | H41: 199781.1595 | I41: 202057.6245 | J41: 204651.7121 | K41: 206995.7382 | L41: 207417.7794 | M41: 211553.2022
A42: Index | B42: 207.6515445 | C42: 206.212217 | D42: 204.5761324 | E42: 203.859941 | F42: 204.5718708 | G42: 206.246616 | H42: 207.9057217 | I42: 210.2088433 | J42: 213.0717725 | K42: 215.5477441 | L42: 216.1690895 | M42: 220.4351526
A43: Monthly% | B43: =+B41/M35*100-100 -> -0.5932120832 | C43: =+C41/B41*100-100 -> 0.3560265815 | D43: =+D41/C41*100-100 -> -0.861801167 | E43: =+E41/D41*100-100 -> -0.5356391516 | F43: -0.7860653652 | G43: 0.7617396748 | H43: 0.7695475506 | I43: 1.139479318 | J43: 1.28383552 | K43: 1.145373343 | L43: 0.2038888037 | M43: 1.99376487
A44: Annual% | B44: =+B41/B35*100-100 -> -11.41640755 | C44: =+C41/C35*100-100 -> -11.46105676 | D44: =+D41/D35*100-100 -> -11.98600932 | E44: -12.28417776 | F44: -12.39054936 | G44: -11.04470857 | H44: -9.03528898 | I44: -6.755804951 | J44: -3.958743627 | K44: -1.050495909 | L44: 1.331513624 | M44: 4.937504522
B46: 2010-01-01 | C46: 2010-02-01 | D46: 2010-03-01 | E46: 2010-04-01 | F46: 2010-05-01 | G46: 2010-06-01 | H46: 2010-07-01 | I46: 2010-08-01 | J46: 2010-09-01 | K46: 2010-10-01 | L46: 2010-11-01 | M46: 2010-12-01
A47: HP | B47: 214802.067 | C47: 218402.3139 | D47: 216980.1502 | E47: 216236.552 | F47: 216342.2447 | G47: 217108.9496 | H47: 217722.3969 | I47: 218424.8051 | J47: 218322.5657 | K47: 217469.0658 | L47: 215945.1346 | M47: 216018.5815
A48: Index | B48: 223.8820655 | C48: 227.5437122 | D48: 226.2066132 | E48: 225.3705733 | F48: 225.6158466 | G48: 226.4959378 | H48: 227.2420623 | I48: 228.0314574 | J48: 227.9339884 | K48: 227.0859979 | L48: 225.5648775 | M48: 225.5958923
A49: Monthly% | B49: =+B47/M41*100-100 -> 1.53571998 | C49: =+C47/B47*100-100 -> 1.676076455 | D49: =+D47/C47*100-100 -> -0.6511669332 | E49: =+E47/D47*100-100 -> -0.342703336 | F49: 0.04887826763 | G49: 0.3543944373 | H49: 0.2825527496 | I49: 0.3226164495 | J49: -0.04680761398 | K49: -0.3909352453 | L49: -0.7007577226 | M49: 0.03401185813
A50: Annual% | B50: =+B47/B41*100-100 -> 7.184884431 | C50: =+C47/C41*100-100 -> 8.594758835 | D50: =+D47/D41*100-100 -> 8.825484973 | E50: 9.036579013 | F50: 9.954185977 | G50: 9.509678824 | H50: 8.980445087 | I50: 8.100253894 | J50: 6.680058264 | K50: 5.059682717 | L50: 4.111197801 | M50: 2.110759503
B52: 2011-01-01 | C52: 2011-02-01 | D52: 2011-03-01 | E52: 2011-04-01 | F52: 2011-05-01 | G52: 2011-06-01 | H52: 2011-07-01 | I52: 2011-08-01 | J52: 2011-09-01 | K52: 2011-10-01 | L52: 2011-11-01 | M52: 2011-12-01
A53: HP | B53: 216546.5685 | C53: 218068.1533 | D53: 218196.6491 | E53: 216131.4021 | F53: 213449.4699 | G53: 211977.1235 | H53: 212947.0668 | I53: 214410.1896 | J53: 214360.7469 | K53: 214614.2182 | L53: 213368.4234 | M53: 213453.491
A54: Index | B54: 226.2144869 | C54: 228.0390153 | D54: 228.5029086 | E54: 226.1624434 | F54: 223.1024502 | G54: 221.4193565 | H54: 222.7809651 | I54: 224.5134764 | J54: 224.4719429 | K54: 224.8405596 | L54: 223.5791883 | M54: 223.8222335
A55: Monthly% | B55: =+B53/M47*100-100 -> 0.2444173867 | C55: =+C53/B53*100-100 -> 0.7026594008 | D55: =+D53/C53*100-100 -> 0.05892459384 | E55: =+E53/D53*100-100 -> -0.9465072081 | F55: -1.24088037 | G55: -0.689786882 | H55: 0.4575697976 | I55: 0.6870828519 | J55: -0.0230598377 | K55: 0.1182451876 | L55: -0.5804810179 | M55: 0.03986887541
A56: Annual% | B56: =+B53/B47*100-100 -> 0.8121437194 | C56: =+C53/C47*100-100 -> -0.1530022953 | D56: =+D53/D47*100-100 -> 0.5606498422 | E56: -0.04862726847 | F56: -1.337128934 | G56: -2.363710057 | H56: -2.19331137 | I56: -1.837985192 | J56: -1.814662979 | K56: -1.312760341 | L56: -1.193224928 | M56: -1.187439765
B58: 2012-01-01 | C58: 2012-02-01 | D58: 2012-03-01 | E58: 2012-04-01 | F58: 2012-05-01 | G58: 2012-06-01 | H58: 2012-07-01 | I58: 2012-08-01 | J58: 2012-09-01 | K58: 2012-10-01 | L58: 2012-11-01 | M58: 2012-12-01
A59: HP | B59: 214164.256 | C59: 214959.4207 | D59: 216756.9327 | E59: 217525.251 | F59: 219534.5876 | G59: 219513.9929 | H59: 219293.1817 | I59: 218806.7489 | J59: 219040.4711 | K59: 219439.9036 | L59: 219547.943 | M59: 220234.4932
A60: Index | B60: 224.583729 | C60: 225.4728947 | D60: 227.4658434 | E60: 228.5751607 | F60: 231.1096648 | G60: 231.2511358 | H60: 231.2817902 | I60: 230.6121911 | J60: 231.1264234 | K60: 231.5027243 | L60: 231.7470449 | M60: 232.3455764
A61: Monthly% | B61: =+B59/M53*100-100 -> 0.3329835441 | C61: =+C59/B59*100-100 -> 0.3712873342 | D61: =+D59/C59*100-100 -> 0.8362098871 | E61: =+E59/D59*100-100 -> 0.3544607856 | F61: 0.9237256772 | G61: -0.009381066628 | H61: -0.1005909281 | I61: -0.2218185138 | J61: 0.1068167496 | K61: 0.1823555591 | L61: 0.04923415214 | M61: =+M59/L59*100-100 -> 0.3127108344
A62: Annual% | B62: =+B59/B53*100-100 -> -1.100138657 | C62: =+C59/C53*100-100 -> -1.425578438 | D62: =+D59/D53*100-100 -> -0.6598251733 | E62: 0.6449081007 | F62: 2.850846929 | G62: 3.555510752 | H62: 2.980137296 | I62: 2.050536549 | J62: 2.183106874 | K62: 2.248539473 | L62: 2.896173429 | M62: =+M59/M53*100-100 -> 3.17680548
B64: 2013-01-01 | C64: 2013-02-01 | D64: 2013-03-01 | E64: 2013-04-01 | F64: 2013-05-01 | G64: 2013-06-01 | H64: 2013-07-01 | I64: 2013-08-01 | J64: 2013-09-01 | K64: 2013-10-01 | L64: 2013-11-01 | M64: 2013-12-01
A65: HP | B65: 220907.8648 | C65: 222701.6353 | D65: 223469.6869 | E65: 224076.3029 | F65: 223921.6247 | G65: 224267.1244 | H65: 225135.9994 | I65: 226546.9069 | J65: 227936.9057 | K65: 229322.8434 | L65: 230315.5597 | M65: 232460.9704
A66: Index | B66: 233.2596034 | C66: 235.1989609 | D66: 236.286859 | E66: 236.8967075 | F66: 236.8215354 | G66: 237.0157063 | H66: 237.8880934 | I66: 239.4931005 | J66: 240.7860848 | K66: 242.1151601 | L66: 242.8982552 | M66: 244.0571436
A67: Monthly% | B67: =+B65/M59*100-100 -> 0.3057521191 | C67: =+C65/B65*100-100 -> 0.8119993936 | D67: =+D65/C65*100-100 -> 0.3448791574 | E67: =+E65/D65*100-100 -> 0.2714533876 | F67: -0.06902922819 | G67: 0.1542948826 | H67: 0.387428617 | I67: 0.6266912344 | J67: 0.6135589178 | K67: 0.6080356915 | L67: 0.4328902526 | M67: 0.9315092454
A68: Annual% | B68: =+B65/B59*100-100 -> 3.148802211 | C68: =+C65/C59*100-100 -> 3.601709833 | D68: =+D65/D59*100-100 -> 3.096904032 | E68: 3.011628244 | F68: 1.998335299 | G68: 2.165297705 | H68: 2.664386364 | I68: 3.537440286 | J68: 4.06154832 | K68: 4.503711348 | L68: 4.904448912 | M68: 5.55157235
B70: 2014-01-01 | C70: 2014-02-01 | D70: 2014-03-01 | E70: 2014-04-01 | F70: 2014-05-01 | G70: 2014-06-01 | H70: 2014-07-01 | I70: 2014-08-01 | J70: 2014-09-01 | K70: 2014-10-01 | L70: 2014-11-01 | M70: 2014-12-01
A71: HP | B71: 235647.9351 | C71: 237927.8713 | D71: 240195.4803 | E71: 241469.4104 | F71: 243828.7891 | G71: 245878.9682 | H71: 247539.0806 | I71: 249418.5815 | J71: 250747.6684 | K71: 251554.8849 | L71: 251534.5297 | M71: 251925.8607
A72: Index | B72: 247.8155064 | C72: 250.1686227 | D72: 252.7688035 | E72: 254.3262087 | F72: 257.2464787 | G72: 260.069332 | H72: 261.52957 | I72: 263.4723034 | J72: 264.9046899 | K72: 266.0700496 | L72: 266.3469179 | M72: 265.6588618
A73: Monthly% | B73: =B71/M65*100-100 -> 1.370967642 | C73: =+C71/B71*100-100 -> 0.9675179948 | D73: 0.9530657296 | E73: 0.5303722234 | F73: 0.9770921963 | G73: 0.8408273126 | H73: 0.6751746107 | I73: 0.7592744203 | J73: 0.5328740658 | K73: 0.3219238406 | L73: -0.008091758934 | M73: 0.155577435
A74: Annual% | B74: =B71/B65*100-100 -> 6.672496833 | C74: 6.837056187 | D74: 7.484591602 | E74: 7.762136052 | F74: 8.890237564 | G74: 9.636652678 | H74: =H71/H65*100-100 -> 9.95091023 | I74: 10.09577877 | J74: 10.00748986 | K74: 9.694647587 | L74: 9.212998933 | M74: 8.373401462
B76: 2015-01-01 | C76: 2015-02-01 | D76: 2015-03-01 | E76: 2015-04-01 | F76: 2015-05-01 | G76: 2015-06-01 | H76: 2015-07-01 | I76: 2015-08-01 | J76: 2015-09-01 | K76: 2015-10-01 | L76: 2015-11-01 | M76: 2015-12-01
A77: HP | B77: 253431.8093 | C77: 254648.0941 | D77: 255340.0434 | E77: 255876.6457 | F77: 257025.9955 | G77: 258406.6215 | H77: 259602.6353 | I77: 262060.0662 | J77: 264071.3312 | K77: 266782.3339 | L77: 267291.8613 | M77: 269274.7592
A78: Index | B78: 266.9283519 | C78: 267.8797863 | D78: 268.3067829 | E78: 269.154968 | F78: 270.3396122 | G78: 272.1630768 | H78: 273.2768059 | I78: 276.2881506 | J78: 278.1160951 | K78: 280.4862979 | L78: 280.2939328 | M78: 281.1992468
A79: Monthly% | B79: =B77/M71*100-100 -> 0.5977745132 | C79: =+C77/B77*100-100 -> 0.4799258773 | D79: 0.2717276635 | E79: 0.2101520139 | F79: 0.4491812272 | G79: 0.5371542165 | H79: 0.4628417579 | I79: 0.9466124603 | J79: 0.7674824556 | K79: 1.026617597 | L79: 0.1909899257 | M79: 0.7418474413
A80: Annual% | B80: =B77/B71*100-100 -> 7.546798231 | C80: 7.027433467 | D80: 6.305099143 | E80: 5.966484649 | F80: 5.412489001 | G80: 5.095048756 | H80: =H77/H71*100-100 -> 4.873393998 | I80: 5.06838127 | J80: 5.313573939 | K80: 6.053330666 | L80: 6.264480509 | M80: 6.886509549
B82: 2016-01-01 | C82: 2016-02-01 | D82: 2016-03-01 | E82: 2016-04-01 | F82: 2016-05-01 | G82: 2016-06-01 | H82: 2016-07-01 | I82: 2016-08-01 | J82: 2016-09-01 | K82: 2016-10-01 | L82: 2016-11-01 | M82: 2016-12-01
A83: HP | B83: 271443.4 | C83: 277004.3694 | D83: 277389.4646 | E83: 277297.0906 | F83: 275418.6201 | G83: 276421.502 | H83: 276889.3191 | I83: 277720.279 | J83: 279478.8361 | K83: 282129.0381 | L83: 283867.7888 | M83: 285994.3728
A84: Index | B84: 283.6070224 | C84: 289.6191685 | D84: 290.0568499 | E84: 289.886402 | F84: 287.6805537 | G84: 288.4834382 | H84: 288.660636 | I84: 289.259014 | J84: 289.7113087 | K84: 290.7009058 | L84: 290.463393 | M84: 291.3745783
A85: Monthly% | B85: =B83/M77*100-100 -> 0.8053635777 | C85: =+C83/B83*100-100 -> 2.048666278 | D85: 0.1390213447 | E85: -0.0333011822 | F85: -0.6774216413 | G85: 0.3641300212 | H85: 0.1692404756 | I85: 0.300105442 | J85: 0.6332116382 | K85: 0.9482657046 | L85: 0.6162962557 | M85: 0.7491459507
A86: Annual% | B86: =B83/B77*100-100 -> 7.107075766 | C86: 8.779282383 | D86: 8.635316597 | E86: 8.371395083 | F86: 7.155939435 | G86: 6.971524327 | H86: =H83/H77*100-100 -> 6.658901509 | I86: 5.97581045 | J86: 5.834599631 | K86: 5.752518875 | L86: 6.20143365 | M86: 6.209127694
B88: 2017-01-01 | C88: 2017-02-01 | D88: 2017-03-01 | E88: 2017-04-01 | F88: 2017-05-01 | G88: 2017-06-01 | H88: 2017-07-01 | I88: 2017-08-01 | J88: 2017-09-01 | K88: 2017-10-01 | L88: 2017-11-01 | M88: 2017-12-01
A89: HP | B89: 288305.1739 | C89: 290047.7858 | D89: 291500.7549 | E89: 291264.1633 | F89: 291153.3861 | G89: 290026.5354 | H89: 289885.1813 | I89: 290351.5275 | J89: 292184.806 | K89: 293542.5387 | L89: 294658.8439 | M89: 295560.9622
A90: Index | B90: 293.717394 | C90: 295.4561045 | D90: 297.0779214 | E90: 296.9120858 | F90: 296.5527202 | G90: 295.0778387 | H90: 294.6765186 | I90: 294.6694209 | J90: 295.3046342 | K90: 294.3450265 | L90: 293.1622923 | M90: 292.0688766
A91: Monthly% | B91: =B89/M83*100-100 -> 0.8079883097 | C91: =+C89/B89*100-100 -> 0.6044331157 | D91: 0.5009412774 | E91: -0.08116328508 | F91: -0.03803324649 | G91: -0.387029933 | H91: -0.04873833344 | I91: 0.1608727431 | J91: 0.6313996406 | K91: 0.4646828447 | L91: 0.3802873859 | M91: 0.3061568495
A92: Annual% | B92: =B89/B83*100-100 -> 6.211893127 | C92: 4.708740329 | D92: =D89/D83*100-100 -> 5.087176025 | E92: 5.036862338 | F92: =F89/F83*100-100 -> 5.713036395 | G92: 4.921843371 | H92: =H89/H83*100-100 -> 4.693522397 | I92: 4.548190928 | J92: =J89/J83*100-100 -> 4.546308438 | K92: 4.045489504 | L92: =L89/L83*100-100 -> 3.801437006 | M92: 3.345027129
B94: 2018-01-01 | C94: 2018-02-01 | D94: 2018-03-01 | E94: 2018-04-01 | F94: 2018-05-01 | G94: 2018-06-01 | H94: 2018-07-01 | I94: 2018-08-01 | J94: 2018-09-01 | K94: 2018-10-01 | L94: 2018-11-01 | M94: 2018-12-01
A95: HP | B95: 297174.388 | C95: 298313.4397 | D95: 297460.7034 | E95: 296660.3491 | F95: 295704.6959 | G95: 296136.9271 | H95: 295042.2643 | I95: 295883.6685 | J95: 296762.15 | K95: 298734.4366 | L95: 297922.6039 | M95: 298472.3919
A96: Index | B96: 294.4487863 | C96: 295.8459106 | D96: 294.9197765 | E96: 292.9244642 | F96: 291.4716024 | G96: 291.0018409 | H96: 290.2357334 | I96: 290.7584248 | J96: 291.0582891 | K96: 292.8236948 | L96: 292.6495486 | M96: 292.3665621
A97: Monthly% | B97: =B95/M89*100-100 -> 0.5458859871 | C97: =+C95/B95*100-100 -> 0.3832940169 | D97: -0.285852442 | E97: -0.2690621909 | F97: -0.3221371681 | G97: 0.1461698928 | H97: -0.3696475231 | I97: 0.2851809074 | J97: 0.2969009804 | K97: 0.6646018071 | L97: -0.271757328 | M97: 0.1845405246
A98: Annual% | B98: =B95/B89*100-100 -> 3.076328467 | C98: 2.849755883 | D98: =D95/D89*100-100 -> 2.044573952 | E98: 1.852677564 | F98: =F95/F89*100-100 -> 1.563200016 | G98: 2.106838866 | H98: =H95/H89*100-100 -> 1.779008858 | I98: 1.905325267 | J98: =J95/J89*100-100 -> 1.566592079 | K98: 1.768703778 | L98: =L95/L89*100-100 -> 1.107640266 | M98: 0.9850521813
B100: 2019-01-01 | C100: 2019-02-01 | D100: 2019-03-01 | E100: 2019-04-01 | F100: 2019-05-01 | G100: 2019-06-01 | H100: 2019-07-01 | I100: 2019-08-01 | J100: 2019-09-01 | K100: 2019-10-01 | L100: 2019-11-01 | M100: 2019-12-01
A101: HP | B101: 298998.1901 | C101: 300254.5262 | D101: 299193.8904 | E101: 298148.0428 | F101: 297703.1753 | G101: 297319.4975 | H101: 296464.0417 | I101: 296366.0978 | J101: 297989.4857 | K101: 300120.5621 | L101: 300889.7874 | M101: 301113.2047
A102: Index | B102: 292.518554 | C102: 293.900022 | D102: 292.8707924 | E102: 291.8411483 | F102: 291.5125475 | G102: 290.9975946 | H102: 290.1483255 | I102: 289.9899267 | J102: 291.5733143 | K102: 293.5709702 | L102: 294.3482591 | M102: 294.5510737
A103: Monthly% | B103: =B101/M95*100-100 -> 0.1761631045 | C103: =+C101/B101*100-100 -> 0.4201818479 | D103: -0.3532455579 | E103: -0.3495551354 | F103: -0.1492102699 | G103: -0.1288793305 | H103: -0.287722743 | I103: -0.03303735241 | J103: 0.5477643887 | K103: 0.7151515241 | L103: 0.2563054378 | M103: 0.07425221645
A104: Annual% | B104: =B101/B95*100-100 -> 0.6137144162 | C104: 0.6506869197 | D104: =D101/D95*100-100 -> 0.5826608314 | E104: 0.5014804603 | F104: =F101/F95*100-100 -> 0.6758362177 | G104: 0.3993322776 | H104: =H101/H95*100-100 -> 0.4818893801 | I104: 0.1630469381 | J104: =J101/J95*100-100 -> 0.4135755497 | K104: 0.4639992114 | L104: =L101/L95*100-100 -> 0.9959578208 | M104: 0.8847762626
B106: 2020-01-01 | C106: 2020-02-01 | D106: 2020-03-01 | E106: 2020-04-01 | F106: 2020-05-01 | G106: 2020-06-01 | H106: 2020-07-01 | I106: 2020-08-01 | J106: 2020-09-01 | K106: 2020-10-01 | L106: 2020-11-01 | M106: 2020-12-01
A107: HP | B107: 301688.2211 | C107: 303189.4453
A108: Index | B108: =M102*B107/M101 -> 295.1135588 | C108: =+B108/B107*C107 -> 296.5820669
A109: Monthly% | B109: =B107/M101*100-100 -> 0.1909635001 | C109: =+C107/B107*100-100 -> 0.4976078336
A110: Annual% | B110: =B107/B101*100-100 -> 0.8996813514 | C110: 0.9774770409

Sheet SERIES CHARTS
B2: LSL ACADATA E&W HPI NATIONAL AND REGIONAL FORMATTED DATA FROM 2005 | M2: =SERIES!$K$2 -> 16th March 2020
B3: A TRUE MEASURE OF HOUSE PRICE INFLATION | M3: =SERIES!$K$3 -> FEBRUARY 2020
B4: For data prior to 2005 please see | E4: APAT LGA
O5: © Acadata Limited
O6: LSL Acadata E&W HPI clb/cms
O7: www.acadata.co.uk

Sheet DATA
B2: LSL ACADATA E&W HPI NATIONAL AND REGIONAL FORMATTED DATA FROM 2005
B3: A TRUE MEASURE OF HOUSE PRICE INFLATION | J3: =SERIES!$K$2 -> 16th March 2020
B4: For data prior to 2005 please see | E4: APAT LGA | H4: =SERIES!$K$3 -> FEBRUARY 2020
B5: In this LSL Acadata Data Series, new weights have been adopted from April 2004 and prices on and after this date have been recalculated based on these new weights. The Index however remains based on the original weights and has not been re-cast. There is therefore discontinuity between the recalculated prices and the original Index.
H6: LSL Acadata E&W HPI clb/cms
D9: Month | E9: Average House Price | F9: Index | G9: Monthly% | H9: Annual%
D10: 2005-01-01 | E10: 189021.1118 | F10: 194.6273523 | G10: 0.4326105935 | H10: 12.5413267
D11: 2005-02-01 | E11: 190183.9524 | F11: 195.7195186 | G11: 0.6151908989 | H11: 11.71642877
D12: 2005-03-01 | E12: 190005.8173 | F12: 195.6551615 | G12: -0.0936646516 | H12: 10.16070918
D13: 2005-04-01 | E13: 190071.8753 | F13: 195.7536815 | G13: 0.03476627991 | H13: 8.915189179
D14: 2005-05-01 | E14: 189485.5386 | F14: 195.1941451 | G14: -0.3084815307 | H14: 7.209154725
D15: 2005-06-01 | E15: 190073.3661 | F15: 195.7926608 | G15: 0.3102228596 | H15: 6.2481465
D16: 2005-07-01 | E16: 190099.846 | F16: 195.8667879 | G16: 0.01393140307 | H16: 5.041676407
D17: 2005-08-01 | E17: 190409.4161 | F17: 196.1748084 | G17: 0.1628460835 | H17: 4.020839509
D18: 2005-09-01 | E18: 191025.7048 | F18: 196.7364411 | G18: 0.3236650324 | H18: 3.440427376
D19: 2005-10-01 | E19: 192128.2291 | F19: 197.9376874 | G19: 0.5771601784 | H19: 3.117129325
D20: 2005-11-01 | E20: 193022.7495 | F20: 198.8839387 | G20: 0.4655850684 | H20: 3.118902098
D21: 2005-12-01 | E21: 194589.4719 | F21: 200.6449221 | G21: 0.8116775895 | H21: 3.391248054
D22: 2006-01-01 | E22: 195561.8888 | F22: 201.6606224 | G22: =+E22/E21*100-100 -> 0.4997274246 | H22: =+E22/E10*100-100 -> 3.460342075
D23: 2006-02-01 | E23: 197180.2333 | F23: 203.3743721 | G23: =+E23/E22*100-100 -> 0.8275357268 | H23: =+E23/E11*100-100 -> 3.678691495
D24: 2006-03-01 | E24: 198290.0177 | F24: 204.5109404 | G24: =+E24/E23*100-100 -> 0.5628274183 | H24: =+E24/E12*100-100 -> 4.359972002
D25: 2006-04-01 | E25: 199521.2097 | F25: 205.8608886 | G25: 0.6209046798 | H25: 4.971453283
D26: 2006-05-01 | E26: 200291.8777 | F26: 206.8261824 | G26: 0.3862586823 | H26: 5.702988833
D27: 2006-06-01 | E27: 200874.2397 | F27: 207.510648 | G27: 0.2907566613 | H27: 5.682476114
D28: 2006-07-01 | E28: 201753.7724 | F28: 208.3876235 | G28: 0.4378523864 | H28: 6.130423901
D29: 2006-08-01 | E29: 202945.4761 | F29: 209.5672334 | G29: 0.5906723413 | H29: 6.583739515
D30: 2006-09-01 | E30: 204665.9093 | F30: 211.3531339 | G30: 0.8477317515 | H30: 7.140507359
D31: 2006-10-01 | E31: 206669.8525 | F31: 213.4431741 | G31: 0.9791289653 | H31: 7.568707357
D32: 2006-11-01 | E32: 208271.9925 | F32: 215.1395739 | G32: 0.7752170679 | H32: 7.900230972
D33: 2006-12-01 | E33: 210431.7062 | F33: 217.4753687 | G33: 1.036967914 | H33: 8.141362541
D34: 2007-01-01 | E34: 212236.5725 | F34: 219.4963176 | G34: 0.8576969266 | H34: 8.526550747
D35: 2007-02-01 | E35: 214691.9241 | F35: 222.2308868 | G35: 1.156893735 | H35: 8.88105796
D36: 2007-03-01 | E36: 215960.5978 | F36: 223.6998581 | G36: 0.5909275099 | H36: 8.9114824
D37: 2007-04-01 | E37: 217668.2084 | F37: 225.5798747 | G37: 0.7907046985 | H37: 9.095272953
D38: 2007-05-01 | E38: 218745.5258 | F38: 226.8685956 | G38: 0.4949355907 | H38: 9.213378132
D39: 2007-06-01 | E39: 220436.7572 | F39: 228.8121942 | G39: 0.7731501773 | H39: 9.73868901
D40: 2007-07-01 | E40: 221128.9796 | F40: 229.7011053 | G40: 0.3140231203 | H40: 9.603392794
D41: 2007-08-01 | E41: 222903.2841 | F41: 231.6302491 | G41: 0.8023844127 | H41: 9.834073838
D42: 2007-09-01 | E42: 224639.2699 | F42: 233.3844212 | G42: 0.7788067621 | H42: 9.75900708
D43: 2007-10-01 | E43: 225909.9828 | F43: 234.663941 | G43: 0.5656682012 | H43: 9.309596955
D44: 2007-11-01 | E44: 225637.6498 | F44: 234.3124214 | G44: -0.1205493623 | H44: 8.337970495
D45: 2007-12-01 | E45: 225795.9905 | F45: 234.5554226 | G45: 0.07017478938 | H45: 7.301316217
D46: 2008-01-01 | E46: 226230.7438 | F46: 235.0860769 | G46: 0.1925424947 | H46: 6.593666248
D47: 2008-02-01 | E47: 227150.6772 | F47: 236.0262065 | G47: 0.4066350221 | H47: 5.803084174
D48: 2008-03-01 | E48: 226536.2366 | F48: 235.3635725 | G48: -0.270499139 | H48: 4.89702238
D49: 2008-04-01 | E49: 226088.7495 | F49: 234.9646059 | G49: -0.1975344386 | H49: 3.868521357
D50: 2008-05-01 | E50: 224583.8935 | F50: 233.5998212 | G50: -0.6656040984 | H50: 2.669022688
D51: 2008-06-01 | E51: 222870.9345 | F51: 231.7023164 | G51: -0.7627256814 | H51: 1.104251982
D52: 2008-07-01 | E52: 219624.9043 | F52: 228.2902382 | G52: -1.456461857 | H52: -0.6801800817
D53: 2008-08-01 | E53: 216697.2694 | F53: 225.1524361 | G53: -1.333015916 | H53: -2.784173725
D54: 2008-09-01 | E54: 213087.2917 | F54: 221.4854194 | G54: -1.665908265 | H54: -5.142457168
D55: 2008-10-01 | E55: 209193.3054 | F55: 217.4847387 | G55: -1.827413675 | H55: -7.399707288
D56: 2008-11-01 | E56: 204692.2739 | F56: 212.7583728 | G56: -2.151613545 | H56: -9.282748661
D57: 2008-12-01 | E57: 201599.2311 | F57: 209.3227504 | G57: -1.511069645 | H57: -10.71620422
D58: 2009-01-01 | E58: 200403.3201 | F58: 207.6515445 | G58: -0.5932120832 | H58: -11.41640755
D59: 2009-02-01 | E59: 201116.8091 | F59: 206.212217 | G59: 0.3560265815 | H59: -11.46105676
D60: 2009-03-01 | E60: 199383.5821 | F60: 204.5761324 | G60: -0.861801167 | H60: -11.98600932
D61: 2009-04-01 | E61: 198315.6056 | F61: 203.859941 | G61: -0.5356391516 | H61: -12.28417776
D62: 2009-05-01 | E62: 196756.7153 | F62: 204.5718708 | G62: -0.7860653652 | H62: -12.39054936
D63: 2009-06-01 | E63: 198255.4893 | F63: 206.246616 | G63: 0.7617396748 | H63: -11.04470857
D64: 2009-07-01 | E64: 199781.1595 | F64: 207.9057217 | G64: 0.7695475506 | H64: -9.03528898
D65: 2009-08-01 | E65: 202057.6245 | F65: 210.2088433 | G65: 1.139479318 | H65: -6.755804951
D66: 2009-09-01 | E66: 204651.7121 | F66: 213.0717725 | G66: 1.28383552 | H66: -3.958743627
D67: 2009-10-01 | E67: 206995.7382 | F67: 215.5477441 | G67: 1.145373343 | H67: -1.050495909
D68: 2009-11-01 | E68: 207417.7794 | F68: 216.1690895 | G68: 0.2038888037 | H68: 1.331513624
D69: 2009-12-01 | E69: 211553.2022 | F69: 220.4351526 | G69: 1.99376487 | H69: 4.937504522
D70: 2010-01-01 | E70: 214802.067 | F70: 223.8820655 | G70: 1.53571998 | H70: 7.184884431
D71: 2010-02-01 | E71: 218402.3139 | F71: 227.5437122 | G71: 1.676076455 | H71: 8.594758835
D72: 2010-03-01 | E72: 216980.1502 | F72: 226.2066132 | G72: -0.6511669332 | H72: 8.825484973
D73: 2010-04-01 | E73: 216236.552 | F73: 225.3705733 | G73: -0.342703336 | H73: 9.036579013
D74: 2010-05-01 | E74: 216342.2447 | F74: 225.6158466 | G74: 0.04887826763 | H74: 9.954185977
D75: 2010-06-01 | E75: 217108.9496 | F75: 226.4959378 | G75: 0.3543944373 | H75: 9.509678824
D76: 2010-07-01 | E76: 217722.3969 | F76: 227.2420623 | G76: 0.2825527496 | H76: 8.980445087
D77: 2010-08-01 | E77: 218424.8051 | F77: 228.0314574 | G77: 0.3226164495 | H77: 8.100253894
D78: 2010-09-01 | E78: 218322.5657 | F78: 227.9339884 | G78: -0.04680761398 | H78: 6.680058264
D79: 2010-10-01 | E79: 217469.0658 | F79: 227.0859979 | G79: -0.3909352453 | H79: 5.059682717
D80: 2010-11-01 | E80: 215945.1346 | F80: 225.5648775 | G80: -0.7007577226 | H80: 4.111197801
D81: 2010-12-01 | E81: 216018.5815 | F81: 225.5958923 | G81: 0.03401185813 | H81: 2.110759503
D82: 2011-01-01 | E82: 216546.5685 | F82: 226.2144869 | G82: 0.2444173867 | H82: 0.8121437194
D83: 2011-02-01 | E83: 218068.1533 | F83: 228.0390153 | G83: 0.7026594008 | H83: -0.1530022953
D84: 2011-03-01 | E84: 218196.6491 | F84: 228.5029086 | G84: 0.05892459384 | H84: 0.5606498422
D85: 2011-04-01 | E85: 216131.4021 | F85: 226.1624434 | G85: -0.9465072081 | H85: -0.04862726847
D86: 2011-05-01 | E86: 213449.4699 | F86: 223.1024502 | G86: -1.24088037 | H86: -1.337128934
D87: 2011-06-01 | E87: 211977.1235 | F87: 221.4193565 | G87: -0.689786882 | H87: -2.363710057
D88: 2011-07-01 | E88: 212947.0668 | F88: 222.7809651 | G88: =+E88/E87*100-100 -> 0.4575697976 | H88: =+E88/E76*100-100 -> -2.19331137
D89: 2011-08-01 | E89: 214410.1896 | F89: 224.5134764 | G89: 0.6870828519 | H89: -1.837985192
D90: 2011-09-01 | E90: 214360.7469 | F90: 224.4719429 | G90: -0.0230598377 | H90: -1.814662979
D91: 2011-10-01 | E91: 214614.2182 | F91: 224.8405596 | G91: 0.1182451876 | H91: -1.312760341
D92: 2011-11-01 | E92: 213368.4234 | F92: 223.5791883 | G92: -0.5804810179 | H92: -1.193224928
D93: 2011-12-01 | E93: 213453.491 | F93: 223.8222335 | G93: 0.03986887541 | H93: -1.187439765
D94: 2012-01-01 | E94: 214164.256 | F94: 224.583729 | G94: 0.3329835441 | H94: -1.100138657
D95: 2012-02-01 | E95: 214959.4207 | F95: 225.4728947 | G95: 0.3712873342 | H95: -1.425578438
D96: 2012-03-01 | E96: 216756.9327 | F96: 227.4658434 | G96: 0.8362098871 | H96: -0.6598251733
D97: 2012-04-01 | E97: 217525.251 | F97: 228.5751607 | G97: 0.3544607856 | H97: 0.6449081007
D98: 2012-05-01 | E98: 219534.5876 | F98: 231.1096648 | G98: 0.9237256772 | H98: 2.850846929
D99: 2012-06-01 | E99: 219513.9929 | F99: 231.2511358 | G99: -0.009381066628 | H99: 3.555510752
D100: 2012-07-01 | E100: 219293.1817 | F100: 231.2817902 | G100: -0.1005909281 | H100: 2.980137296
D101: 2012-08-01 | E101: 218806.7489 | F101: 230.6121911 | G101: -0.2218185138 | H101: 2.050536549
D102: 2012-09-01 | E102: 219040.4711 | F102: 231.1264234 | G102: 0.1068167496 | H102: 2.183106874
D103: 2012-10-01 | E103: 219439.9036 | F103: 231.5027243 | G103: 0.1823555591 | H103: 2.248539473
D104: 2012-11-01 | E104: 219547.943 | F104: 231.7470449 | G104: 0.04923415214 | H104: 2.896173429
D105: 2012-12-01 | E105: 220234.4932 | F105: 232.3455764 | G105: 0.3127108344 | H105: 3.17680548
D106: 2013-01-01 | E106: 220907.8648 | F106: 233.2596034 | G106: 0.3057521191 | H106: 3.148802211
D107: 2013-02-01 | E107: 222701.6353 | F107: 235.1989609 | G107: 0.8119993936 | H107: 3.601709833
D108: 2013-03-01 | E108: 223469.6869 | F108: 236.286859 | G108: 0.3448791574 | H108: 3.096904032
D109: 2013-04-01 | E109: 224076.3029 | F109: 236.8967075 | G109: 0.2714533876 | H109: 3.011628244
D110: 2013-05-01 | E110: 223921.6247 | F110: 236.8215354 | G110: -0.06902922819 | H110: 1.998335299
D111: 2013-06-01 | E111: 224267.1244 | F111: 237.0157063 | G111: 0.1542948826 | H111: 2.165297705
D112: 2013-07-01 | E112: 225135.9994 | F112: 237.8880934 | G112: 0.387428617 | H112: 2.664386364
D113: 2013-08-01 | E113: 226546.9069 | F113: 239.4931005 | G113: 0.6266912344 | H113: 3.537440286
D114: 2013-09-01 | E114: 227936.9057 | F114: 240.7860848 | G114: 0.6135589178 | H114: 4.06154832
D115: 2013-10-01 | E115: 229322.8434 | F115: 242.1151601 | G115: 0.6080356915 | H115: 4.503711348
D116: 2013-11-01 | E116: 230315.5597 | F116: 242.8982552 | G116: 0.4328902526 | H116: 4.904448912
D117: 2013-12-01 | E117: 232460.9704 | F117: 244.0571436 | G117: 0.9315092454 | H117: 5.55157235
D118: 2014-01-01 | E118: 235647.9351 | F118: 247.8155064 | G118: 1.370967642 | H118: 6.672496833
D119: 2014-02-01 | E119: 237927.8713 | F119: 250.1686227 | G119: 0.9675179948 | H119: 6.837056187
D120: 2014-03-01 | E120: 240195.4803 | F120: 252.7688035 | G120: 0.9530657296 | H120: 7.484591602
D121: 2014-04-01 | E121: 241469.4104 | F121: 254.3262087 | G121: 0.5303722234 | H121: 7.762136052
D122: 2014-05-01 | E122: 243828.7891 | F122: 257.2464787 | G122: 0.9770921963 | H122: 8.890237564
D123: 2014-06-01 | E123: 245878.9682 | F123: 260.069332 | G123: 0.8408273126 | H123: 9.636652678
D124: 2014-07-01 | E124: 247539.0806 | F124: 261.52957 | G124: 0.6751746107 | H124: 9.95091023
D125: 2014-08-01 | E125: 249418.5815 | F125: 263.4723034 | G125: 0.7592744203 | H125: 10.09577877
D126: 2014-09-01 | E126: 250747.6684 | F126: 264.9046899 | G126: 0.5328740658 | H126: 10.00748986
D127: 2014-10-01 | E127: 251554.8849 | F127: 266.0700496 | G127: 0.3219238406 | H127: 9.694647587
D128: 2014-11-01 | E128: 251534.5297 | F128: 266.3469179 | G128: -0.008091758934 | H128: 9.212998933
D129: 2014-12-01 | E129: 251925.8607 | F129: 265.6588618 | G129: 0.155577435 | H129: 8.373401462
D130: 2015-01-01 | E130: 253431.8093 | F130: 266.9283519 | G130: 0.5977745132 | H130: 7.546798231
D131: 2015-02-01 | E131: 254648.0941 | F131: 267.8797863 | G131: 0.4799258773 | H131: 7.027433467
D132: 2015-03-01 | E132: 255340.0434 | F132: 268.3067829 | G132: 0.2717276635 | H132: 6.305099143
D133: 2015-04-01 | E133: 255876.6457 | F133: 269.154968 | G133: 0.2101520139 | H133: 5.966484649
D134: 2015-05-01 | E134: 257025.9955 | F134: 270.3396122 | G134: 0.4491812272 | H134: 5.412489001
D135: 2015-06-01 | E135: 258406.6215 | F135: 272.1630768 | G135: 0.5371542165 | H135: 5.095048756
D136: 2015-07-01 | E136: 259602.6353 | F136: 273.2768059 | G136: 0.4628417579 | H136: 4.873393998
D137: 2015-08-01 | E137: 262060.0662 | F137: 276.2881506 | G137: 0.9466124603 | H137: 5.06838127
D138: 2015-09-01 | E138: 264071.3312 | F138: 278.1160951 | G138: 0.7674824556 | H138: 5.313573939
D139: 2015-10-01 | E139: 266782.3339 | F139: 280.4862979 | G139: 1.026617597 | H139: 6.053330666
D140: 2015-11-01 | E140: 267291.8613 | F140: 280.2939328 | G140: 0.1909899257 | H140: 6.264480509
D141: 2015-12-01 | E141: 269274.7592 | F141: 281.1992468 | G141: 0.7418474413 | H141: 6.886509549
D142: 2016-01-01 | E142: 271443.4 | F142: 283.6070224 | G142: 0.8053635777 | H142: 7.107075766
D143: 2016-02-01 | E143: 277004.3694 | F143: 289.6191685 | G143: 2.048666278 | H143: 8.779282383
D144: 2016-03-01 | E144: 277389.4646 | F144: 290.0568499 | G144: 0.1390213447 | H144: 8.635316597
D145: 2016-04-01 | E145: 277297.0906 | F145: 289.886402 | G145: -0.0333011822 | H145: 8.371395083
D146: 2016-05-01 | E146: 275418.6201 | F146: 287.6805537 | G146: -0.6774216413 | H146: 7.155939435
D147: 2016-06-01 | E147: 276421.502 | F147: 288.4834382 | G147: 0.3641300212 | H147: 6.971524327
D148: 2016-07-01 | E148: 276889.3191 | F148: 288.660636 | G148: 0.1692404756 | H148: 6.658901509
D149: 2016-08-01 | E149: 277720.279 | F149: 289.259014 | G149: 0.300105442 | H149: 5.97581045
D150: 2016-09-01 | E150: 279478.8361 | F150: 289.7113087 | G150: 0.6332116382 | H150: 5.834599631
D151: 2016-10-01 | E151: 282129.0381 | F151: 290.7009058 | G151: 0.9482657046 | H151: 5.752518875
D152: 2016-11-01 | E152: 283867.7888 | F152: 290.463393 | G152: =+E152/E151*100-100 -> 0.6162962557 | H152: =+E152/E140*100-100 -> 6.20143365
D153: 2016-12-01 | E153: 285994.3728 | F153: 291.3745783 | G153: 0.7491459507 | H153: 6.209127694
D154: 2017-01-01 | E154: 288305.1739 | F154: 293.717394 | G154: 0.8079883097 | H154: 6.211893127
D155: 2017-02-01 | E155: 290047.7858 | F155: 295.4561045 | G155: 0.6044331157 | H155: 4.708740329
D156: 2017-03-01 | E156: 291500.7549 | F156: 297.0779214 | G156: 0.5009412774 | H156: 5.087176025
D157: 2017-04-01 | E157: 291264.1633 | F157: 296.9120858 | G157: -0.08116328508 | H157: 5.036862338
D158: 2017-05-01 | E158: 291153.3861 | F158: 296.5527202 | G158: -0.03803324649 | H158: 5.713036395
D159: 2017-06-01 | E159: 290026.5354 | F159: 295.0778387 | G159: -0.387029933 | H159: 4.921843371
D160: 2017-07-01 | E160: 289885.1813 | F160: 294.6765186 | G160: -0.04873833344 | H160: 4.693522397
D161: 2017-08-01 | E161: 290351.5275 | F161: 294.6694209 | G161: 0.1608727431 | H161: 4.548190928
D162: 2017-09-01 | E162: 292184.806 | F162: 295.3046342 | G162: 0.6313996406 | H162: 4.546308438
D163: 2017-10-01 | E163: 293542.5387 | F163: 294.3450265 | G163: 0.4646828447 | H163: 4.045489504
D164: 2017-11-01 | E164: 294658.8439 | F164: 293.1622923 | G164: 0.3802873859 | H164: 3.801437006
D165: 2017-12-01 | E165: 295560.9622 | F165: 292.0688766 | G165: 0.3061568495 | H165: 3.345027129
D166: 2018-01-01 | E166: 297174.388 | F166: 294.4487863 | G166: 0.5458859871 | H166: 3.076328467
D167: 2018-02-01 | E167: 298313.4397 | F167: 295.8459106 | G167: 0.3832940169 | H167: 2.849755883
D168: 2018-03-01 | E168: 297460.7034 | F168: 294.9197765 | G168: -0.285852442 | H168: 2.044573952
D169: 2018-04-01 | E169: 296660.3491 | F169: 292.9244642 | G169: -0.2690621909 | H169: 1.852677564
D170: 2018-05-01 | E170: 295704.6959 | F170: 291.4716024 | G170: -0.3221371681 | H170: 1.563200016
D171: 2018-06-01 | E171: 296136.9271 | F171: 291.0018409 | G171: 0.1461698928 | H171: 2.106838866
D172: 2018-07-01 | E172: 295042.2643 | F172: 290.2357334 | G172: -0.3696475231 | H172: 1.779008858
D173: 2018-08-01 | E173: 295883.6685 | F173: 290.7584248 | G173: 0.2851809074 | H173: 1.905325267
D174: 2018-09-01 | E174: 296762.15 | F174: 291.0582891 | G174: 0.2969009804 | H174: 1.566592079
D175: 2018-10-01 | E175: 298734.4366 | F175: 292.8236948 | G175: 0.6646018071 | H175: 1.768703778
D176: 2018-11-01 | E176: 297922.6039 | F176: 292.6495486 | G176: -0.271757328 | H176: 1.107640266
D177: 2018-12-01 | E177: 298472.3919 | F177: 292.3665621 | G177: 0.1845405246 | H177: 0.9850521813
D178: 2019-01-01 | E178: 298998.1901 | F178: 292.518554 | G178: 0.1761631045 | H178: 0.6137144162
D179: 2019-02-01 | E179: 300254.5262 | F179: 293.900022 | G179: =+E179/E178*100-100 -> 0.4201818479 | H179: 0.6506869197
D180: 2019-03-01 | E180: 299193.8904 | F180: 292.8707924 | G180: -0.3532455579 | H180: =+E180/E168*100-100 -> 0.5826608314
D181: 2019-04-01 | E181: 298148.0428 | F181: 291.8411483 | G181: =+E181/E180*100-100 -> -0.3495551354 | H181: =+E181/E169*100-100 -> 0.5014804603
D182: 2019-05-01 | E182: 297703.1753 | F182: 291.5125475 | G182: =+E182/E181*100-100 -> -0.1492102699 | H182: =+E182/E170*100-100 -> 0.6758362177
D183: 2019-06-01 | E183: 297319.4975 | F183: 290.9975946 | G183: -0.1288793305 | H183: =+E183/E171*100-100 -> 0.3993322776
D184: 2019-07-01 | E184: 296464.0417 | F184: 290.1483255 | G184: -0.287722743 | H184: =+E184/E172*100-100 -> 0.4818893801
D185: 2019-08-01 | E185: 296366.0978 | F185: 289.9899267 | G185: -0.03303735241 | H185: =+E185/E173*100-100 -> 0.1630469381
D186: 2019-09-01 | E186: 297989.4857 | F186: 291.5733143 | G186: 0.5477643887 | H186: =+E186/E174*100-100 -> 0.4135755497
D187: 2019-10-01 | E187: 300120.5621 | F187: 293.5709702 | G187: =+E187/E186*100-100 -> 0.7151515241 | H187: =+E187/E175*100-100 -> 0.4639992114
D188: 2019-11-01 | E188: 300889.7874 | F188: 294.3482591 | G188: =+E188/E187*100-100 -> 0.2563054378 | H188: =+E188/E176*100-100 -> 0.9959578208
D189: 2019-12-01 | E189: 301113.2047 | F189: 294.5510737 | G189: =+E189/E188*100-100 -> 0.07425221645 | H189: =+E189/E177*100-100 -> 0.8847762626
D190: 2020-01-01 | E190: 301688.2211 | F190: =F186*E190/E186 -> 295.1924102 | G190: =+E190/E189*100-100 -> 0.1909635001 | H190: =+E190/E178*100-100 -> 0.8996813514
D191: 2020-02-01 | E191: 303189.4453 | F191: =F187*E191/E187 -> 296.5728806 | G191: =+E191/E190*100-100 -> 0.4976078336 | H191: =+E191/E179*100-100 -> 0.9774770409

Sheet REGIONS
B2: LSL ACADATA E&W HPI NATIONAL AND REGIONAL FORMATTED DATA FROM 2005
B3: A TRUE MEASURE OF HOUSE PRICE INFLATION | J3: =SERIES!$K$2 -> 16th March 2020
B4: For data prior to 2005 please see | E4: APAT LGA | J4: =SERIES!$K$3 -> FEBRUARY 2020
J5: © Acadata Limited
B6: In these LSL Acadata Data Series, new weights have been adopted from April 2004 and prices on and after this date have been recalculated based on these new weights. | J6: LSL Acadata E&W HPI clb/cms
A10: Region | B10: North East | E10: North West | H10: Yorks & Humber | K10: East Midlands | N10: West Midlands | Q10: East of England | T10: Greater London | W10: South East | Z10: South West | AC10: Wales | AF10: ENGLAND & WALES
A11: Month | B11: Ave HP | C11: monthly % | D11: annual % | E11: Ave HP | F11: monthly % | G11: annual % | H11: Ave HP | I11: monthly % | J11: annual % | K11: Ave HP | L11: monthly % | M11: annual % | N11: Ave HP | O11: monthly % | P11: annual % | Q11: Ave HP | R11: monthly % | S11: annual % | T11: Ave HP | U11: monthly % | V11: annual % | W11: Ave HP | X11: monthly % | Y11: annual % | Z11: Ave HP | AA11: monthly % | AB11: annual % | AC11: Ave HP | AD11: monthly % | AE11: annual % | AF11: Ave HP | AG11: monthly % | AH11: annual %
A12: 2005-01-01 | B12: 135549.6166 | C12: 1.814973581 | D12: 18.53867136 | E12: 144578.369 | F12: 0.7115189191 | G12: 18.36876519 | H12: 146710.9652 | I12: 1.2227234 | J12: 19.20107881 | K12: 160835.6893 | L12: 0.8707329845 | M12: 14.89108239 | N12: 166199.0205 | O12: -0.02422974717 | P12: 12.64498288 | Q12: 201431.8179 | R12: 0.4236755178 | S12: 11.49619421 | T12: 271767.0054 | U12: 0.224822802 | V12: 7.429522259 | W12: 233477.1463 | X12: 0.3827362566 | Y12: 9.274867792 | Z12: 202041.0392 | AA12: -0.1255639545 | AB12: 12.81740732 | AC12: 143808.1095 | AD12: 0.08943713292 | AE12: 19.20321851 | AF12: 189021.1118 | AG12: 0.4326105935 | AH12: 12.5413267
A13: 2005-02-01 | B13: 137205.7181 | C13: =B13/B12*100-100 -> 1.221767751 | D13: 18.24288269 | E13: 147334.9057 | F13: =E13/E12*100-100 -> 1.90660381 | G13: 18.74214606 | H13: 147813.4413 | I13: =H13/H12*100-100 -> 0.7514612635 | J13: 17.68776901 | K13: 161128.7804 | L13: =K13/K12*100-100 -> 0.1822301335 | M13: 13.39398302 | N13: 167760.1987 | O13: =N13/N12*100-100 -> 0.9393426087 | P13: 12.31136165 | Q13: 202817.1363 | R13: =Q13/Q12*100-100 -> 0.6877356444 | S13: 10.46328608 | T13: 272406.3429 | U13: =T13/T12*100-100 -> 0.2352520623 | V13: 7.097351044 | W13: 233872.9546 | X13: =W13/W12*100-100 -> 0.1695276438 | Y13: 7.842609009 | Z13: 203209.7082 | AA13: 0.591030347 | AB13: 11.96532609 | AC13: 144809.9139 | AD13: =AC13/AC12*100-100 -> 0.6966258673 | AE13: 18.61100602 | AF13: 190183.9524 | AG13: =AF13/AF12*100-100 -> 0.6151908989 | AH13: 11.71642877
A14: 2005-03-01 | B14: 138248.086 | C14: 0.7597117041 | D14: 16.78968687 | E14: 146521.5399 | F14: -0.552052343 | G14: 16.47191869 | H14: 147979.4067 | I14: 0.1122803395 | J14: 15.06219435 | K14: 159795.7252 | L14: -0.8273228418 | M14: 11.50811889 | N14: 166759.2405 | O14: -0.5966601219 | P14: 10.20041537 | Q14: 202390.2554 | R14: -0.2104757686 | S14: 9.21738351 | T14: 273676.8432 | U14: 0.4663989406 | V14: 5.989318831 | W14: 234430.2405 | X14: 0.2382857225 | Y14: 7.097238093 | Z14: 202509.6586 | AA14: -0.3364909269 | AB14: 10.05381167 | AC14: 144320.0502 | AD14: -0.3382805278 | AE14: 15.99278663 | AF14: 190005.8173 | AG14: -0.0936646516 | AH14: 10.16070918
A15: 2005-04-01 | B15: 137569.5284 | C15: -0.4908260208 | D15: 13.39016415 | E15: 146830.5803 | F15: 0.2109180429 | G15: 14.62145773 | H15: 147604.524 | I15: -0.2533343569 | J15: 12.25620411 | K15: 158721.4696 | L15: -0.6722680371 | M15: 9.636554165 | N15: 168038.8718 | O15: 0.767352561 | P15: 10.05717436 | Q15: 203656.6249 | R15: 0.6257067847 | S15: 8.713440597 | T15: 273197.2976 | U15: -0.1752233102 | V15: 4.716583791 | W15: 234153.2008 | X15: -0.1181757718 | Y15: 6.200528715 | Z15: 202293.9593 | AA15: -0.05655692176 | AB15: 8.658211717 | AC15: 145219.0143 | AD15: 0.6228961932 | AE15: 15.56307596 | AF15: 190071.8753 | AG15: 0.03476627991 | AH15: 8.915189179
A16: 2005-05-01 | B16: 137629.3333 | C16: 0.04347246042 | D16: 10.30424593 | E16: 146661.7282 | F16: -0.1149978715 | G16: 12.05044482 | H16: 147220.448 | I16: -0.2602061096 | J16: 10.26223705 | K16: 159228.9251 | L16: 0.3197144631 | M16: 8.301134531 | N16: 168081.3331 | O16: 0.0252687453 | P16: 8.651973652 | Q16: 203417.2161 | R16: -0.1175551182 | S16: 7.456978343 | T16: 273039.2384 | U16: -0.05785534645 | V16: 3.974721881 | W16: 232303.7452 | X16: -0.7898485112 | Y16: 4.646791087 | Z16: 200220.3071 | AA16: -1.033944516 | AB16: 5.726425262 | AC16: 145233.9013 | AD16: 0.01025137822 | AE16: 13.24872254 | AF16: 189485.5386 | AG16: -0.3084815307 | AH16: 7.209154725
A17: 2005-06-01 | B17: 138055.3685 | C17: 0.3095526037 | D17: 8.852429646 | E17: 148116.0512 | F17: 0.9916172008 | G17: 10.14207465 | H17: 148079.4534 | I17: 0.5834823931 | J17: 9.711334757 | K17: 159830.9611 | L17: 0.3780946378 | M17: 6.825907052 | N17: 170421.5469 | O17: 1.392310313 | P17: 8.220157182 | Q17: 203070.2176 | R17: -0.1705846182 | S17: 5.984202786 | T17: 272694.7376 | U17: -0.1261726319 | V17: 3.718237217 | W17: 233075.3054 | X17: 0.3321342243 | Y17: 4.061090881 | Z17: 199373.8464 | AA17: -0.3836203743 | AB17: 4.266508171 | AC17: 146377.1608 | AD17: 0.7871850377 | AE17: 11.7364588 | AF17: 190073.3661 | AG17: 0.3102228596 | AH17: 6.2481465
A18: 2005-07-01 | B18: 138539.1097 | C18: 0.3503965771 | D18: 8.52798576 | E18: 149299.3377 | F18: 0.7988915365 | G18: 8.625166223 | H18: 148528.6388 | I18: 0.3033407903 | J18: 8.133027647 | K18: 160666.5874 | L18: 0.5228187902 | M18: 5.771827746 | N18: 169167.7386 | O18: -0.7357099163 | P18: 5.359563538 | Q18: 202355.7491 | R18: -0.3518332612 | S18: 4.636582653 | T18: 273035.1401 | U18: 0.1248291378 | V18: 3.396805855 | W18: 232374.1571 | X18: -0.3008247895 | Y18: 3.239768711 | Z18: 199060.3022 | AA18: -0.2113758757 | AB18: 2.905284271 | AC18: 147501.0399 | AD18: 0.7677967439 | AE18: 9.564704321 | AF18: 190099.846 | AG18: 0.01393140307 | AH18: 5.041676407
A19: 2005-08-01 | B19: 139128.0417 | C19: 0.4251015673 | D19: 7.804499869 | E19: 149648.7577 | F19: 0.2340398557 | G19: 6.602312722 | H19: 149410.9985 | I19: 0.5940670778 | J19: 6.625308072 | K19: 160716.9255 | L19: 0.03133077272 | M19: 4.490239411 | N19: 168619.6176 | O19: -0.3240103945 | P19: 3.191746869 | Q19: 202551.9792 | R19: 0.09697284457 | S19: 3.890195604 | T19: 272846.7848 | U19: -0.06898573578 | V19: 2.844825344 | W19: 233152.5924 | X19: 0.3349922029 | Y19: 2.735565979 | Z19: 198908.7745 | AA19: -0.184068822 | AB19: 1.875550004 | AC19: 149117.8435 | AD19: 1.096130312 | AE19: 8.999787989 | AF19: 190409.4161 | AG19: 0.1628460835 | AH19: 4.020839509
A20: 2005-09-01 | B20: 140860.5568 | C20: 1.245266645 | D20: 7.754119457 | E20: 150493.8678 | F20: 0.5647291436 | G20: 6.219957159 | H20: 151232.9375 | I20: 1.219414193 | J20: 6.023660174 | K20: 161876.2379 | L20: 0.7213380479 | M20: 3.850869188 | N20: 168008.0409 | O20: -0.3626960193 | P20: 2.035825245 | Q20: 203007.1051 | R20: 0.2246958372 | S20: 3.219841782 | T20: 273712.2445 | U20: 0.3171962237 | V20: 2.499310009 | W20: 232928.4431 | X20: -0.09613848446 | Y20: 2.328175114 | Z20: 199441.2059 | AA20: 0.1709808307 | AB20: 1.048956402 | AC20: 150117.0678 | AD20: 0.6700903859 | AE20: 7.99470034 | AF20: 191025.7048 | AG20: 0.3236650324 | AH20: 3.440427376
A21: 2005-10-01 | B21: 143127.3086 | C21: 1.609216834 | D21: 8.374548007 | E21: 151232.0309 | F21: 0.4904937892 | G21: 6.120098924 | H21: 152230.6053 | I21: 0.6596895082 | J21: 5.815251382 | K21: 162176.4364 | L21: 0.1854494134 | M21: 2.919239648 | N21: 169441.9495 | O21: 0.8534761455 | P21: 2.002269315 | Q21: 203711.7881 | R21: 0.3471223652 | S21: 2.965484795 | T21: 275975.4168 | U21: 0.826843659 | V21: 2.66684897 | W21: 233870.1685 | X21: 0.4042981724 | Y21: 1.722501814 | Z21: 200224.138 | AA21: 0.5251594947 | AB21: 0.2477196577 | AC21: 151755.875 | AD21: 1.091686102 | AE21: 7.563921286 | AF21: 192128.2291 | AG21: 0.5771601784 | AH21: 3.117129325
A22: 2005-11-01 | B22: 144240.5486 | C22: 0.7777970948 | D22: 8.662415406 | E22: 151603.2391 | F22: 0.245456034 | G22: 6.774270307 | H22: 153081.8455 | I22: 0.5591781017 | J22: 5.867691065 | K22: 162525.8744 | L22: 0.2154677872 | M22: 2.705334792 | N22: 170610.7684 | O22: 0.6898049264 | P22: 3.150259122 | Q22: 203382.5934 | R22: -0.1615982761 | S22: 2.255171826 | T22: 278008.2006 | U22: 0.7365814907 | V22: 2.783916425 | W22: 235035.1745 | X22: 0.4981421908 | Y22: 1.291170869 | Z22: 201933.3453 | AA22: 0.7998031783 | AB22: 0.5437929885 | AC22: 151971.469 | AD22: 0.1420663264 | AE22: 6.86442133 | AF22: 193022.7495 | AG22: 0.4655850684 | AH22: 3.118902098
A23: 2005-12-01 | B23: 145536.2758 | C23: 0.8983099803 | D23: 9.316222747 | E23: 152715.0513 | F23: 0.7333697248 | G23: 6.379432043 | H23: 154008.7213 | I23: 0.605477262 | J23: 6.257784986 | K23: 161773.0443 | L23: -0.4632062881 | M23: 1.45861049 | N23: 171558.8307 | O23: 0.5556872311 | P23: 3.199923729 | Q23: 205257.4404 | R23: 0.921832572 | S23: 2.330936636 | T23: 281836.9848 | U23: 1.377219879 | V23: 3.938525642 | W23: 237238.6485 | X23: 0.9375081812 | Y23: 1.999981813 | Z23: 203874.6288 | AA23: 0.9778553549 | AB23: 0.7808297321 | AC23: 153174.3067 | AD23: 0.7914892045 | AE23: 6.608244856 | AF23: 194589.4719 | AG23: 0.8116775895 | AH23: 3.391248054
A24: 2006-01-01 | B24: 145994.8631 | C24: =B24/B23*100-100 -> 0.3151016623 | D24: =B24/B12*100-100 -> 7.705847308 | E24: 153988.0065 | F24: =E24/E23*100-100 -> 0.8335492351 | G24: =E24/E12*100-100 -> 6.508330066 | H24: 155657.1843 | I24: =H24/H23*100-100 -> 1.070369938 | J24: =H24/H12*100-100 -> 6.097853097 | K24: 161921.7552 | L24: =K24/K23*100-100 -> 0.09192564353 | M24: =K24/K12*100-100 -> 0.6752642379 | N24: 172988.7708 | O24: =N24/N23*100-100 -> 0.8334984321 | P24: =N24/N12*100-100 -> 4.085313084 | Q24: 205403.0296 | R24: =Q24/Q23*100-100 -> 0.0709300666 | S24: =Q24/Q12*100-100 -> 1.971491792 | T24: 283400.8789 | U24: =T24/T23*100-100 -> 0.5548931355 | V24: =T24/T12*100-100 -> 4.280826311 | W24: 238961.0998 | X24: =W24/W23*100-100 -> 0.7260416308 | Y24: =W24/W12*100-100 -> 2.348818109 | Z24: 204136.5471 | AA24: =Z24/Z23*100-100 -> 0.1284703051 | AB24: =Z24/Z12*100-100 -> 1.037169437 | AC24: 152857.5367 | AD24: =AC24/AC23*100-100 -> -0.2068036656 | AE24: =AC24/AC12*100-100 -> 6.292709946 | AF24: 195561.8888 | AG24: =AF24/AF23*100-100 -> 0.4997274246 | AH24: =AF24/AF12*100-100 -> 3.460342075
A25: 2006-02-01 | B25: 147859.911 | C25: 1.277475026 | D25: 7.765123089 | E25: 154878.9944 | F25: 0.5786086852 | G25: 5.12036758 | H25: 157077.6726 | I25: 0.9125748497 | J25: 6.2675162 | K25: 162850.7953 | L25: 0.5737586393 | M25: 1.068719601 | N25: 174299.3494 | O25: 0.757609033 | P25: 3.897915428 | Q25: 207543.1288 | R25: 1.041902433 | S25: 2.330174163 | T25: 286273.9598 | U25: 1.01378685 | V25: 5.090783379 | W25: 240850.7329 | X25: 0.790770146 | Y25: 2.983576377 | Z25: 205171.3733 | AA25: 0.5069284367 | AB25: 0.9653402628 | AC25: 154790.861 | AD25: 1.264788381 | AE25: 6.892447352 | AF25: 197180.2333 | AG25: 0.8275357268 | AH25: 3.678691495
A26: 2006-03-01 | B26: 147470.6336 | C26: -0.2632744707 | D26: 6.671012862 | E26: 156416.4187 | F26: 0.9926615752 | G26: 6.753190567 | H26: 157931.0856 | I26: 0.5433063371 | J26: 6.725043109 | K26: 164479.4502 | L26: 1.00009024 | M26: 2.931070258 | N26: 174995.927 | O26: 0.3996444173 | P26: 4.939268414 | Q26: 208714.2883 | R26: 0.5642969095 | S26: 3.12467262 | T26: 286710.6058 | U26: 0.1525273492 | V26: 4.762464541 | W26: 242412.8612 | X26: 0.6485877528 | Y26: 3.405115614 | Z26: 206525.7355 | AA26: 0.6601126294 | AB26: 1.983153225 | AC26: 155744.0177 | AD26: 0.6157706455 | AE26: 7.915717524 | AF26: 198290.0177 | AG26: 0.5628274183 | AH26: 4.359972002
A27: 2006-04-01 | B27: 147872.5322 | C27: 0.2725278928 | D27: 7.489306612 | E27: 156707.5887 | F27: 0.1861505135 | G27: 6.726806088 | H27: 158021.555 | I27: 0.05728410017 | J27: 7.057392748 | K27: 164958.5013 | L27: 0.2912528432 | M27: 3.929545039 | N27: 175696.9405 | O27: 0.4005884806 | P27: 4.557319764 | Q27: 211560.5143 | R27: 1.363694869 | S27: 3.880988099 | T27: 289300.0283 | U27: 0.9031484646 | V27: 5.894176412 | W27: 244160.3809 | X27: 0.7208857117 | Y27: 4.273774656 | Z27: 208364.444 | AA27: 0.8903047735 | AB27: 3.000823513 | AC27: 155205.6652 | AD27: -0.3456649477 | AE27: 6.876958212 | AF27: 199521.2097 | AG27: 0.6209046798 | AH27: 4.971453283
A28: 2006-05-01 | B28: 147432.6992 | C28: -0.2974406574 | D28: 7.123020699 | E28: 157645.0749 | F28: 0.5982392184 | G28: 7.488897643 | H28: 158137.5071 | I28: 0.07337739651 | J28: 7.415450239 | K28: 165467.3817 | L28: 0.3084899709 | M28: 3.917916653 | N28: 176051.1421 | O28: 0.2015980528 | P28: 4.741638387 | Q28: 212078.9789 | R28: 0.2450667962 | S28: 4.258126673 | T28: 290966.9244 | U28: 0.5761825089 | V28: 6.565974248 | W28: 245738.2741 | X28: 0.6462527745 | Y28: 5.783173639 | Z28: 209259.0681 | AA28: 0.4293554905 | AB28: 4.514407715 | AC28: 154921.0802 | AD28: -0.1833599186 | AE28: 6.670053557 | AF28: 200291.8777 | AG28: 0.3862586823 | AH28: 5.702988833
A29: 2006-06-01 | B29: 148130.013 | C29: 0.4729709349 | D29: 7.297539125 | E29: 157389.103 | F29: -0.1623723016 | G29: 6.260666401 | H29: 157722.2264 | I29: -0.2626073413 | J29: 6.511891249 | K29: 166034.7086 | L29: 0.3428632971 | M29: 3.881442883 | N29: 177068.0478 | O29: 0.5776194921 | P29: 3.900035595 | Q29: 213124.2789 | R29: 0.4928824243 | S29: 4.951026964 | T29: 292856.8597 | U29: 0.6495361196 | V29: 7.393660149 | W29: 246246.9802 | X29: 0.2070113136 | Y29: 5.651252808 | Z29: 209712.4096 | AA29: 0.2166412315 | AB29: 5.185516212 | AC29: 155310.474 | AD29: 0.251349746 | AE29: 6.102941982 | AF29: 200874.2397 | AG29: 0.2907566613 | AH29: 5.682476114
A30: 2006-07-01 | B30: 147555.6466 | C30: -0.3877447511 | D30: 6.508297122 | E30: 158179.6518 | F30: 0.5022894255 | G30: 5.947992943 | H30: 158242.074 | I30: 0.3295969339 | J30: 6.539772589 | K30: 166937.6976 | L30: 0.5438555734 | M30: 3.903182538 | N30: 177199.3229 | O30: 0.07413822015 | P30: 4.747704481 | Q30: 213664.5171 | R30: 0.2534850786 | S30: 5.588557823 | T30: 294561.9854 | U30: 0.5822386059 | V30: 7.884276487 | W30: 247787.7759 | X30: 0.6257115425 | Y30: 6.633103701 | Z30: 210574.4587 | AA30: 0.41106254 | AB30: 5.784255497 | AC30: 156565.4372 | AD30: 0.8080351652 | AE30: 6.145310824 | AF30: 201753.7724 | AG30: 0.4378523864 | AH30: 6.130423901
A31: 2006-08-01 | B31: 147006.8847 | C31: -0.3719016976 | D31: 5.66301582 | E31: 159820.9198 | F31: 1.037597395 | G31: 6.797358175 | H31: 159154.7386 | I31: 0.5767521664 | J31: 6.521434263 | K31: 167181.8607 | L31: 0.1462600238 | M31: 4.022560285 | N31: 178383.8112 | O31: 0.6684496752 | P31: 5.790662916 | Q31: 216282.9055 | R31: 1.225467088 | S31: 6.778964249 | T31: 296521.471 | U31: 0.6652201126 | V31: 8.676915963 | W31: 248582.9289 | X31: 0.3209008098 | Y31: 6.618127779 | Z31: 211629.2607 | AA31: 0.5009163802 | AB31: 6.39513574 | AC31: 157361.4081 | AD31: 0.5083949819 | AE31: 5.528221435 | AF31: 202945.4761 | AG31: 0.5906723413 | AH31: 6.583739515
A32: 2006-09-01 | B32: 148575.7894 | C32: 1.067232132 | D32: 5.477212926 | E32: 160906.2659 | F32: 0.6791014347 | G32: 6.918818836 | H32: 161190.9841 | I32: 1.27941245 | J32: 6.584575316 | K32: 168941.7507 | L32: 1.052679959 | M32: 4.364762192 | N32: 179451.8607 | O32: 0.598736776 | P32: 6.811471476 | Q32: 217449.5282 | R32: 0.5393966478 | S32: 7.114245152 | T32: 299657.1413 | U32: 1.057485068 | V32: 9.4788952 | W32: 250774.0111 | X32: 0.8814290586 | Y32: 7.661394973 | Z32: 213246.9791 | AA32: 0.7644115181 | AB32: 6.922227126 | AC32: 158282.689 | AD32: 0.58545543 | AE32: 5.439502171 | AF32: 204665.9093 | AG32: 0.8477317515 | AH32: 7.140507359
A33: 2006-10-01 | B33: 150076.0007 | C33: 1.009727999 | D33: =B33/B21*100-100 -> 4.854903126 | E33: 162750.4262 | F33: 1.14610843 | G33: =E33/E21*100-100 -> 7.616372808 | H33: 163521.6819 | I33: 1.445923182 | J33: 7.417087145 | K33: 169564.2162 | L33: 0.3684497933 | M33: =K33/K21*100-100 -> 4.555396573 | N33: 180460.3865 | O33: 0.562003501 | P33: =N33/N21*100-100 -> 6.502779864 | Q33: 219503.8019 | R33: 0.9447128657 | S33: =Q33/Q21*100-100 -> 7.752135446 | T33: 302161.1312 | U33: 0.8356183133 | V33: =T33/T21*100-100 -> 9.488422816 | W33: 252960.2018 | X33: 0.871777216 | Y33: =W33/W21*100-100 -> 8.162662816 | Z33: 216102.5962 | AA33: 1.339112547 | AB33: =Z33/Z21*100-100 -> 7.930341638 | AC33: 161255.8393 | AD33: 1.878379964 | AE33: =AC33/AC21*100-100 -> 6.260030667 | AF33: 206669.8525 | AG33: 0.9791289653 | AH33: =AF33/AF21*100-100 -> 7.568707357
A34: 2006-11-01 | B34: 152105.0807 | C34: 1.352034952 | D34: 5.452372574 | E34: 162811.8693 | F34: 0.03775293932 | G34: 7.393397577 | H34: 164719.1655 | I34: 0.7323087335 | J34: 7.602024895 | K34: 171182.5774 | L34: 0.9544237628 | M34: 5.32635376 | N34: 180993.9902 | O34: 0.2956902167 | P34: 6.085912316 | Q34: 219707.0703 | R34: 0.0926036248 | S34: 8.02648677 | T34: 306559.0378 | U34: 1.455483904 | V34: 10.26978238 | W34: 255058.8591 | X34: 0.8296393395 | Y34: 8.519441693 | Z34: 218567.7036 | AA34: 1.140711608 | AB34: 8.237549008 | AC34: 162741.6069 | AD34: 0.9213728785 | AE34: 7.086947278 | AF34: 208271.9925 | AG34: 0.7752170679 | AH34: 7.900230972
A35: 2006-12-01 | B35: 152940.7053 | C35: 0.5493732457 | D35: 5.08768652 | E35: 164790.5719 | F35: 1.215330667 | G35: 7.907223563 | H35: 165813.6262 | I35: 0.6644403916 | J35: 7.66508858 | K35: 171368.1383 | L35: 0.1083994268 | M35: 5.931206935 | N35: 182199.0377 | O35: 0.66579423 | P35: 6.20207483 | Q35: 221930.6498 | R35: 1.012065513 | S35: 8.123071893 | T35: 311945.7247 | U35: 1.757145015 | V35: 10.68303362 | W35: 257470.8852 | X35: 0.9456743026 | Y35: 8.528221214 | Z35: 222039.4998 | AA35: 1.588430569 | AB35: 8.909824208 | AC35: 163499.717 | AD35: 0.4658367173 | AE35: 6.740954467 | AF35: 210431.7062 | AG35: 1.036967914 | AH35: 8.141362541
A36: 2007-01-01 | B36: 154991.9074 | C36: 1.341174707 | D36: 6.16257595 | E36: 165401.1219 | F36: 0.3705005737 | G36: 7.411691116 | H36: 165978.6318 | I36: 0.09951272511 | J36: 6.630884116 | K36: 173274.3709 | L36: 1.112361142 | M36: 7.011173808 | N36: 183971.7868 | O36: 0.9729738773 | P36: 6.348976226 | Q36: 223625.4737 | R36: 0.7636727289 | S36: 8.87155564 | T36: 317328.4896 | U36: 1.725545337 | V36: 11.97159684 | W36: 259957.5341 | X36: 0.9657981042 | Y36: 8.786549082 | Z36: 222678.4073 | AA36: 0.287744994 | AB36: 9.083067425 | AC36: 164047.2816 | AD36: 0.3349024616 | AE36: 7.32037502 | AF36: 212236.5725 | AG36: 0.8576969266 | AH36: 8.526550747
A37: 2007-02-01 | B37: 155928.5621 | C37: 0.6043249366 | D37: 5.456956587 | E37: 167560.0377 | F37: 1.305260676 | G37: 8.187710194 | H37: 166985.5304 | I37: 0.6066435257 | J37: 6.307616895 | K37: 175114.682 | L37: 1.062079216 | M37: 7.530750274 | N37: 184402.4273 | O37: 0.2340796809 | P37: 5.796394528 | Q37: 226740.7861 | R37: 1.393093705 | S37: 9.249960433 | T37: 322926.7135 | U37: 1.764173116 | V37: 12.80338378 | W37: 263520.0801 | X37: 1.370433806 | Y37: 9.41219773 | Z37: 224983.089 | AA37: 1.0349821 | AB37: 9.656179292 | AC37: 165003.3711 | AD37: 0.5828133887 | AE37: 6.597618245 | AF37: 214691.9241 | AG37: 1.156893735 | AH37: 8.88105796
A38: 2007-03-01 | B38: 155592.4752 | C38: -0.215539061 | D38: 5.50742978 | E38: 167929.7436 | F38: 0.2206408976 | G38: 7.36068823 | H38: 166921.5021 | I38: -0.03834365413 | J38: 5.692619968 | K38: 175879.4555 | L38: 0.4367272685 | M38: 6.930960285 | N38: 184893.6318 | O38: 0.266376378 | P38: 5.655962975 | Q38: 228678.7663 | R38: 0.8547117658 | S38: 9.565458204 | T38: 326507.3995 | U38: 1.108823115 | V38: 13.88047491 | W38: 266041.7357 | X38: 0.9569121473 | Y38: 9.747368351 | Z38: 225687.0348 | AA38: 0.3128883108 | AB38: 9.277923286 | AC38: 165532.9255 | AD38: 0.3209354883 | AE38: 6.285254434 | AF38: 215960.5978 | AG38: 0.5909275099 | AH38: 8.9114824
A39: 2007-04-01 | B39: 155103.6599 | C39: -0.3141638332 | D39: 4.890108791 | E39: 168584.9319 | F39: 0.3901561983 | G39: 7.579303184 | H39: 168544.1752 | I39: 0.9721174704 | J39: 6.658977756 | K39: 176304.3758 | L39: 0.2415974273 | M39: 6.878017469 | N39: 185439.1823 | O39: 0.2950617958 | P39: 5.544912595 | Q39: 230152.7927 | R39: 0.6445838802 | S39: 8.788160917 | T39: 330486.1549 | U39: 1.218580469 | V39: 14.23647516 | W39: 268608.3034 | X39: 0.9647236949 | Y39: 10.0130588 | Z39: 229474.1191 | AA39: 1.678024777 | AB39: 10.1311312 | AC39: 164980.9747 | AD39: -0.3334386714 | AE39: 6.298294237 | AF39: 217668.2084 | AG39: 0.7907046985 | AH39: 9.095272953
A40: 2007-05-01 | B40: 155062.0225 | C40: -0.02684486591 | D40: 5.17478375 | E40: 168826.72 | F40: 0.1434220912 | G40: 7.0929238 | H40: 169061.0578 | I40: 0.3066748755 | J40: 6.907628009 | K40: 177295.2993 | L40: 0.5620527286 | M40: 7.148186872 | N40: 186077.2139 | O40: 0.3440651333 | P40: 5.694976824 | Q40: 231322.0418 | R40: 0.508031653 | S40: 9.073536189 | T40: 334036.9847 | U40: 1.074426183 | V40: 14.80239047 | W40: 269566.0311 | X40: 0.3565517815 | Y40: 9.696396312 | Z40: 231229.4433 | AA40: 0.7649333985 | AB40: 10.49912693 | AC40: 164786.7811 | AD40: -0.117706673 | AE40: 6.368210716 | AF40: 218745.5258 | AG40: 0.4949355907 | AH40: 9.213378132
A41: 2007-06-01 | B41: 156145.5982 | C41: 0.6988014309 | D41: 5.411182389 | E41: 168973.5826 | F41: 0.0869901381 | G41: 7.360407647 | H41: 169536.0095 | I41: 0.2809350059 | J41: 7.490246238 | K41: 177730.3137 | L41: 0.2453614959 | M41: 7.04407243 | N41: 186747.7599 | O41: 0.3603590268 | P41: 5.466662215 | Q41: 232321.9477 | R41: 0.4322571057 | S41: 9.007734336 | T41: 340121.7192 | U41: 1.821575074 | V41: 16.13923591 | W41: 272693.1146 | X41: 1.160043622 | Y41: 10.7396787 | Z41: 232493.9074 | AA41: 0.5468438975 | AB41: 10.86320924 | AC41: 165785.0267 | AD41: 0.6057801628 | AE41: 6.744266793 | AF41: 220436.7572 | AG41: 0.7731501773 | AH41: 9.73868901
A42: 2007-07-01 | B42: 155719.8793 | C42: -0.2726422412 | D42: 5.532985591 | E42: 169591.6327 | F42: 0.3657673156 | G42: 7.214569483 | H42: 168599.5748 | I42: -0.5523515342 | J42: 6.545352001 | K42: 178061.8545 | L42: 0.1865414795 | M42: 6.663657779 | N42: 186091.9549 | O42: -0.3511715446 | P42: 5.01843451 | Q42: 233300.064 | R42: 0.421017589 | S42: 9.189895977 | T42: 344563.6357 | U42: 1.305978492 | V42: 16.97491623 | W42: 273299.5047 | X42: 0.2223708722 | Y42: 10.29579795 | Z42: 232627.7585 | AA42: 0.05757188095 | AB42: 10.47292248 | AC42: 166997.9375 | AD42: 0.7316166246 | AE42: 6.663348232 | AF42: 221128.9796 | AG42: 0.3140231203 | AH42: 9.603392794
A43: 2007-08-01 | B43: 155409.7103 | C43: -0.1991839471 | D43: 5.715940201 | E43: 170240.1729 | F43: 0.3824128702 | G43: 6.519330002 | H43: 170088.0179 | I43: 0.8828273513 | J43: 6.86959083 | K43: 178025.4582 | L43: -0.02044027267 | M43: 6.486108828 | N43: 187844.2076 | O43: 0.9416058076 | P43: 5.303393993 | Q43: 234881.9234 | R43: 0.6780364119 | S43: 8.599393406 | T43: 349330.4965 | U43: 1.383448599 | V43: 17.8095115 | W43: 276362.7596 | X43: 1.120841751 | Y43: 11.17527694 | Z43: 233585.7329 | AA43: 0.4118057039 | AB43: 10.37496997 | AC43: 168764.7508 | AD43: 1.057985099 | AE43: 7.246594259 | AF43: 222903.2841 | AG43: 0.8023844127 | AH43: 9.834073838
A44: 2007-09-01 | B44: 155174.4411 | C44: -0.1513864087 | D44: 4.441269845 | E44: 172013.9898 | F44: 1.041949659 | G44: 6.903226453 | H44: 172184.0215 | I44: 1.232305271 | J44: 6.819883542 | K44: 180092.3531 | L44: 1.161010858 | M44: 6.600264494 | N44: 189193.9453 | O44: 0.7185410559 | P44: 5.428801108 | Q44: 236262.3303 | R44: 0.5877024833 | S44: 8.651571802 | T44: 352009.469 | U44: 0.7668876785 | V44: 17.47074257 | W44: 278444.0657 | X44: 0.7531065355 | Y44: 11.0338605 | Z44: 235043.548 | AA44: 0.6241027934 | AB44: 10.22127909 | AC44: 169867.7442 | AD44: 0.653568594 | AE44: 7.319218127 | AF44: 224639.2699 | AG44: 0.7788067621 | AH44: 9.75900708
A45: 2007-10-01 | B45: 156148.5117 | C45: 0.6277261808 | D45: 4.046290512 | E45: 172068.3759 | F45: 0.03161724849 | G45: 5.725299739 | H45: 174506.868 | I45: 1.349048807 | J45: 6.717877377 | K45: 180385.5627 | L45: 0.162810718 | M45: 6.381857416 | N45: 190035.5554 | O45: 0.4448398547 | P45: 5.305967211 | Q45: 237634.6682 | R45: 0.5808534855 | S45: 8.259932731 | T45: 353559.1224 | U45: 0.4402306102 | V45: 17.01012669 | W45: 280416.5181 | X45: 0.7083837255 | Y45: 10.85400633 | Z45: 236553.3769 | AA45: 0.6423613425 | AB45: 9.46345906 | AC45: 171232.1142 | AD45: 0.803195415 | AE45: 6.186613102 | AF45: 225909.9828 | AG45: 0.5656682012 | AH45: 9.309596955
A46: 2007-11-01 | B46: 157644.3595 | C46: 0.9579648056 | D46: 3.641744744 | E46: 171861.7489 | F46: -0.1200842659 | G46: 5.558488856 | H46: 174714.5511 | I46: 0.1190114234 | J46: 6.068137607 | K46: 179814.111 | L46: -0.3167946261 | M46: 5.042296767 | N46: 189498.9282 | O46: -0.2823825407 | P46: 4.699016795 | Q46: 236202.9285 | R46: -0.6024961691 | S46: 7.508114373 | T46: 352544.0319 | U46: -0.2871062966 | V46: 15.00037135 | W46: 281210.1096 | X46: 0.283004546 | Y46: 10.25302573 | Z46: 235975.6581 | AA46: -0.2442234447 | AB46: 7.964559368 | AC46: 170592.902 | AD46: -0.3733015976 | AE46: 4.824393249 | AF46: 225637.6498 | AG46: -0.1205493623 | AH46: 8.337970495
A47: 2007-12-01 | B47: 157626.0947 | C47: -0.01158610082 | D47: 3.063533229 | E47: 171547.0354 | F47: -0.183120157 | G47: 4.100030392 | H47: 174884.0974 | I47: 0.09704189917 | J47: 5.470280994 | K47: 178600.333 | L47: -0.6750181751 | M47: 4.220267999 | N47: 188209.896 | O47: -0.6802319162 | P47: 3.299061476 | Q47: 238040.1582 | R47: 0.777818349 | S47: 7.258802859 | T47: 353144.0504 | U47: 0.1701967514 | V47: 13.20688904 | W47: 281935.9991 | X47: 0.2581306574 | Y47: 9.502089472 | Z47: 236550.5884 | AA47: 0.2436396883 | AB47: 6.535363602 | AC47: 169931.3258 | AD47: -0.3878099079 | AE47: 3.933712472 | AF47: 225795.9905 | AG47: 0.07017478938 | AH47: 7.301316217
A48: 2008-01-01 | B48: 161243.9934 | C48: 2.29524096 | D48: 4.033814453 | E48: 171931.2121 | F48: 0.2239483311 | G48: 3.948032616 | H48: 174547.523 | I48: -0.1924557369 | J48: 5.162647172 | K48: 178422.3726 | L48: -0.09964169565 | M48: 2.971011636 | N48: 188308.8493 | O48: 0.05257603642 | P48: 2.357460675 | Q48: 238035.0879 | R48: -0.002130014646 | S48: 6.443637202 | T48: 355658.9791 | U48: 0.7121537851 | V48: 12.07912016 | W48: 284003.3975 | X48: 0.7332864103 | Y48: 9.249919759 | Z48: 234175.8322 | AA48: -1.003910537 | AB48: 5.163241896 | AC48: 168252.6976 | AD48: -0.9878274148 | AE48: 2.56353895 | AF48: 226230.7438 | AG48: 0.1925424947 | AH48: 6.593666248
A49: 2008-02-01 | B49: 163430.0462 | C49: 1.355742162 | D49: 4.810846655 | E49: 172666.9421 | F49: 0.427921114 | G49: 3.04780571 | H49: 174082.7374 | I49: -0.2662802157 | J49: 4.250192803 | K49: 179506.6029 | L49: 0.6076761733 | M49: 2.508025506 | N49: 188975.7224 | O49: 0.3541379683 | P49: 2.480062303 | Q49: 242066.2417 | R49: 1.69351242 | S49: 6.759020228 | T49: 358551.2412 | U49: 0.8132121693 | V49: 11.03176859 | W49: 284295.4827 | X49: 0.1028456723 | Y49: 7.883802474 | Z49: 232654.1484 | AA49: -0.6498039162 | AB49: 3.409616016 | AC49: 167826.2118 | AD49: -0.2534792924 | AE49: 1.710777588 | AF49: 227150.6772 | AG49: 0.4066350221 | AH49: 5.803084174
A50: 2008-03-01 | B50: 164609.4965 | C50: 0.7216851082 | D50: 5.795281083 | E50: 171338.8552 | F50: -0.7691610467 | G50: 2.03008204 | H50: 174126.8238 | I50: 0.02532496703 | J50: 4.316592923 | K50: 178126.9147 | L50: -0.7686002581 | M50: 1.27784061 | N50: 189821.5355 | O50: 0.4475776512 | P50: 2.665264147 | Q50: 240663.6753 | R50: -0.5794143029 | S50: 5.240936529 | T50: 357429.3331 | U50: -0.3129003655 | V50: 9.4705154 | W50: 283941.9428 | X50: -0.1243565002 | Y50: 6.72834545 | Z50: 231569.4415 | AA50: -0.4662315208 | AB50: 2.606444221 | AC50: 167591.5896 | AD50: -0.1398006962 | AE50: 1.243658383 | AF50: 226536.2366 | AG50: -0.270499139 | AH50: 4.89702238
A51: 2008-04-01 | B51: 162076.679 | C51: -1.538682497 | D51: 4.495715355 | E51: 170724.5828 | F51: -0.358513215 | G51: 1.26918272 | H51: 173721.9062 | I51: -0.2325418075 | J51: 3.072032002 | K51: 177287.7513 | L51: -0.4711041864 | M51: 0.5577714745 | N51: 189706.8414 | O51: -0.06042205287 | P51: 2.3013794 | Q51: 240753.2773 | R51: 0.03723121189 | S51: 4.60584658 | T51: 356948.2904 | U51: -0.1345839939 | V51: 8.007032999 | W51: 282854.4497 | X51: -0.3829983945 | Y51: 5.303687971 | Z51: 232785.8477 | AA51: 0.5252878989 | AB51: 1.443181732 | AC51: 166835.4307 | AD51: -0.4511914314 | AE51: 1.124042335 | AF51: 226088.7495 | AG51: -0.1975344386 | AH51: 3.868521357
A52: 2008-05-01 | B52: 160749.1726 | C52: -0.8190606561 | D52: 3.667661508 | E52: 169018.3556 | F52: -0.999403349 | G52: 0.1135102259 | H52: 172012.1731 | I52: -0.9841781884 | J52: 1.745591379 | K52: 174786.8873 | L52: -1.410624245 | M52: -1.414821516 | N52: 187875.6629 | O52: -0.9652675326 | P52: 0.9665068526 | Q52: 238736.7204 | R52: -0.837603097 | S52: 3.205348929 | T52: 354927.7968 | U52: -0.5660466019 | V52: 6.254041615 | W52: 282516.1157 | X52: -0.1196141599 | Y52: 4.804049146 | Z52: 232408.4651 | AA52: -0.162115787 | AB52: 0.5098925823 | AC52: 164401.5196 | AD52: -1.45886943 | AE52: -0.233793923 | AF52: 224583.8935 | AG52: -0.6656040984 | AH52: 2.669022688
A53: 2008-06-01 | B53: 158595.3126 | C53: -1.339888726 | D53: 1.568865513 | E53: 168495.9342 | F53: -0.3090915128 | G53: -0.2826763748 | H53: 169327.9107 | I53: -1.560507227 | J53: -0.122746096 | K53: 175157.713 | L53: 0.2121587605 | M53: -1.447474374 | N53: 185785.7797 | O53: -1.112375662 | P53: -0.5151227318 | Q53: 237399.9716 | R53: -0.5599258972 | S53: 2.185770201 | T53: 352574.9938 | U53: -0.6628962258 | V53: 3.661417049 | W53: 280002.1649 | X53: -0.8898433092 | Y53: 2.680320814 | Z53: 230367.2459 | AA53: -0.8782895088 | AB53: -0.9147170825 | AC53: 162895.4506 | AD53: -0.9160918711 | AE53: -1.74296565 | AF53: 222870.9345 | AG53: -0.7627256814 | AH53: 1.104251982
A54: 2008-07-01 | B54: 154887.4609 | C54: -2.337932704 | D54: -0.5345614093 | E54: 166452.3272 | F54: -1.212852411 | G54: -1.851096946 | H54: 166233.5537 | I54: -1.827434682 | J54: -1.403337495 | K54: 173086.5831 | L54: -1.182437194 | M54: -2.794125369 | N54: 183217.7847 | O54: -1.382234435 | P54: -1.544489225 | Q54: 233539.963 | R54: -1.625951579 | S54: 0.1028285416 | T54: 347692.9124 | U54: -1.384693044 | V54: 0.9081854196 | W54: 276132.0784 | X54: -1.382163066 | Y54: 1.03643574 | Z54: 226633.0761 | AA54: -1.620963876 | AB54: -2.576942012 | AC54: 161234.9469 | AD54: -1.019367791 | AE54: -3.450935219 | AF54: 219624.9043 | AG54: -1.456461857 | AH54: -0.6801800817
A55: 2008-08-01 | B55: 151753.9557 | C55: -2.023085145 | D55: -2.352333445 | E55: 164363.9188 | F55: -1.254658539 | G55: -3.451743499 | H55: 164621.3158 | I55: -0.9698631275 | J55: -3.21404307 | K55: 170479.3262 | L55: -1.506331018 | M55: -4.238793758 | N55: 181215.0539 | O55: -1.093087572 | P55: -3.529070056 | Q55: 228928.0684 | R55: -1.97477749 | S55: -2.534828932 | T55: 343413.3118 | U55: -1.230856424 | V55: -1.69386432 | W55: 272067.9914 | X55: -1.471790993 | Y55: -1.554032922 | Z55: 223967.0863 | AA55: -1.176346299 | AB55: -4.117822824 | AC55: 161199.736 | AD55: -0.02183827781 | AE55: -4.482579943 | AF55: 216697.2694 | AG55: -1.333015916 | AH55: -2.784173725
A56: 2008-09-01 | B56: 150358.5112 | C56: -0.9195440657 | D56: -3.103558725 | E56: 161843.1722 | F56: -1.533637486 | G56: -5.912785167 | H56: 162816.0401 | I56: -1.0966233 | J56: -5.44067991 | K56: 167003.7925 | L56: -2.038683362 | M56: -7.267693682 | N56: 178474.4734 | O56: -1.512335986 | P56: -5.665864141 | Q56: 224155.8273 | R56: -2.084602902 | S56: -5.124178277 | T56: 336600.0296 | U56: -1.983988973 | V56: -4.377563892 | W56: 268072.2907 | X56: -1.468640474 | Y56: -3.724904278 | Z56: 219923.016 | AA56: -1.805653827 | AB56: -6.433076807 | AC56: 159052.8907 | AD56: -1.331792067 | AE56: -6.366631655 | AF56: 213087.2917 | AG56: -1.665908265 | AH56: -5.142457168
A57: 2008-10-01 | B57: 148791.2179 | C57: -1.042370854 | D57: -4.711728416 | E57: 158845.3657 | F57: -1.852290996 | G57: -7.68474172 | H57: 161243.0091 | I57: -0.9661400136 | J57: -7.6007661 | K57: 164891.165 | L57: -1.265017693 | M57: -8.589599693 | N57: 175899.7522 | O57: -1.442627168 | P57: -7.438504436 | Q57: 218958.8412 | R57: -2.318470199 | S57: -7.85904985 | T57: 330179.0544 | U57: -1.907597922 | V57: -6.612774649 | W57: 261626.9984 | X57: -2.404311285 | Y57: -6.700575211 | Z57: 216221.428 | AA57: -1.683128984 | AB57: -8.59507869 | AC57: 156977.2773 | AD57: -1.304983106 | AE57: -8.324861801 | AF57: 209193.3054 | AG57: -1.827413675 | AH57: -7.399707288
A58: 2008-11-01 | B58: 146435.6243 | C58: -1.583153679 | D58: -7.110140356 | E58: 157204.5939 | F58: -1.032936493 | G58: -8.52845678 | H58: 158683.174 | I58: -1.587563511 | J58: -9.17575385 | K58: 162821.2163 | L58: -1.255342361 | M58: -9.450256449 | N58: 172681.6609 | O58: -1.829503031 | P58: -8.874597577 | Q58: 213599.9131 | R58: -2.44745912 | S58: -9.569320558 | T58: 321489.5003 | U58: -2.631770242 | V58: -8.808695879 | W58: 253765.0673 | X58: -3.005015199 | Y58: -9.75962148 | Z58: 211987.196 | AA58: -1.958285098 | AB58: -10.1656511 | AC58: 154378.7629 | AD58: -1.655344315 | AE58: -9.504580141 | AF58: 204692.2739 | AG58: -2.151613545 | AH58: -9.282748661
A59: 2008-12-01 | B59: 144485.6207 | C59: -1.331645648 | D59: -8.336483902 | E59: 155619.4111 | F59: -1.008356551 | G59: -9.284698075 | H59: 157194.3884 | I59: -0.9382126509 | J59: -10.11510443 | K59: 160325.7223 | L59: -1.532658982 | M59: -10.23212576 | N59: 170655.2881 | O59: -1.173473059 | P59: -9.327143918 | Q59: 210927.6637 | R59: -1.251053592 | S59: -11.38988257 | T59: 318422.7607 | U59: -0.9539159504 | V59: -9.832047201 | W59: 246312.0663 | X59: -2.936968852 | Y59: -12.63546793 | Z59: 209365.9619 | AA59: -1.236505847 | AB59: -11.49209845 | AC59: 153038.8607 | AD59: -0.8679316617 | AE59: -9.940759886 | AF59: 201599.2311 | AG59: -1.511069645 | AH59: -10.71620422
A60: 2009-01-01 | B60: 146877.5408 | C60: 1.655472774 | D60: -8.909759852 | E60: 156592.2743 | F60: 0.6251554588 | G60: -8.92155507 | H60: 155871.4525 | I60: -0.8415923108 | J60: -10.69970526 | K60: 158540.0087 | L60: -1.11380356 | M60: -11.14342534 | N60: 169411.78 | O60: -0.7286666214 | P60: -10.03514671 | Q60: 211680.0808 | R60: 0.3567180585 | S60: -11.0719001 | T60: 315323.0619 | U60: -0.9734538958 | V60: -11.34117781 | W60: 243022.0494 | X60: -1.335710821 | Y60: -14.4298795 | Z60: 207048.5746 | AA60: -1.106859654 | AB60: -11.58414058 | AC60: 153914.2727 | AD60: 0.5720193892 | AE60: -8.521958397 | AF60: 200403.3201 | AG60: -0.5932120832 | AH60: -11.41640755
A61: 2009-02-01 | B61: 150167.6315 | C61: 2.240023048 | D61: -8.115040614 | E61: 154991.5083 | F61: -1.022250964 | G61: -10.23672137 | H61: 157780.7814 | I61: 1.224938189 | J61: -9.364487405 | K61: 157903.4002 | L61: -0.4015443899 | M61: -12.03476769 | N61: 172560.2672 | O61: 1.858481877 | P61: -8.68654184 | Q61: 212392.4317 | R61: 0.3365224022 | S61: -12.25854949 | T61: 313397.1614 | U61: -0.6107705903 | V61: -12.59348027 | W61: 244934.9867 | X61: 0.7871455756 | Y61: -13.84492485 | Z61: 207922.0906 | AA61: 0.4218894489 | AB61: -10.63039621 | AC61: 154566.6653 | AD61: 0.4238675288 | AE61: -7.900760181 | AF61: 201116.8091 | AG61: 0.3560265815 | AH61: -11.46105676
A62: 2009-03-01 | B62: 149589.2525 | C62: -0.3851555878 | D62: -9.124773645 | E62: 154463.3575 | F62: -0.3407611293 | G62: -9.849194859 | H62: 156088.4893 | I62: -1.072559116 | J62: -10.35930833 | K62: 157509.8619 | L62: -0.2492272937 | M62: -11.57436137 | N62: 170145.8262 | O62: -1.39918713 | P62: -10.36537255 | Q62: 209826.3419 | R62: -1.20818325 | S62: -12.81345569 | T62: 310310.7193 | U62: -0.9848341002 | V62: -13.18263764 | W62: 243287.5469 | X62: -0.6726029015 | Y62: -14.31785507 | Z62: 205455.9495 | AA62: -1.186089044 | AB62: -11.2767435 | AC62: 153619.9739 | AD62: -0.6124809706 | AE62: -8.336704574 | AF62: 199383.5821 | AG62: -0.861801167 | AH62: -11.98600932
A63: 2009-04-01 | B63: 147040.6112 | C63: -1.703759628 | D63: -9.277132175 | E63: 152639.2044 | F63: -1.18096172 | G63: -10.59330655 | H63: 154609.4475 | I63: -0.9475661778 | J63: -11.00175508 | K63: 156427.2257 | L63: -0.6873450104 | M63: -11.76647877 | N63: 169371.5315 | O63: -0.4550770809 | P63: -10.71933399 | Q63: 207844.3552 | R63: -0.9445843088 | S63: -13.66914813 | T63: 309245.9464 | U63: -0.3431311931 | V63: -13.36393682 | W63: 244371.4106 | X63: 0.4455072434 | Y63: -13.60524438 | Z63: 204251.3725 | AA63: -0.5862945233 | AB63: -12.25782214 | AC63: 151049.693 | AD63: -1.67314237 | AE63: -9.461861685 | AF63: 198315.6056 | AG63: -0.5356391516 | AH63: -12.28417776
A64: 2009-05-01 | B64: 143321.9841 | C64: -2.528979621 | D64: -10.84123061 | E64: 152577.7745 | F64: -0.04024515671 | G64: -9.727098005 | H64: 151232.8072 | I64: -2.183980617 | J64: -12.08017173 | K64: 155911.0069 | L64: -0.330005726 | M64: -10.79936872 | N64: 165271.6471 | O64: -2.420645557 | P64: -12.03136984 | Q64: 206418.0383 | R64: -0.6862427612 | S64: -13.53737371 | T64: 312849.5969 | U64: 1.16530241 | V64: -11.85542532 | W64: 241104.4244 | X64: -1.336893745 | Y64: -14.65816955 | Z64: 202991.604 | AA64: -0.6167735792 | AB64: -12.65739656 | AC64: 148363.2228 | AD64: -1.778534024 | AE64: -9.755564803 | AF64: 196756.7153 | AG64: -0.7860653652 | AH64: -12.39054936
A65: 2009-06-01 | B65: 143662.3544 | C65: 0.2374864563 | D65: -9.415762627 | E65: 152701.5033 | F65: 0.08109233137 | G65: -9.373775636 | H65: 151857.9229 | I65: 0.4133466638 | J65: -10.31725229 | K65: 156660.0841 | L65: 0.4804517796 | M65: -10.56055631 | N65: 168847.9551 | O65: 2.163896891 | P65: -9.116857428 | Q65: 208299.6804 | R65: 0.9115686047 | S65: -12.25791691 | T65: 315184.6808 | U65: 0.7463918591 | V65: -10.60492481 | W65: 243745.9868 | X65: 1.095609238 | Y65: -12.94853494 | Z65: 203819.2814 | AA65: 0.4077397132 | AB65: -11.52419234 | AC65: 148305.8613 | AD65: -0.03866293171 | AE65: -8.956413048 | AF65: 198255.4893 | AG65: 0.7617396748 | AH65: -11.04470857
A66: 2009-07-01 | B66: 142678.1858 | C66: -0.685056748 | D66: -7.88267499 | E66: 154293.0484 | F66: 1.042258945 | G66: -7.304961699 | H66: 153780.9799 | I66: 1.266352759 | J66: -7.491010993 | K66: 158695.1946 | L66: 1.29906131 | M66: -8.314560361 | N66: 169572.1222 | O66: 0.4288870961 | P66: -7.447782739 | Q66: 210211.7116 | R66: 0.9179232852 | S66: -9.988976237 | T66: 319208.1915 | U66: 1.276556545 | V66: -8.192493976 | W66: 244725.6965 | X66: 0.4019387916 | Y66: -11.37368108 | Z66: 204891.1642 | AA66: 0.5258986118 | AB66: -9.593441645 | AC66: 148548.645 | AD66: 0.1637047574 | AE66: -7.868208557 | AF66: 199781.1595 | AG66: 0.7695475506 | AH66: -9.03528898
A67: 2009-08-01 | B67: 144063.4417 | C67: 0.9708953636 | D67: -5.067751945 | E67: 155692.6404 | F67: 0.9070998068 | G67: -5.275658142 | H67: 156232.8915 | I67: 1.594417943 | J67: -5.095588176 | K67: 159821.4929 | L67: 0.7097242697 | M67: -6.251686622 | N67: 171799.9069 | O67: 1.313768249 | P67: -5.195565605 | Q67: 213097.0416 | R67: 1.372582864 | S67: -6.915284337 | T67: 322401.2837 | U67: 1.000316495 | V67: -6.118582896 | W67: 248391.3164 | X67: 1.497848393 | Y67: -8.70248458 | Z67: 205669.3695 | AA67: 0.3798139995 | AB67: -8.169824003 | AC67: 150840.4631 | AD67: 1.542806496 | AE67: -6.426358422 | AF67: 202057.6245 | AG67: 1.139479318 | AH67: -6.755804951
A68: 2009-09-01 | B68: 147534.5081 | C68: 2.409401291 | D68: -1.87817976 | E68: 157368.3307 | F68: 1.076281042 | G68: -2.76492444 | H68: 158819.1928 | I68: 1.655414098 | J68: -2.454824036 | K68: 161335.4692 | L68: 0.9472920321 | M68: -3.39412849 | N68: 171591.3848 | O68: -0.1213749813 | P68: -3.85662359 | Q68: 214574.4454 | R68: 0.6933009437 | S68: -4.274429096 | T68: 330015.8849 | U68: 2.3618396 | V68: -1.956073723 | W68: 252157.0306 | X68: 1.516040991 | Y68: -5.936928482 | Z68: 207319.5089 | AA68: 0.8023262669 | AB68: -5.730872267 | AC68: 152404.6997 | AD68: 1.037013904 | AE68: -4.179861748 | AF68: 204651.7121 | AG68: 1.28383552 | AH68: -3.958743627
A69: 2009-10-01 | B69: 150486.7793 | C69: 2.001071655 | D69: 1.139557441 | E69: 158507.9062 | F69: 0.7241453265 | G69: -0.2124452942 | H69: 160806.0418 | I69: 1.251013179 | J69: -0.2709992482 | K69: 162045.0051 | L69: 0.4397891248 | M69: -1.726083947 | N69: 171925.6411 | O69: 0.1947978277 | P69: -2.259304555 | Q69: 217122.3868 | R69: 1.187439345 | S69: -0.8387213091 | T69: 333155.6209 | U69: 0.9513893744 | V69: 0.9015007047 | W69: 256101.2608 | X69: 1.564196009 | Y69: -2.112067052 | Z69: 210517.7842 | AA69: 1.542679357 | AB69: -2.637871693 | AC69: 155282.5363 | AD69: 1.888285982 | AE69: -1.07960912 | AF69: 206995.7382 | AG69: 1.145373343 | AH69: -1.050495909
A70: 2009-11-01 | B70: 151460.9588 | C70: 0.6473522081 | D70: 3.431770479 | E70: 159825.0854 | F70: 0.8309864597 | G70: 1.666930602 | H70: 161748.1271 | I70: 0.5858519258 | J70: 1.9314922 | K70: 162746.6317 | L70: 0.4329825606 | M70: -0.04580771132 | N70: 171180.6489 | O70: -0.4333223345 | P70: -0.869236495 | Q70: 215843.7196 | R70: -0.5889154129 | S70: 1.05047162 | T70: 335004.3654 | U70: 0.5549191965 | V70: 4.203827833 | W70: 256120.5826 | X70: 0.007544591532 | Y70: 0.9282267462 | Z70: 211095.785 | AA70: 0.2745615214 | AB70: -0.4205022876 | AC70: 155617.727 | AD70: 0.215858569 | AE70: 0.8025482721 | AF70: 207417.7794 | AG70: 0.2038888037 | AH70: 1.331513624
A71: 2009-12-01 | B71: 148865.045 | C71: -1.713916147 | D71: 3.031045092 | E71: 160690.0838 | F71: 0.541215678 | G71: 3.258380615 | H71: 164287.6196 | I71: 1.570029023 | J71: 4.512394721 | K71: 164818.6264 | L71: 1.273141388 | M71: 2.802360086 | N71: 175496.3024 | O71: 2.521110632 | P71: 2.836720938 | Q71: 222185.0754 | R71: 2.937938538 | S71: 5.337095891 | T71: 340746.1713 | U71: 1.713949562 | V71: 7.010620259 | W71: 262322.2154 | X71: 2.421372312 | Y71: 6.499945098 | Z71: 218779.0926 | AA71: 3.639725738 | AB71: 4.496017688 | AC71: 157294.7069 | AD71: 1.077627801 | AE71: 2.780892464 | AF71: 211553.2022 | AG71: 1.99376487 | AH71: 4.937504522
A72: 2010-01-01 | B72: 151621.7475 | C72: 1.851813166 | D72: 3.230042305 | E72: 161229.0527 | F72: 0.3354089564 | G72: 2.961051836 | H72: 165484.5754 | I72: 0.7285732893 | J72: 6.167340285 | K72: 167934.9919 | L72: 1.890784775 | M72: 5.925938331 | N72: 179860.6235 | O72: 2.486845032 | P72: 6.167719559 | Q72: 225128.1977 | R72: 1.324626459 | S72: 6.353038441 | T72: 348253.7215 | U72: 2.203267663 | V72: 10.44346688 | W72: 266777.7279 | X72: 1.698488416 | Y72: 9.775112384 | Z72: 222195.2511 | AA72: 1.561464791 | AB72: 7.315518388 | AC72: 157099.5543 | AD72: -0.1240681119 | AE72: 2.069516725 | AF72: 214802.067 | AG72: 1.53571998 | AH72: 7.184884431
A73: 2010-02-01 | B73: 153630.7665 | C73: 1.325020383 | D73: 2.306179409 | E73: 161886.0412 | F73: 0.4074876643 | G73: 4.448329476 | H73: 166659.3691 | I73: 0.7099112986 | J73: 5.627166726 | K73: 169137.4354 | L73: 0.7160172341 | M73: 7.114498565 | N73: 182690.4142 | O73: 1.573324179 | P73: 5.870497944 | Q73: 231069.1867 | R73: 2.638935977 | S73: 8.793512493 | T73: 356722.4331 | U73: 2.43176485 | V73: 13.82439824 | W73: 272011.8469 | X73: 1.961977496 | Y73: 11.05471312 | Z73: 226149.2581 | AA73: 1.779519124 | AB73: 8.766344828 | AC73: 158231.1508 | AD73: 0.720305335 | AE73: 2.370812268 | AF73: 218402.3139 | AG73: 1.676076455 | AH73: 8.594758835
A74: 2010-03-01 | B74: 155615.1663 | C74: 1.291668237 | D74: 4.02830667 | E74: 162167.7903 | F74: 0.1740415871 | G74: 4.98787086 | H74: 164672.9292 | I74: -1.191916079 | J74: 5.499726476 | K74: 167282.8082 | L74: -1.096520818 | M74: 6.204656781 | N74: 179780.2533 | O74: -1.592946646 | P74: 5.662452839 | Q74: 228963.4627 | R74: -0.9112958694 | S74: 9.120456789 | T74: 355546.7728 | U74: -0.3295728316 | V74: 14.57766385 | W74: 270920.7861 | X74: -0.4011078187 | Y74: 11.35826289 | Z74: 223545.2248 | AA74: -1.151466643 | AB74: 8.804454361 | AC74: 156885.1257 | AD74: -0.850670075 | AE74: 2.125473493 | AF74: 216980.1502 | AG74: -0.6511669332 | AH74: 8.825484973
A75: 2010-04-01 | B75: 153575.1012 | C75: -1.310968099 | D75: 4.444003521 | E75: 162828.6389 | F75: 0.4075091403 | G75: 6.675502884 | H75: 163821.1262 | I75: -0.5172696357 | J75: 5.958030889 | K75: 166223.9029 | L75: -0.6330030313 | M75: 6.262769931 | N75: 177893.8569 | O75: -1.049279005 | P75: 5.031734255 | Q75: 228808.0485 | R75: -0.06787729811 | S75: 10.08624618 | T75: 352819.5562 | U75: -0.7670486278 | V75: 14.09027678 | W75: 270547.8478 | X75: -0.1376558279 | Y75: 10.71174292 | Z75: 223880.046 | AA75: 0.1497778451 | AB75: 9.610057089 | AC75: 156139.7775 | AD75: -0.4750916644 | AE75: 3.369807936 | AF75: 216236.552 | AG75: -0.342703336 | AH75: 9.036579013
A76: 2010-05-01 | B76: 151459.2721 | C76: -1.377716204 | D76: 5.677627216 | E76: 162427.5596 | F76: -0.2463198419 | G76: 6.45558317 | H76: 162879.7576 | I76: -0.5746319577 | J76: 7.701338539 | K76: 166708.3294 | L76: 0.2914300788 | M76: 6.925311255 | N76: 177011.9282 | O76: -0.4957611964 | P76: 7.103626858 | Q76: 229587.9653 | R76: 0.3408607453 | S76: 11.22475883 | T76: 351380.0759 | U76: -0.4079933316 | V76: 12.31597529 | W76: 272635.8985 | X76: 0.7717860808 | Y76: 13.07793255 | Z76: 224825.1783 | AA76: 0.4221600963 | AB76: 10.75590014 | AC76: 155889.0112 | AD76: -0.1606037735 | AE76: 5.072543052 | AF76: 216342.2447 | AG76: 0.04887826763 | AH76: 9.954185977
A77: 2010-06-01 | B77: 151372.5034 | C77: -0.05728848807 | D77: 5.366854094 | E77: 160658.53 | F77: -1.089119118 | G77: 5.210837141 | H77: 162362.4403 | I77: -0.3176069109 | J77: 6.917332419 | K77: 167709.0645 | L77: 0.6002909997 | M77: 7.052837014 | N77: 178665.3076 | O77: 0.9340497401 | P77: 5.814315327 | Q77: 231289.37 | R77: 0.7410687708 | S77: 11.03683387 | T77: 355819.0023 | U77: 1.263283446 | V77: 12.89222603 | W77: 273684.8834 | X77: 0.3847567338 | Y77: 12.28282649 | Z77: 224091.0328 | AA77: -0.3265405799 | AB77: 9.945943906 | AC77: 156397.8755 | AD77: 0.3264273288 | AE77: 5.456301045 | AF77: 217108.9496 | AG77: 0.3543944373 | AH77: 9.509678824
A78: 2010-07-01 | B78: 150687.9102 | C78: -0.4522572992 | D78: 5.61383954 | E78: 159662.5194 | F78: -0.6199550202 | G78: 3.480047226 | H78: 162522.962 | I78: 0.09886632855 | J78: 5.684696589 | K78: 166875.0258 | L78: -0.4973128044 | M78: 5.154429044 | N78: 178338.8063 | O78: -0.1827446581 | P78: 5.169885251 | Q78: 232874.6819 | R78: 0.6854235916 | S78: 10.78102173 | T78: 359664.4885 | U78: 1.080742247 | V78: 12.67395328 | W78: 275259.6483 | X78: 0.575393451 | Y78: 12.4768066 | Z78: 224294.2376 | AA78: 0.09067956909 | AB78: 9.469941512 | AC78: 156140.066 | AD78: -0.1648420798 | AE78: 5.110393969 | AF78: 217722.3969 | AG78: 0.2825527496 | AH78: 8.980445087
A79: 2010-08-01 | B79: 149938.1003 | C79: -0.4975912899 | D79: 4.077827472 | E79: 160017.4578 | F79: 0.2223054053 | G79: 2.777791813 | H79: 163736.5623 | I79: 0.7467254288 | J79: 4.802875245 | K79: 166739.7095 | L79: -0.08108841496 | M79: 4.328714775 | N79: 180245.8133 | O79: 1.069316873 | P79: 4.916129778 | Q79: 233716.3162 | R79: 0.3614107871 | S79: 9.67600228 | T79: 362137.0519 | U79: 0.6874638545 | V79: 12.32494107 | W79: 275650.5161 | X79: 0.1419996663 | Y79: 10.97429658 | Z79: 223914.1376 | AA79: -0.1694649111 | AB79: 8.870921372 | AC79: 156555.6386 | AD79: 0.2661537354 | AE79: 3.78888751 | AF79: 218424.8051 | AG79: 0.3226164495 | AH79: 8.100253894
A80: 2010-09-01 | B80: 151028.3202 | C80: 0.7271133611 | D80: 2.368132164 | E80: 161296.6592 | F80: 0.7994136696 | G80: 2.496263676 | H80: 163929.0679 | I80: 0.1175703172 | J80: 3.217416651 | K80: 166635.8634 | L80: -0.06228039431 | M80: 3.285324788 | N80: 180169.3308 | O80: -0.04243231221 | P80: 4.999054021 | Q80: 233505.2335 | R80: -0.09031574726 | S80: 8.822480296 | T80: 360292.3615 | U80: -0.5093901307 | V80: 9.17424828 | W80: 274769.2921 | X80: -0.3196888733 | Y80: 8.96753165 | Z80: 224495.1543 | AA80: 0.2594819203 | AB80: 8.284625734 | AC80: 156506.0892 | AD80: -0.03164971267 | AE80: 2.691117459 | AF80: 218322.5657 | AG80: -0.04680761398 | AH80: 6.680058264
A81: 2010-10-01 | B81: 151523.5406 | C81: 0.3278990459 | D81: 0.6889384843 | E81: 160810.1731 | F81: -0.3016095289 | G81: 1.452461916 | H81: 162544.6396 | I81: -0.8445288642 | J81: 1.08117693 | K81: 166370.8341 | L81: -0.159046932 | M81: 2.66952325 | N81: 180043.0873 | O81: -0.07006937026 | P81: 4.721486664 | Q81: 231645.8269 | R81: -0.7963018887 | S81: 6.689056991 | T81: 359520.3465 | U81: -0.2142745825 | V81: 7.913636742 | W81: 273274.5855 | X81: -0.5439860457 | Y81: 6.705677534 | Z81: 223975.0489 | AA81: -0.23167779 | AB81: 6.392459792 | AC81: 155633.0743 | AD81: -0.5578153273 | AE81: 0.225742029 | AF81: 217469.0658 | AG81: -0.3909352453 | AH81: 5.059682717
A82: 2010-11-01 | B82: 149632.4483 | C82: -1.248051861 | D82: -1.207248743 | E82: 159720.0809 | F82: -0.6778751627 | G82: -0.06569962965 | H82: 161574.7903 | I82: -0.5966664308 | J82: -0.1071646208 | K82: 165259.3464 | L82: -0.6680784861 | M82: 1.543942691 | N82: 178073.8378 | O82: -1.093765678 | P82: 4.026850563 | Q82: 228760.7563 | R82: -1.245466289 | S82: 5.984439452 | T82: 359499.8204 | U82: -0.005709299766 | V82: 7.311980847 | W82: 270783.441 | X82: -0.9115902337 | Y82: 5.724982481 | Z82: 223282.7892 | AA82: -0.3090789165 | AB82: 5.773210594 | AC82: 153792.5678 | AD82: -1.182593371 | AE82: -1.172847829 | AF82: 215945.1346 | AG82: -0.7007577226 | AH82: 4.111197801
A83: 2010-12-01 | B83: 147836.2115 | C83: -1.200432679 | D83: -0.691118254 | E83: 159509.5099 | F83: -0.1318375557 | G83: -0.7346899892 | H83: 160257.7424 | I83: -0.8151320772 | J83: -2.452940313 | K83: 164282.4135 | L83: -0.5911513586 | M83: -0.3253351182 | N83: 177163.005 | O83: -0.5114916522 | P83: 0.9497080826 | Q83: 228921.026 | R83: 0.07005998846 | S83: 3.03168457 | T83: 362388.7134 | U83: 0.8035867465 | V83: 6.351514388 | W83: 270636.1219 | X83: -0.05440478966 | Y83: 3.169348976 | Z83: 225650.6487 | AA83: 1.060475579 | AB83: 3.140865051 | AC83: 152479.7879 | AD83: -0.8536042568 | AE83: -3.061081344 | AF83: 216018.5815 | AG83: 0.03401185813 | AH83: 2.110759503
A84: 2011-01-01 | B84: 147574.4265 | C84: -0.1770777019 | D84: -2.669353859 | E84: 159071.2577 | F84: -0.2747498495 | G84: -1.338341319 | H84: 160769.8307 | I84: 0.3195404757 | J84: -2.849053819 | K84: 164280.9671 | L84: -0.0008804484358 | M84: -2.17585671 | N84: 176929.3513 | O84: -0.1318862702 | P84: -1.629746485 | Q84: 229073.3668 | R84: 0.06654729176 | S84: 1.75241002 | T84: 364661.2147 | U84: 0.6270894333 | V84: 4.71136192 | W84: 273219.5763 | X84: 0.9545859553 | Y84: 2.414687488 | Z84: 224301.7233 | AA84: -0.5977936779 | AB84: 0.9480275718 | AC84: 152789.4672 | AD84: 0.2030952911 | AE84: -2.74353871 | AF84: 216546.5685 | AG84: 0.2444173867 | AH84: 0.8121437194
A85: 2011-02-01 | B85: 151217.3806 | C85: 2.468553816 | D85: -1.570900117 | E85: 158659.0192 | F85: -0.2591533706 | G85: -1.993391174 | H85: 159684.9958 | I85: -0.6747752041 | J85: -4.184807194 | K85: 164267.0602 | L85: -0.008465332122 | M85: -2.879537101 | N85: 175816.3851 | O85: -0.6290455135 | P85: -3.762665406 | Q85: 231008.3381 | R85: 0.8446950358 | S85: -0.0263334772 | T85: 370295.3831 | U85: 1.545041852 | V85: 3.804905091 | W85: 277134.356 | X85: 1.432832809 | Y85: 1.883193404 | Z85: 225319.7331 | AA85: 0.4538572822 | AB85: -0.3668042265 | AC85: 153557.4636 | AD85: 0.5026501213 | AE85: -2.953708604 | AF85: 218068.1533 | AG85: 0.7026594008 | AH85: -0.1530022953
A86: 2011-03-01 | B86: 150302.4143 | C86: =B86/B85*100-100 -> -0.6050668891 | D86: -3.414032276 | E86: 157234.8156 | F86: =E86/E85*100-100 -> -0.8976505462 | G86: -3.041895457 | H86: 160326.9368 | I86: 0.4020045713 | J86: -2.639166307 | K86: 163364.9353 | L86: =K86/K85*100-100 -> -0.5491818614 | M86: -2.342065484 | N86: 175190.7615 | O86: =N86/N85*100-100 -> -0.3558392279 | P86: -2.552834235 | Q86: 231263.0647 | R86: =Q86/Q85*100-100 -> 0.1102672859 | S86: 1.004353271 | T86: 373094.8832 | U86: =T86/T85*100-100 -> 0.756018094 | V86: 4.935527947 | W86: 279788.9698 | X86: =W86/W85*100-100 -> 0.9578797168 | Y86: 3.273349327 | Z86: 222209.6824 | AA86: =Z86/Z85*100-100 -> -1.380283283 | AB86: -0.5974372193 | AC86: 153296.0798 | AD86: =AC86/AC85*100-100 -> -0.1702188882 | AE86: -2.287690344 | AF86: 218196.6491 | AG86: =AF86/AF85*100-100 -> 0.05892459384 | AH86: 0.5606498422
A87: 2011-04-01 | B87: 149172.6108 | C87: -0.7516868861 | D87: -2.866669351 | E87: 155806.3631 | F87: -0.9084836186 | G87: -4.312678535 | H87: 159543.376 | I87: -0.4887268289 | J87: -2.611232299 | K87: 162315.7913 | L87: -0.6422087556 | M87: -2.351112875 | N87: 174481.9232 | O87: -0.404609399 | P87: -1.917960377 | Q87: 230066.6129 | R87: -0.5173553405 | S87: 0.5500525139 | T87: 368711.1364 | U87: -1.174968349 | V87: 4.504166482 | W87: 274646.2057 | X87: -1.838086779 | Y87: 1.514836636 | Z87: 222008.3184 | AA87: -0.09061893677 | AB87: -0.8360404065 | AC87: 151263.1547 | AD87: -1.326142905 | AE87: -3.123241803 | AF87: 216131.4021 | AG87: -0.9465072081 | AH87: -0.04862726847
A88: 2011-05-01 | B88: 147472.3811 | C88: -1.139773371 | D88: -2.632318868 | E88: 154229.2841 | F88: -1.012204477 | G88: -5.047342651 | H88: 157696.6211 | I88: =H88/H87*100-100 -> -1.157525255 | J88: =H88/H76*100-100 -> -3.182185779 | K88: 161243.6051 | L88: -0.6605557347 | M88: -3.278015155 | N88: 174257.4942 | O88: -0.1286259492 | P88: -1.556072539 | Q88: 228004.7562 | R88: -0.8961999093 | S88: -0.6895871788 | T88: 359740.891 | U88: -2.432865312 | V88: 2.379422081 | W88: 270795.5614 | X88: -1.402038048 | Y88: -0.6750163969 | Z88: 220182.6345 | AA88: -0.8223493088 | AB88: -2.064957214 | AC88: 149589.835 | AD88: -1.106230896 | AE88: -4.04080835 | AF88: 213449.4699 | AG88: -1.24088037 | AH88: -1.337128934
A89: 2011-06-01 | B89: 145926.558 | C89: -1.048211926 | D89: -3.5977111 | E89: 154524.9824 | F89: 0.1917264157 | G89: -3.817754097 | H89: 156191.0638 | I89: -0.9547175409 | J89: -3.800987723 | K89: 162124.2622 | L89: 0.5461655837 | M89: -3.330053948 | N89: 172550.8519 | O89: -0.9793795528 | P89: -3.422296028 | Q89: 226451.019 | R89: -0.6814494627 | S89: -2.091903779 | T89: 354914.0293 | U89: -1.341760668 | V89: -0.254335208 | W89: 268412.3316 | X89: -0.8800845417 | Y89: -1.926504601 | Z89: 218947.6586 | AA89: -0.5608870614 | AB89: -2.29521643 | AC89: 149789.6066 | AD89: 0.1335462568 | AE89: -4.225293258 | AF89: 211977.1235 | AG89: -0.689786882 | AH89: -2.363710057
A90: 2011-07-01 | B90: 142219.3214 | C90: -2.540481122 | D90: -5.619952396 | E90: 155786.6541 | F90: 0.8164839725 | G90: -2.427536086 | H90: 156146.1436 | I90: -0.02875978062 | J90: -3.923641516 | K90: 162586.9985 | L90: 0.2854208124 | M90: -2.569603968 | N90: 171680.8266 | O90: -0.5042138408 | P90: -3.733331986 | Q90: 227390.5512 | R90: 0.414894252 | S90: -2.354970781 | T90: 360605.1366 | U90: 1.603517152 | V90: 0.26153487 | W90: 270183.4067 | X90: 0.65983375 | Y90: -1.844164826 | Z90: 218691.5632 | AA90: -0.1169665135 | AB90: -2.497912782 | AC90: 150682.8238 | AD90: 0.596314512 | AE90: -3.495094089 | AF90: 212947.0668 | AG90: 0.4575697976 | AH90: -2.19331137
A91: 2011-08-01 | B91: 140314.5084 | C91: -1.339348934 | D91: -6.418376551 | E91: 156347.5888 | F91: 0.3600659445 | G91: -2.293417886 | H91: 157730.206 | I91: 1.014474208 | J91: -3.668304902 | K91: 163070.3222 | L91: 0.2972708114 | M91: -2.20066791 | N91: 172873.0131 | O91: 0.6944202983 | P91: -4.090414087 | Q91: 228234.4298 | R91: 0.3711141785 | S91: -2.345530022 | T91: 367052.3201 | U91: 1.787879008 | V91: 1.357295038 | W91: 272055.1953 | X91: 0.692784443 | Y91: -1.304304029 | Z91: 218469.0893 | AA91: -0.1017295304 | AB91: -2.431757262 | AC91: 152504.9549 | AD91: 1.209249361 | AE91: -2.587376467 | AF91: 214410.1896 | AG91: 0.6870828519 | AH91: -1.837985192
A92: 2011-09-01 | B92: 140010.6845 | C92: -0.2165306408 | D92: -7.295079304 | E92: 155716.6735 | F92: -0.4035337305 | G92: -3.459455213 | H92: 157473.063 | I92: -0.1630271281 | J92: -3.938291753 | K92: 162915.4451 | L92: -0.09497564483 | M92: -2.232663574 | N92: 172767.8742 | O92: -0.06081856472 | P92: -4.108055752 | Q92: 227661.6308 | R92: -0.2509695757 | S92: -2.502557487 | T92: 368955.8934 | U92: 0.5186108767 | V92: 2.404583838 | W92: 270684.2205 | X92: -0.5039325859 | Y92: -1.486727832 | Z92: 220050.9603 | AA92: 0.7240708605 | AB92: -1.979639161 | AC92: 152785.9589 | AD92: 0.1842589738 | AE92: -2.376987564 | AF92: 214360.7469 | AG92: -0.0230598377 | AH92: -1.814662979
A93: 2011-10-01 | B93: 141875.924 | C93: 1.332212284 | D93: -6.367074433 | E93: 155040.3616 | F93: -0.434322135 | G93: -3.587964282 | H93: 156906.8247 | I93: -0.3595778748 | J93: -3.468471783 | K93: 162633.0675 | L93: -0.1733277163 | M93: -2.246647758 | N93: 173881.214 | O93: 0.6444136558 | P93: -3.422443682 | Q93: 227879.758 | R93: 0.09581202868 | S93: -1.625787497 | T93: 370961.3309 | U93: 0.5435439792 | V93: 3.182291211 | W93: 269762.7885 | X93: -0.3404084719 | Y93: -1.285079966 | Z93: 219976.5627 | AA93: -0.03380923692 | AB93: -1.785237306 | AC93: 155682.8197 | AD93: 1.896025511 | AE93: 0.03196327967 | AF93: 214614.2182 | AG93: 0.1182451876 | AH93: -1.312760341
A94: 2011-11-01 | B94: 140894.9447 | C94: -0.6914346574 | D94: -5.839310695 | E94: 154105.6975 | F94: -0.6028521085 | G94: -3.515139366 | H94: 156340.0017 | I94: -0.3612481144 | J94: -3.239854804 | K94: 163054.2393 | L94: 0.258970571 | M94: -1.334331237 | N94: 172254.6045 | O94: -0.9354716579 | P94: -3.267876584 | Q94: 225864.4042 | R94: -0.8843935419 | S94: -1.266105306 | T94: 369720.6154 | U94: -0.334459526 | V94: 2.843059828 | W94: 267393.8439 | X94: -0.8781584316 | Y94: -1.251774177 | Z94: 218809.9553 | AA94: -0.53033259 | AB94: -2.003214799 | AC94: 155124.9872 | AD94: -0.3583134603 | AE94: 0.8663743478 | AF94: 213368.4234 | AG94: -0.5804810179 | AH94: -1.193224928
A95: 2011-12-01 | B95: 140778.6342 | C95: -0.0825512256 | D95: -4.773916473 | E95: 152974.3872 | F95: -0.7341131954 | G95: -4.097011303 | H95: 157672.9269 | I95: 0.8525810093 | J95: -1.612911463 | K95: 162504.7849 | L95: -0.3369764548 | M95: -1.082056543 | N95: 173624.4208 | O95: 0.795227658 | P95: -1.997360666 | Q95: 225968.9006 | R95: 0.04626510549 | S95: -1.289582472 | T95: 371392.3241 | U95: 0.4521545804 | V95: 2.484517434 | W95: 266127.0702 | X95: -0.4737482559 | Y95: -1.66609382 | Z95: 219628.7492 | AA95: 0.3742032221 | AB95: -2.668682524 | AC95: 154296.1722 | AD95: -0.5342885038 | AE95: 1.191229548 | AF95: 213453.491 | AG95: 0.03986887541 | AH95: -1.187439765
A96: 2012-01-01 | B96: 142159.8427 | C96: 0.9811207933 | D96: -3.66905294 | E96: 153276.2921 | F96: 0.1973565179 | G96: -3.642999791 | H96: 157881.2048 | I96: 0.1320949393 | J96: -1.796746242 | K96: 163115.4369 | L96: 0.3757747598 | M96: -0.7094736771 | N96: 174052.4857 | O96: 0.246546491 | P96: -1.625996794 | Q96: 227034.3729 | R96: 0.4715128086 | S96: -0.8901051613 | T96: 372625.9918 | U96: 0.3321737246 | V96: 2.184158015 | W96: 267755.4854 | X96: 0.6118938855 | Y96: -1.999889948 | Z96: 220156.527 | AA96: 0.2403045169 | AB96: -1.848044788 | AC96: 152673.9072 | AD96: -1.051396808 | AE96: -0.07563349217 | AF96: 214164.256 | AG96: 0.3329835441 | AH96: -1.100138657
A97: 2012-02-01 | B97: 144868.0845 | C97: 1.905068116 | D97: =B97/B85*100-100 -> -4.198787274 | E97: 155144.1688 | F97: 1.218633778 | G97: =E97/E85*100-100 -> -2.215348619 | H97: 158434.417 | I97: 0.3503977113 | J97: -0.783153611 | K97: 163984.2889 | L97: 0.5326608065 | M97: =K97/K85*100-100 -> -0.172141199 | N97: 174317.2941 | O97: 0.1521428641 | P97: =N97/N85*100-100 -> -0.8526457842 | Q97: 228016.5866 | R97: 0.4326277359 | S97: =Q97/Q85*100-100 -> -1.295083795 | T97: 372610.6572 | U97: -0.004115288348 | V97: =T97/T85*100-100 -> 0.6252506068 | W97: 268982.8091 | X97: 0.4583747944 | Y97: =W97/W85*100-100 -> -2.941370038 | Z97: 219852.6813 | AA97: -0.1380135007 | AB97: =Z97/Z85*100-100 -> -2.426352841 | AC97: 152796.4336 | AD97: 0.08025366689 | AE97: =AC97/AC85*100-100 -> -0.4955995136 | AF97: 214959.4207 | AG97: 0.3712873342 | AH97: =AF97/AF85*100-100 -> -1.425578438
A98: 2012-03-01 | B98: 146805.232 | C98: 1.337180296 | D98: -2.326763923 | E98: 155821.7762 | F98: 0.4367598234 | G98: -0.898681017 | H98: 157027.5012 | I98: -0.8880114352 | J98: -2.057942103 | K98: 164314.9705 | L98: 0.2016544836 | M98: 0.5815417372 | N98: 173529.5364 | O98: -0.4519102922 | P98: -0.9482378567 | Q98: 230514.1914 | R98: 1.095361016 | S98: -0.3238188415 | T98: 377675.415 | U98: 1.359262745 | V98: 1.227712329 | W98: 274380.1212 | X98: 2.006563959 | Y98: -1.933188645 | Z98: 220110.7668 | AA98: 0.1173901818 | AB98: -0.9445653537 | AC98: 153809.9892 | AD98: 0.6633372275 | AE98: 0.3352397474 | AF98: 216756.9327 | AG98: 0.8362098871 | AH98: -0.6598251733
A99: 2012-04-01 | B99: 145743.2405 | C99: -0.723401654 | D99: -2.29892758 | E99: 154710.1728 | F99: -0.7133812839 | G99: -0.7035593818 | H99: 158055.544 | I99: 0.6546896357 | J99: -0.932556425 | K99: 164168.1401 | L99: -0.0893591253 | M99: 1.141200597 | N99: 172117.0748 | O99: -0.8139602942 | P99: -1.355354363 | Q99: 229972.417 | R99: -0.2350286486 | S99: -0.04094290279 | T99: 384289.1039 | U99: 1.751156835 | V99: 4.224978845 | W99: 276105.3015 | X99: 0.6287555541 | Y99: 0.531263746 | Z99: 220611.7021 | AA99: 0.2275832811 | AB99: -0.6290828769 | AC99: 154146.6859 | AD99: 0.2189043017 | AE99: 1.906301084 | AF99: 217525.251 | AG99: 0.3544607856 | AH99: 0.6449081007
A100: 2012-05-01 | B100: 144608.6933 | C100: -0.7784561654 | D100: -1.941846884 | E100: 153649.0173 | F100: -0.6858990069 | G100: -0.3762364876 | H100: 158195.8094 | I100: 0.0887443797 | J100: 0.3165497614 | K100: 163611.4933 | L100: -0.339071141 | M100: 1.468516076 | N100: 172700.5881 | O100: 0.3390211541 | P100: -0.8934514085 | Q100: 232771.6657 | R100: 1.217210659 | S100: 2.090706211 | T100: 394439.2398 | U100: 2.641275997 | V100: 9.645372427 | W100: 279106.8663 | X100: 1.087108727 | Y100: 3.069217534 | Z100: 223311.4502 | AA100: 1.223755616 | AB100: 1.421009271 | AC100: 153870.6607 | AD100: -0.1790665511 | AE100: 2.861708991 | AF100: 219534.5876 | AG100: 0.9237256772 | AH100: 2.850846929
A101: 2012-06-01 | B101: 143988.5054 | C101: -0.4288731881 | D101: -1.328101403 | E101: 154060.5225 | F101: 0.2678215979 | G101: -0.3005726708 | H101: 159103.5095 | I101: 0.5737826111 | J101: 1.864668538 | K101: 163892.8178 | L101: 0.1719466546 | M101: 1.090864286 | N101: 172986.7459 | O101: 0.1656958618 | P101: 0.25261768 | Q101: 232293.9872 | R101: -0.2052133498 | S101: 2.580234913 | T101: 395734.6853 | U101: 0.3284271359 | V101: 11.50156168 | W101: 278248.574 | X101: -0.3075138615 | Y101: 3.664601536 | Z101: 222462.8408 | AA101: -0.3800115936 | AB101: 1.605489723 | AC101: 153313.2574 | AD101: -0.3622545001 | AE101: 2.352400022 | AF101: 219513.9929 | AG101: -0.009381066628 | AH101: 3.555510752
A102: 2012-07-01 | B102: 143306.9203 | C102: -0.4733607762 | D102: 0.7647335658 | E102: 153531.6673 | F102: -0.3432775783 | G102: -1.447483949 | H102: 157449.2455 | I102: -1.039740692 | J102: 0.8345399216 | K102: 163225.5868 | L102: -0.4071142572 | M102: 0.3927671132 | N102: 172966.4523 | O102: -0.01173126274 | P102: 0.74884641 | Q102: 233011.0725 | R102: 0.3086973045 | S102: 2.471747941 | T102: 396286.4285 | U102: 0.1394225101 | V102: 9.894837391 | W102: 279012.0866 | X102: 0.2743994812 | Y102: 3.26766178 | Z102: 221189.9129 | AA102: -0.5721979704 | AB102: 1.142407921 | AC102: 152685.8667 | AD102: -0.4092214076 | AE102: 1.329310705 | AF102: 219293.1817 | AG102: -0.1005909281 | AH102: 2.980137296
A103: 2012-08-01 | B103: 143018.5157 | C103: -0.2012495883 | D103: 1.927104543 | E103: 154813.0091 | F103: 0.8345782195 | G103: -0.9815179474 | H103: 157505.2596 | I103: 0.03557592069 | J103: -0.1426146815 | K103: 162337.1836 | L103: -0.5442793936 | M103: -0.4495843593 | N103: 172685.4253 | O103: -0.1624748575 | P103: -0.1085119042 | Q103: 232687.7152 | R103: -0.138773349 | S103: 1.951189146 | T103: 394186.5617 | U103: -0.529886129 | V103: 7.392472421 | W103: 277877.5412 | X103: -0.4066294871 | Y103: 2.140134058 | Z103: 220859.6128 | AA103: -0.1493287518 | AB103: 1.094215897 | AC103: 151933.2988 | AD103: -0.4928863969 | AE103: -0.3748442433 | AF103: 218806.7489 | AG103: -0.2218185138 | AH103: 2.050536549
A104: 2012-09-01 | B104: 142539.7455 | C104: -0.3347610007 | D104: 1.806334256 | E104: 154213.3648 | F104: -0.3873345916 | G104: -0.9654128164 | H104: 157681.1764 | I104: 0.1116895015 | J104: 0.132158116 | K104: 162831.9403 | L104: 0.3047710448 | M104: -0.05125655379 | N104: 172522.5385 | O104: -0.09432576731 | P104: -0.1420031164 | Q104: 233422.9641 | R104: 0.3159809751 | S104: 2.530656261 | T104: 399225.1051 | U104: 1.278212879 | V104: 8.204019022 | W104: 276981.3537 | X104: -0.3225116891 | Y104: 2.326376139 | Z104: 218871.2071 | AA104: -0.9003029631 | AB104: -0.5361272437 | AC104: 152621.2421 | AD104: 0.4527929892 | AE104: -0.1078088489 | AF104: 219040.4711 | AG104: 0.1068167496 | AH104: 2.183106874
A105: 2012-10-01 | B105: 144084.7923 | C105: 1.083941066 | D105: 1.556901405 | E105: 155136.8055 | F105: 0.5988071829 | G105: 0.06220571341 | H105: 157552.1652 | I105: -0.08181777981 | J105: 0.4112889863 | K105: 163570.7336 | L105: 0.4537152356 | M105: 0.5765531657 | N105: 173034.4241 | O105: 0.296706516 | P105: -0.4869933371 | Q105: 233910.5339 | R105: 0.2088782453 | S105: 2.646472829 | T105: 399996.7753 | U105: 0.19329201 | V105: 7.827081138 | W105: 276144.1985 | X105: -0.3022424191 | Y105: 2.365563475 | Z105: 219669.9144 | AA105: 0.364921109 | AB105: -0.1394004695 | AC105: 153263.633 | AD105: 0.4209052508 | AE105: -1.553920159 | AF105: 219439.9036 | AG105: 0.1823555591 | AH105: 2.248539473
A106: 2012-11-01 | B106: 143647.1228 | C106: -0.3037583065 | D106: 1.95335471 | E106: 153453.5235 | F106: -1.085030748 | G106: -0.423199142 | H106: 157513.4035 | I106: -0.02460241981 | J106: 0.7505448229 | K106: 164101.6256 | L106: 0.3245641818 | M106: 0.6423545524 | N106: 172825.9925 | O106: -0.1204567113 | P106: 0.3317112908 | Q106: 232192.6199 | R106: -0.7344320865 | S106: 2.801776469 | T106: 405137.0771 | U106: 1.285085814 | V106: 9.579249901 | W106: 276699.3844 | X106: 0.2010492702 | Y106: 3.480087809 | Z106: 218423.4977 | AA106: -0.5674043558 | AB106: -0.1766179335 | AC106: 153227.8535 | AD106: -0.02334506587 | AE106: -1.222971071 | AF106: 219547.943 | AG106: 0.04923415214 | AH106: 2.896173429
A107: 2012-12-01 | B107: 142953.9615 | C107: =B107/B106*100-100 -> -0.4825445116 | D107: =B107/B95*100-100 -> 1.545211209 | E107: 153342.2942 | F107: =E107/E106*100-100 -> -0.0724839961 | G107: =E107/E95*100-100 -> 0.2405023686 | H107: 156748.571 | I107: -0.4855666084 | J107: -0.5862489427 | K107: 163593.5469 | L107: =K107/K106*100-100 -> -0.3096122216 | M107: =K107/K95*100-100 -> 0.6699876781 | N107: 173695.7978 | O107: =N107/N106*100-100 -> 0.5032838598 | P107: =N107/N95*100-100 -> 0.04111002374 | Q107: 233164.165 | R107: =Q107/Q106*100-100 -> 0.4184220222 | S107: =Q107/Q95*100-100 -> 3.184183469 | T107: 404931.2894 | U107: =T107/T106*100-100 -> -0.0507945863 | V107: =T107/T95*100-100 -> 9.03060271 | W107: 279029.6868 | X107: =W107/W106*100-100 -> 0.8421783907 | Y107: =W107/W95*100-100 -> 4.848291701 | Z107: 221217.3385 | AA107: =Z107/Z106*100-100 -> 1.279093517 | AB107: =Z107/Z95*100-100 -> 0.7233066157 | AC107: 152859.686 | AD107: =AC107/AC106*100-100 -> -0.240274511 | AE107: =AC107/AC95*100-100 -> -0.9309927778 | AF107: 220234.4932 | AG107: =AF107/AF106*100-100 -> 0.3127108344 | AH107: =AF107/AF95*100-100 -> 3.17680548
A108: 2013-01-01 | B108: 142520.5813 | C108: -0.3031606474 | D108: 0.2537556465 | E108: 153654.5011 | F108: 0.2036013061 | G108: 0.2467498459 | H108: 157109.9802 | I108: 0.2305661505 | J108: -0.4884841603 | K108: 163806.4039 | L108: 0.1301132748 | M108: 0.4236061311 | N108: 174719.9242 | O108: 0.5896092019 | P108: 0.383469692 | Q108: 232702.4317 | R108: -0.1980292624 | S108: 2.496564163 | T108: 409853.2053 | U108: 1.215494097 | V108: 9.990503697 | W108: 279418.3576 | X108: 0.1392936923 | Y108: 4.355792047 | Z108: 221334.5318 | AA108: 0.05297652633 | AB108: 0.5350759961 | AC108: 152011.9039 | AD108: -0.5546145801 | AE108: -0.4336060483 | AF108: 220907.8648 | AG108: 0.3057521191 | AH108: 3.148802211
A109: 2013-02-01 | B109: 144837.7571 | C109: 1.62585343 | D109: -0.02093452742 | E109: 155389.8186 | F109: 1.129363265 | G109: 0.1583364928 | H109: 156951.9335 | I109: -0.1005962155 | J109: -0.9357079912 | K109: 165789.0772 | L109: 1.210375973 | M109: 1.100586133 | N109: 176470.4323 | O109: 1.00189381 | P109: 1.235183353 | Q109: 236879.6788 | R109: 1.795102454 | S109: 3.88703836 | T109: 411797.8927 | U109: 0.4744838658 | V109: 10.51693898 | W109: 280892.2298 | X109: 0.527478657 | Y109: 4.427576887 | Z109: 222434.5768 | AA109: 0.4970056061 | AB109: 1.174375257 | AC109: 153951.6883 | AD109: 1.27607399 | AE109: 0.7560743635 | AF109: 222701.6353 | AG109: 0.8119993936 | AH109: 3.601709833
A110: 2013-03-01 | B110: 145226.5367 | C110: 0.2684242277 | D110: -1.075367191 | E110: 155147.0357 | F110: -0.1562412416 | G110: -0.4330206986 | H110: 157478.3269 | I110: 0.3353851359 | J110: 0.2870998338 | K110: 164960.853 | L110: -0.499565035 | M110: 0.393075816 | N110: 175688.0446 | O110: -0.4433534324 | P110: 1.243885231 | Q110: 236721.4579 | R110: -0.06679377884 | S110: 2.692791478 | T110: 418172.2256 | U110: 1.54792752 | V110: 10.72264937 | W110: 282890.1304 | X110: 0.7112694393 | Y110: 3.101539985 | Z110: 221630.9628 | AA110: -0.361281076 | AB110: 0.6906504479 | AC110: 153494.1796 | AD110: -0.2971767537 | AE110: -0.2053245011 | AF110: 223469.6869 | AG110: 0.3448791574 | AH110: 3.096904032
A111: 2013-04-01 | B111: 145091.5337 | C111: -0.09296025466 | D111: -0.4471608964 | E111: 154991.4095 | F111: -0.1003088215 | G111: 0.1817829271 | H111: 158253.7286 | I111: 0.4923862665 | J111: 0.1253891947 | K111: 164881.9781 | L111: -0.04781426819 | M111: 0.4348212792 | N111: 175125.6962 | O111: -0.3200835177 | P111: 1.748008632 | Q111: 238686.8558 | R111: 0.8302576341 | S111: 3.789340904 | T111: 420616.8237 | U111: 0.5845912192 | V111: 9.453226599 | W111: 283566.6388 | X111: 0.2391417609 | Y111: 2.70235208 | Z111: 221997.9101 | AA111: 0.1655668077 | AB111: 0.6283474486 | AC111: 153264.6811 | AD111: -0.1495161379 | AE111: -0.572185409 | AF111: 224076.3029 | AG111: 0.2714533876 | AH111: 3.011628244
A112: 2013-05-01 | B112: 143283.909 | C112: -1.245851311 | D112: -0.9161166491 | E112: 154319.5877 | F112: -0.4334574215 | G112: 0.4364300302 | H112: 158459.5747 | I112: 0.1300734728 | J112: 0.1667334193 | K112: 163823.8947 | L112: -0.6417216918 | M112: 0.1298205701 | N112: 173861.3985 | O112: -0.7219372692 | P112: 0.6721519454 | Q112: 237502.5552 | R112: -0.4961733608 | S112: 2.032416395 | T112: 422292.9835 | U112: 0.3985004142 | V112: 7.061605667 | W112: 284815.5074 | X112: 0.4404144933 | Y112: 2.045324495 | Z112: 222054.2521 | AA112: 0.02537951991 | AB112: -0.5629796806 | AC112: 152208.8502 | AD112: -0.6888938002 | AE112: -1.080004836 | AF112: 223921.6247 | AG112: -0.06902922819 | AH112: 1.998335299
A113: 2013-06-01 | B113: 144485.6828 | C113: 0.8387361065 | D113: 0.3452896992 | E113: 155747.8193 | F113: 0.9255024672 | G113: 1.095216843 | H113: 158799.843 | I113: 0.2147350803 | J113: -0.1908609494 | K113: 165281.2793 | L113: 0.8896043808 | M113: 0.8471764942 | N113: 175566.3401 | O113: 0.9806326481 | P113: 1.491209201 | Q113: 238679.7422 | R113: 0.4956523293 | S113: 2.748997103 | T113: 422356.0905 | U113: 0.01494389362 | V113: 6.727084134 | W113: 283198.3517 | X113: -0.5677906113 | Y113: 1.778904964 | Z113: 221768.3588 | AA113: -0.1287493093 | AB113: -0.3121788798 | AC113: 151370.3426 | AD113: -0.5508927852 | AE113: -1.267284246 | AF113: 224267.1244 | AG113: 0.1542948826 | AH113: 2.165297705
A114: 2013-07-01 | B114: 144522.6129 | C114: 0.02555968831 | D114: 0.8483140045 | E114: 156592.0232 | F114: 0.5420325286 | G114: 1.993305954 | H114: 158364.0845 | I114: -0.2744073773 | J114: 0.5810373838 | K114: 165508.2585 | L114: 0.1373290583 | M114: 1.398476627 | N114: 176270.4646 | O114: 0.4010589181 | P114: 1.910204101 | Q114: 239416.4394 | R114: 0.3086550852 | S114: 2.748953856 | T114: 424430.4253 | U114: 0.4911341196 | V114: 7.101933056 | W114: 284557.7078 | X114: 0.4800014146 | Y114: 1.987591725 | Z114: 223185.9297 | AA114: 0.6392124562 | AB114: 0.9023995725 | AC114: 151960.2485 | AD114: 0.3897103385 | AE114: -0.4752360053 | AF114: 225135.9994 | AG114: 0.387428617 | AH114: 2.664386364
A115: 2013-08-01 | B115: 144684.1821 | C115: 0.1117950942 | D115: 1.164650916 | E115: 157455.939 | F115: 0.551698469 | G115: 1.707175527 | H115: 160097.4695 | I115: 1.09455689 | J115: 1.645792632 | K115: 165838.9688 | L115: 0.1998150121 | M115: 2.157106083 | N115: 177699.6501 | O115: 0.8107912571 | P115: 2.903675726 | Q115: 240502.2838 | R115: 0.4535379635 | S115: 3.358393273 | T115: 430130.2969 | U115: 1.342946027 | V115: 9.118457783 | W115: 284376.4772 | X115: -0.06368853173 | Y115: 2.338776969 | Z115: 225184.1267 | AA115: 0.8953059611 | AB115: 1.958037435 | AC115: 152986.8872 | AD115: 0.6755969056 | AE115: 0.6934545607 | AF115: 226546.9069 | AG115: 0.6266912344 | AH115: 3.537440286
A116: 2013-09-01 | B116: 144665.9554 | C116: -0.0125976138 | D116: 1.491661084 | E116: 158093.878 | F116: 0.4051540374 | G116: 2.516327453 | H116: 160447.6824 | I116: 0.2187498157 | J116: 1.75449353 | K116: 167785.4143 | L116: 1.173696061 | M116: 3.042077596 | N116: 178319.8318 | O116: 0.3490055973 | P116: 3.36031072 | Q116: 241402.2639 | R116: 0.3742085573 | S116: 3.418386798 | T116: 436489.919 | U116: 1.478533863 | V116: 9.334286205 | W116: 284649.3469 | X116: 0.09595370029 | Y116: 2.768414964 | Z116: 226206.2901 | AA116: 0.4539233857 | AB116: 3.351323842 | AC116: 155098.9086 | AD116: 1.380524453 | AE116: 1.623408654 | AF116: 227936.9057 | AG116: 0.6135589178 | AH116: 4.06154832
A117: 2013-10-01 | B117: 145602.9272 | C117: 0.6476795372 | D117: 1.053639903 | E117: 157950.6977 | F117: -0.09056664342 | G117: 1.813813428 | H117: 161905.4763 | I117: 0.9085789308 | J117: 2.763091899 | K117: 168131.6331 | L117: 0.2063462057 | M117: 2.788334678 | N117: 179342.4686 | O117: 0.5734845964 | P117: 3.645543101 | Q117: 241400.4643 | R117: -0.0007454868507 | S117: 3.202049198 | T117: 442494.1949 | U117: 1.375581809 | V117: 10.62444055 | W117: 286715.5882 | X117: 0.7258900524 | Y117: 3.828213569 | Z117: 226409.3879 | AA117: 0.08978434588 | AB117: 3.068000262 | AC117: 156675.017 | AD117: 1.016195698 | AE117: 2.225827485 | AF117: 229322.8434 | AG117: 0.6080356915 | AH117: 4.503711348
A118: 2013-11-01 | B118: 145692.1852 | C118: 0.06130236703 | D118: 1.423671001 | E118: 157397.59 | F118: -0.3501774557 | G118: 2.570202643 | H118: 161203.2724 | I118: -0.4337122159 | J118: 2.342574566 | K118: 169249.7316 | L118: 0.6650137388 | M118: 3.137144995 | N118: 179913.2487 | O118: 0.3182626772 | P118: 4.100804587 | Q118: 242450.777 | R118: 0.4350914112 | S118: 4.41795139 | T118: 448787.7479 | U118: 1.422290514 | V118: 10.7742967 | W118: 288126.459 | X118: 0.4920802686 | Y118: 4.12977956 | Z118: 226077.2573 | AA118: -0.1466947288 | AB118: 3.504091664 | AC118: 156341.2724 | AD118: -0.2130171654 | AE118: 2.031888336 | AF118: 230315.5597 | AG118: 0.4328902526 | AH118: 4.904448912
A119: 2013-12-01 | B119: 146020.2597 | C119: =B119/B118*100-100 -> 0.2251833526 | D119: =B119/B107*100-100 -> 2.144955099 | E119: 157964.0523 | F119: =E119/E118*100-100 -> 0.3598926294 | G119: =E119/E107*100-100 -> 3.014013917 | H119: 162337.5266 | I119: 0.7036173087 | J119: 3.565554385 | K119: 168935.5927 | L119: =K119/K118*100-100 -> -0.1856067451 | M119: =K119/K107*100-100 -> 3.265437914 | N119: 181262.9547 | O119: =N119/N118*100-100 -> 0.7501981864 | P119: =N119/N107*100-100 -> 4.356557226 | Q119: 243388.0336 | R119: =Q119/Q118*100-100 -> 0.3865760387 | S119: =Q119/Q107*100-100 -> 4.384837024 | T119: 455375.3532 | U119: =T119/T118*100-100 -> 1.467866573 | V119: =T119/T107*100-100 -> 12.45743787 | W119: 292656.9331 | X119: =W119/W118*100-100 -> 1.572390858 | Y119: =W119/W107*100-100 -> 4.883798011 | Z119: 228239.68 | AA119: =Z119/Z118*100-100 -> 0.9564972376 | AB119: =Z119/Z107*100-100 -> 3.174408274 | AC119: 157208.8605 | AD119: =AC119/AC118*100-100 -> 0.5549322472 | AE119: =AC119/AC107*100-100 -> 2.845207005 | AF119: 232460.9704 | AG119: 0.9315092454 | AH119: 5.55157235
A120: 2014-01-01 | B120: 148324.458 | C120: 1.577999035 | D120: 4.072307786 | E120: 159663.7038 | F120: 1.075973572 | G120: 3.910853626 | H120: 163235.6084 | I120: 0.5532188508 | J120: 3.898942762 | K120: 172533.5064 | L120: 2.129754705 | M120: 5.327693125 | N120: 182366.664 | O120: 0.6088995419 | P120: 4.376569964 | Q120: 246392.3464 | R120: 1.234371603 | S120: 5.88301316 | T120: 467438.7296 | U120: 2.649106125 | V120: 14.05028032 | W120: 295922.4516 | X120: 1.115817921 | Y120: 5.906589027 | Z120: 229634.3554 | AA120: 0.6110573596 | AB120: 3.749899996 | AC120: 158018.8791 | AD120: 0.5152499955 | AE120: 3.951647926 | AF120: 235647.9351 | AG120: =AF120/AF119*100-100 -> 1.370967642 | AH120: =AF120/AF108*100-100 -> 6.672496833
A121: 2014-02-01 | B121: 149925.8957 | C121: 1.079685528 | D121: 3.512991903 | E121: 160690.5863 | F121: 0.6431534059 | G121: 3.411270915 | H121: 163557.6489 | I121: 0.1972857173 | J121: 4.208750596 | K121: 173898.8053 | L121: 0.7913239519 | M121: 4.891593741 | N121: 183962.3486 | O121: 0.8749870115 | P121: 4.245422955 | Q121: 249506.2139 | R121: 1.263784205 | S121: 5.330358112 | T121: 471841.888 | U121: 0.9419755327 | V121: 14.58093799 | W121: 299858.152 | X121: 1.329976949 | Y121: 6.752028085 | Z121: 231525.5711 | AA121: 0.8235770062 | AB121: 4.087041883 | AC121: 159658.9607 | AD121: 1.037902314 | AE121: 3.707184083 | AF121: 237927.8713 | AG121: 0.9675179948 | AH121: 6.837056187
A122: 2014-03-01 | B122: 152794.0287 | C122: 1.913033755 | D122: 5.210819051 | E122: 161198.8799 | F122: 0.3163181996 | G122: 3.900715353 | H122: 164577.3608 | I122: 0.6234571759 | J122: 4.507943421 | K122: 175318.413 | L122: 0.8163412572 | M122: 6.278798814 | N122: 184562.5568 | O122: 0.3262668832 | P122: 5.051289746 | Q122: 252395.7718 | R122: 1.158110573 | S122: 6.621416599 | T122: 478458.0086 | U122: 1.402190178 | V122: 14.41649622 | W122: 303207.6602 | X122: 1.117030889 | Y122: 7.182127496 | Z122: 233498.7884 | AA122: 0.8522675493 | AB122: 5.354768806 | AC122: 159489.2638 | AD122: -0.1062871105 | AE122: 3.90574042 | AF122: 240195.4803 | AG122: 0.9530657296 | AH122: 7.484591602
A123: 2014-04-01 | B123: 151953.2702 | C123: -0.5502561332 | D123: 4.729246641 | E123: 160679.8913 | F123: -0.3219554284 | G123: 3.670191707 | H123: 164755.7146 | I123: 0.1083707909 | J123: 4.10858314 | K123: 174693.3393 | L123: -0.3565362888 | M123: 5.950535803 | N123: 184715.3275 | O123: 0.0827744671 | P123: 5.475856222 | Q123: 254661.4494 | R123: 0.8976685966 | S123: 6.692699292 | T123: 484343.6611 | U123: 1.230129365 | V123: 15.15080564 | W123: 305165.2842 | X123: 0.645638024 | Y123: 7.616779405 | Z123: 235458.3527 | AA123: 0.8392181944 | AB123: 6.063319543 | AC123: 159149.4867 | AD123: -0.213040776 | AE123: 3.839635837 | AF123: 241469.4104 | AG123: 0.5303722234 | AH123: 7.762136052
A124: 2014-05-01 | B124: 153122.3041 | C124: 0.7693377906 | D124: 6.866364314 | E124: 161829.2063 | F124: 0.7152823538 | G124: 4.866276955 | H124: 165179.4917 | I124: 0.2572154242 | J124: 4.240776875 | K124: 175014.9141 | L124: 0.1840796336 | M124: 6.831127681 | N124: 184980.4644 | O124: 0.1435381336 | P124: 6.395362069 | Q124: 256499.5656 | R124: 0.7217881797 | S124: 7.998655141 | T124: 497178.7049 | U124: 2.649986955 | V124: 17.73311999 | W124: 308094.1024 | X124: 0.9597481708 | Y124: 8.173218942 | Z124: 236140.7032 | AA124: 0.2897966563 | AB124: 6.343697976 | AC124: 158097.8302 | AD124: -0.6607979155 | AE124: 3.869012878 | AF124: 243828.7891 | AG124: 0.9770921963 | AH124: 8.890237564
A125: 2014-06-01 | B125: 151537.8609 | C125: -1.034756672 | D125: 4.880883639 | E125: 161889.5728 | F125: 0.03730265386 | G125: 3.943396163 | H125: 165074.7539 | I125: -0.06340850959 | J125: 3.951459103 | K125: 175508.8537 | L125: 0.2822271197 | M125: 6.187981163 | N125: 185629.5345 | O125: 0.3508857611 | P125: 5.731847231 | Q125: 259279.7124 | R125: 1.083879731 | S125: 8.630799585 | T125: 508341.7505 | U125: 2.245278302 | V125: 20.35856993 | W125: 310943.5613 | X125: 0.9248664302 | Y125: 9.797094324 | Z125: 235872.0601 | AA125: -0.1137639717 | AB125: 6.359654482 | AC125: 159461.0315 | AD125: 0.8622517713 | AE125: 5.344963083 | AF125: 245878.9682 | AG125: 0.8408273126 | AH125: 9.636652678
A126: 2014-07-01 | B126: 150683.092 | C126: =B126/B125*100-100 -> -0.5640629417 | D126: =B126/B114*100-100 -> 4.262640236 | E126: 162891.263 | F126: =E126/E125*100-100 -> 0.618749028 | G126: =E126/E114*100-100 -> 4.022708002 | H126: 165354.7322 | I126: 0.1696069966 | J126: 4.414288562 | K126: 177142.2077 | L126: =K126/K125*100-100 -> 0.9306391058 | M126: =K126/K114*100-100 -> 7.029225813 | N126: 187698.4423 | O126: =N126/N125*100-100 -> 1.114535865 | P126: =N126/N114*100-100 -> 6.483206195 | Q126: 260732.2308 | R126: =Q126/Q125*100-100 -> 0.5602128965 | S126: =Q126/Q114*100-100 -> 8.903227983 | T126: 511054.7614 | U126: =T126/T125*100-100 -> 0.5336982101 | V126: =T126/T114*100-100 -> 20.40954909 | W126: 314511.6564 | X126: =W126/W125*100-100 -> 1.147505699 | Y126: =W126/W114*100-100 -> 10.52649351 | Z126: 237183.3988 | AA126: =Z126/Z125*100-100 -> 0.55595336 | AB126: =Z126/Z114*100-100 -> 6.271662849 | AC126: 159472.5616 | AD126: =AC126/AC125*100-100 -> 0.007230677466 | AE126: =AC126/AC114*100-100 -> 4.943604162 | AF126: 247539.0806 | AG126: =AF126/AF125*100-100 -> 0.6751746107 | AH126: =AF126/AF114*100-100 -> 9.95091023
A127: 2014-08-01 | B127: 150362.1557 | C127: -0.2129875521 | D127: 3.92439142 | E127: 164007.267 | F127: 0.6851220708 | G127: 4.16073734 | H127: 166448.0638 | I127: 0.6612036865 | J127: 3.966704954 | K127: 178242.3785 | L127: 0.621066449 | M127: 7.479188871 | N127: 189220.4333 | O127: 0.810870369 | P127: 6.483289758 | Q127: 263702.8464 | R127: 1.139335774 | S127: 9.646711954 | T127: 513825.0576 | U127: 0.5420742427 | V127: 19.45800175 | W127: 316473.3897 | X127: 0.6237394563 | Y127: 11.28676776 | Z127: 240243.4079 | AA127: 1.290144742 | AB127: 6.687541204 | AC127: 161619.0727 | AD127: 1.346006526 | AE127: 5.642434902 | AF127: 249418.5815 | AG127: 0.7592744203 | AH127: 10.09577877
A128: 2014-09-01 | B128: 149717.8936 | C128: -0.4284736042 | D128: 3.492140374 | E128: 164770.1526 | F128: 0.4651535332 | G128: 4.222981074 | H128: 167596.8328 | I128: 0.6901666513 | J128: 4.455751716 | K128: 179780.3652 | L128: 0.8628625364 | M128: 7.148983133 | N128: 189506.4518 | O128: 0.1511562365 | P128: 6.273345965 | Q128: 265311.6688 | R128: 0.6100891405 | S128: 9.904383031 | T128: 518227.5424 | U128: 0.8568061704 | V128: 18.7261194 | W128: 317391.1205 | X128: 0.2899867127 | Y128: 11.50249383 | Z128: 241690.8266 | AA128: 0.602480088 | AB128: 6.845316517 | AC128: 162160.4844 | AD128: 0.3349924327 | AE128: 4.552950023 | AF128: 250747.6684 | AG128: 0.5328740658 | AH128: 10.00748986
A129: 2014-10-01 | B129: 151217.6678 | C129: 1.001733426 | D129: 3.85620038 | E129: 165180.4337 | F129: 0.2490020727 | G129: 4.577210526 | H129: 169195.7925 | I129: 0.9540512933 | J129: 4.502822539 | K129: 179346.3493 | L129: -0.2414145505 | M129: 6.670199986 | N129: 190880.5431 | O129: 0.7250894576 | P129: 6.43354282 | Q129: 266865.2754 | R129: 0.585577927 | S129: 10.54878296 | T129: 519185.2792 | U129: 0.1848100889 | V129: 17.33154585 | W129: 317402.2549 | X129: 0.003508118721 | Y129: 10.70282468 | Z129: 242367.0026 | AA129: 0.2797689946 | AB129: 7.048124127 | AC129: 163917.0689 | AD129: 1.083238328 | AE129: 4.622339933 | AF129: 251554.8849 | AG129: 0.3219238406 | AH129: 9.694647587
A130: 2014-11-01 | B130: 150275.8429 | C130: -0.6228272577 | D130: 3.146124639 | E130: 164298.1208 | F130: -0.5341509844 | G130: 4.384140053 | H130: 169955.6678 | I130: 0.4491100334 | J130: 5.429415454 | K130: 179558.6162 | L130: 0.1183558823 | M130: 6.090931175 | N130: 191156.5509 | O130: 0.1445971251 | P130: 6.249290825 | Q130: 266178.9599 | R130: -0.2571767544 | S130: 9.786804237 | T130: 519377.9094 | U130: 0.03710240369 | V130: 15.72907501 | W130: 318591.1329 | X130: 0.374565068 | Y130: 10.57336906 | Z130: 241360.6486 | AA130: -0.4152190621 | AB130: 6.760251572 | AC130: 163387.6725 | AD130: -0.3229660073 | AE130: 4.507063323 | AF130: 251534.5297 | AG130: -0.008091758934 | AH130: 9.212998933
A131: 2014-12-01 | B131: 151916.6133 | C131: 1.091839053 | D131: 4.038037967 | E131: 165086.758 | F131: 0.4800037818 | G131: 4.509067442 | H131: 169978.8739 | I131: 0.01365418049 | J131: 4.707073881 | K131: 179496.8764 | L131: -0.03438420497 | M131: 6.251662905 | N131: 191653.5748 | O131: 0.2600088442 | P131: 5.732346234 | Q131: 268206.5443 | R131: 0.761737308 | S131: 10.19709572 | T131: 515913.3579 | U131: -0.6670579125 | V131: 13.294089 | W131: 319395.7559 | X131: 0.2525566296 | Y131: 9.136575894 | Z131: 242852.3667 | AA131: 0.6180452788 | AB131: 6.402342797 | AC131: 163740.5964 | AD131: 0.2160039753 | AE131: 4.154814084 | AF131: 251925.8607 | AG131: 0.155577435 | AH131: 8.373401462
A132: 2015-01-01 | B132: 152988.5249 | C132: =B132/B131*100-100 -> 0.7055921306 | D132: =B132/B120*100-100 -> 3.144502916 | E132: 166401.3005 | F132: =E132/E131*100-100 -> 0.7962737292 | G132: =E132/E120*100-100 -> 4.21986746 | H132: 170194.2108 | I132: 0.1266844953 | J132: 4.262919385 | K132: 181158.1943 | L132: =K132/K131*100-100 -> 0.9255413731 | M132: =K132/K120*100-100 -> 4.998848097 | N132: 192804.9688 | O132: =N132/N131*100-100 -> 0.6007683187 | P132: =N132/N120*100-100 -> 5.723800934 | Q132: 271503.7957 | R132: =Q132/Q131*100-100 -> 1.229370214 | S132: =Q132/Q120*100-100 -> 10.19165153 | T132: 518641.8569 | U132: =T132/T131*100-100 -> 0.5288676803 | V132: =T132/T120*100-100 -> 10.95397624 | W132: 321919.7244 | X132: =W132/W131*100-100 -> 0.7902322974 | Y132: =W132/W120*100-100 -> 8.78516401 | Z132: 242018.02 | AA132: =Z132/Z131*100-100 -> -0.3435613014 | AB132: =Z132/Z120*100-100 -> 5.392775213 | AC132: 164119.147 | AD132: =AC132/AC131*100-100 -> 0.2311892459 | AE132: =AC132/AC120*100-100 -> 3.860467757 | AF132: 253431.8093 | AG132: =AF132/AF131*100-100 -> 0.5977745132 | AH132: =AF132/AF120*100-100 -> 7.546798231
A133: 2015-02-01 | B133: 156257.3603 | C133: 2.136653971 | D133: 4.223062708 | E133: 167357.0615 | F133: 0.5743711664 | G133: 4.148640798 | H133: 169876.3003 | I133: -0.1867927535 | J133: 3.863256436 | K133: 183205.9424 | L133: 1.130364591 | M133: 5.352041955 | N133: 193177.0796 | O133: 0.1929985777 | P133: 5.009030984 | Q133: 275343.1384 | R133: 1.414102747 | S133: 10.35522283 | T133: 517258.1565 | U133: -0.2667930559 | V133: 9.625315091 | W133: 323054.9375 | X133: 0.3526385773 | Y133: 7.735919568 | Z133: 244032.4236 | AA133: 0.8323362197 | AB133: 5.401931384 | AC133: 165426.7719 | AD133: 0.7967533735 | AE133: 3.612582151 | AF133: 254648.0941 | AG133: 0.4799258773 | AH133: 7.027433467
A134: 2015-03-01 | B134: 156998.2741 | C134: 0.4741624948 | D134: 2.75157703 | E134: 167716.0197 | F134: 0.2144864109 | G134: 4.042918792 | H134: 169979.7914 | I134: 0.0609214173 | J134: 3.28260857 | K134: 184172.1239 | L134: 0.5273745631 | M134: 5.050074726 | N134: 193424.1584 | O134: 0.1279027516 | P134: 4.801408136 | Q134: 276366.2615 | R134: 0.3715811367 | S134: 9.49718356 | T134: 515786.7501 | U134: -0.2844626703 | V134: 7.801884555 | W134: 325210.2052 | X134: 0.6671520843 | Y134: 7.25659273 | Z134: 245587.3365 | AA134: 0.6371746985 | AB134: 5.177135229 | AC134: 165405.8652 | AD134: -0.01263803829 | AE134: 3.709717615 | AF134: 255340.0434 | AG134: 0.2717276635 | AH134: 6.305099143
A135: 2015-04-01 | B135: 156393.8922 | C135: -0.3849608505 | D135: 2.922360285 | E135: 167678.6025 | F135: -0.02230985769 | G135: 4.35568576 | H135: 169627.1589 | I135: -0.2074555103 | J135: 2.956768043 | K135: 184479.1034 | L135: 0.1666807644 | M135: 5.601681309 | N135: 192819.4166 | O135: -0.3126506349 | P135: 4.387339804 | Q135: 277447.3208 | R135: 0.3911690584 | S135: 8.947515033 | T135: 518622.8024 | U135: 0.5498497814 | V135: 7.077441926 | W135: 325975.2886 | X135: 0.2352581057 | Y135: 6.819256819 | Z135: 247130.1551 | AA135: 0.6282158821 | AB135: 4.957055987 | AC135: 163842.4639 | AD135: -0.9451909555 | AE135: 2.948785636 | AF135: 255876.6457 | AG135: 0.2101520139 | AH135: 5.966484649
A136: 2015-05-01 | B136: 153759.6928 | C136: -1.684336513 | D136: 0.4162611458 | E136: 167540.119 | F136: -0.08258862904 | G136: 3.528975338 | H136: 171023.1853 | I136: 0.8229969851 | J136: 3.53778399 | K136: 185436.0554 | L136: 0.5187319116 | M136: 5.954430402 | N136: 194092.8565 | O136: 0.6604313736 | P136: 4.926137526 | Q136: 277679.2079 | R136: 0.08357878573 | S136: 8.257184482 | T136: 522822.0021 | U136: 0.8096828151 | V136: 5.157762581 | W136: 328325.643 | X136: 0.7210222674 | Y136: 6.566675726 | Z136: 248023.3185 | AA136: 0.3614141653 | AB136: 5.032006412 | AC136: 163292.2178 | AD136: -0.3358385005 | AE136: 3.285552758 | AF136: 257025.9955 | AG136: 0.4491812272 | AH136: 5.412489001
A137: 2015-06-01 | B137: 153087.9459 | C137: -0.4368809946 | D137: 1.022902813 | E137: 168030.5526 | F137: 0.2927260474 | G137: 3.793313955 | H137: 172201.0425 | I137: 0.6887119724 | J137: 4.317006964 | K137: 186875.0783 | L137: 0.77602107 | M137: 6.476154522 | N137: 195593.7867 | O137: 0.7733052467 | P137: 5.367816189 | Q137: 279203.8132 | R137: 0.549052719 | S137: 7.684404068 | T137: 529154.4812 | U137: 1.211211279 | V137: 4.09423988 | W137: 329494.6821 | X137: 0.3560608361 | Y137: 5.966073283 | Z137: 247508.5568 | AA137: -0.2075456978 | AB137: 4.933393398 | AC137: 162900.9689 | AD137: -0.2396004583 | AE137: 2.157227595 | AF137: 258406.6215 | AG137: 0.5371542165 | AH137: 5.095048756
A138: 2015-07-01 | B138: 152464.0739 | C138: =B138/B137*100-100 -> -0.4075252367 | D138: =B138/B126*100-100 -> 1.181938809 | E138: 168545.1482 | F138: =E138/E137*100-100 -> 0.3062511821 | G138: =E138/E126*100-100 -> 3.470956667 | H138: 173154.5004 | I138: 0.5536888366 | J138: 4.716991242 | K138: 186809.0449 | L138: =K138/K137*100-100 -> -0.03533556289 | M138: =K138/K126*100-100 -> 5.45710551 | N138: 196093.7755 | O138: =N138/N137*100-100 -> 0.2556261147 | P138: =N138/N126*100-100 -> 4.472777272 | Q138: 280692.7694 | R138: =Q138/Q137*100-100 -> 0.5332864903 | S138: =Q138/Q126*100-100 -> 7.65557006 | T138: 531567.6804 | U138: =T138/T137*100-100 -> 0.4560481399 | V138: =T138/T126*100-100 -> 4.013839724 | W138: 331358.5834 | X138: =W138/W137*100-100 -> 0.5656847931 | Y138: =W138/W126*100-100 -> 5.356535003 | Z138: 249630.057 | AA138: =Z138/Z137*100-100 -> 0.8571421765 | AB138: =Z138/Z126*100-100 -> 5.24769368 | AC138: 164001.779 | AD138: =AC138/AC137*100-100 -> 0.6757542005 | AE138: =AC138/AC126*100-100 -> 2.840123314 | AF138: 259602.6353 | AG138: =AF138/AF137*100-100 -> 0.4628417579 | AH138: =AF138/AF126*100-100 -> 4.873393998
A139: 2015-08-01 | B139: 153816.8346 | C139: 0.8872652046 | D139: 2.29757204 | E139: 170409.8647 | F139: 1.10636024 | G139: 3.903849984 | H139: 174655.2343 | I139: 0.86670219 | J139: 4.930769582 | K139: 187327.9514 | L139: 0.2777737534 | M139: 5.097313517 | N139: 197020.5713 | O139: 0.4726288333 | P139: 4.122249274 | Q139: 285267.134 | R139: 1.62966957 | S139: 8.177495222 | T139: 540584.186 | U139: 1.696210278 | V139: 5.207828624 | W139: 333221.1626 | X139: 0.5621038135 | Y139: 5.292000353 | Z139: 250446.5862 | AA139: 0.3270957214 | AB139: 4.247016974 | AC139: 164458.3684 | AD139: 0.2784051304 | AE139: 1.75678256 | AF139: 262060.0662 | AG139: 0.9466124603 | AH139: 5.06838127
A140: 2015-09-01 | B140: 153615.4135 | C140: -0.1309486897 | D140: 2.603242521 | E140: 170793.1306 | F140: 0.2249083119 | G140: 3.655381708 | H140: 175549.4072 | I140: 0.5119646011 | J140: 4.745062487 | K140: 189157.5476 | L140: 0.9766808675 | M140: 5.215910199 | N140: 197141.7932 | O140: 0.06152753535 | P140: 4.029066705 | Q140: 287593.1785 | R140: 0.815391676 | S140: 8.398239625 | T140: 546924.387 | U140: 1.172842484 | V140: 5.537498932 | W140: 336809.4608 | X140: 1.076851819 | Y140: 6.118110753 | Z140: 251314.9135 | AA140: 0.3467115508 | AB140: 3.981982683 | AC140: 165880.3922 | AD140: 0.8646709522 | AE140: 2.293966852 | AF140: 264071.3312 | AG140: 0.7674824556 | AH140: 5.313573939
A141: 2015-10-01 | B141: 154414.7913 | C141: 0.520376066 | D141: 2.114252637 | E141: 171760.2458 | F141: 0.5662494867 | G141: 3.983408932 | H141: 177005.405 | I141: 0.8293948328 | J141: 4.615724946 | K141: 191517.5259 | L141: 1.247625758 | M141: 6.786408925 | N141: 198801.3064 | O141: 0.8417866081 | P141: 4.149591748 | Q141: 290067.7257 | R141: 0.8604331926 | S141: 8.694443391 | T141: 554837.7634 | U141: 1.44688674 | V141: 6.867006001 | W141: 340843.4363 | X141: 1.197702552 | Y141: 7.385322869 | Z141: 253044.2433 | AA141: 0.6881126905 | AB141: 4.405401958 | AC141: 166944.2658 | AD141: 0.6413498653 | AE141: 1.846785653 | AF141: 266782.3339 | AG141: 1.026617597 | AH141: 6.053330666
A142: 2015-11-01 | B142: 154788.2257 | C142: 0.2418385129 | D142: 3.002733326 | E142: 170504.0944 | F142: -0.7313400075 | G142: 3.777263938 | H142: 176879.7775 | I142: -0.07097378583 | J142: 4.074068124 | K142: 191661.0214 | L142: 0.07492548747 | M142: 6.740085992 | N142: 198621.8284 | O142: -0.09028010029 | P142: 3.905321284 | Q142: 288779.0541 | R142: -0.4442657581 | S142: 8.490563709 | T142: 557991.4592 | U142: 0.5683996255 | V142: 7.434576853 | W142: 342389.2469 | X142: 0.4535251206 | Y142: 7.469797962 | Z142: 254736.3356 | AA142: 0.6686942487 | AB142: 5.541784484 | AC142: 167454.3117 | AD142: 0.3055186445 | AE142: 2.488951045 | AF142: 267291.8613 | AG142: 0.1909899257 | AH142: 6.264480509
A143: 2015-12-01 | B143: 156372.8278 | C143: 1.02372263 | D143: 2.933329329 | E143: 171038.237 | F143: 0.3132725481 | G143: 3.605061404 | H143: 177305.4583 | I143: 0.2406610701 | J143: 4.310291174 | K143: 190761.0854 | L143: -0.4695456204 | M143: 6.275434556 | N143: 200801.6463 | O143: 1.097471476 | P143: 4.773232875 | Q143: 291619.2144 | R143: 0.9835063449 | S143: 8.729343313 | T143: 563444.3347 | U143: 0.9772327855 | V143: 9.212976562 | W143: 345214.8494 | X143: 0.8252603099 | Y143: 8.083730922 | Z143: 257201.4444 | AA143: 0.9677099089 | AB143: 5.908559936 | AC143: 168184.3564 | AD143: 0.435966519 | AE143: 2.713902445 | AF143: 269274.7592 | AG143: 0.7418474413 | AH143: 6.886509549
A144: 2016-01-01 | B144: 158212.6789 | C144: =B144/B143*100-100 -> 1.176579751 | D144: =B144/B132*100-100 -> 3.414735801 | E144: 171313.8412 | F144: =E144/E143*100-100 -> 0.1611360409 | G144: =E144/E132*100-100 -> 2.952224977 | H144: 178509.6058 | I144: =H144/H143*100-100 -> 0.6791372975 | J144: =H144/H132*100-100 -> 4.885827186 | K144: 191556.9871 | L144: =K144/K143*100-100 -> 0.4172243221 | M144: =K144/K132*100-100 -> 5.740172473 | N144: 200695.5936 | O144: =N144/N143*100-100 -> -0.05281463829 | P144: =N144/N132*100-100 -> 4.092542255 | Q144: 295701.0981 | R144: =Q144/Q143*100-100 -> 1.399730699 | S144: =Q144/Q132*100-100 -> 8.91232562 | T144: 570470.1042 | U144: =T144/T143*100-100 -> 1.246932324 | V144: =T144/T132*100-100 -> 9.993070668 | W144: 348169.3384 | X144: =W144/W143*100-100 -> 0.8558406257 | Y144: =W144/W132*100-100 -> 8.154086876 | Z144: 258175.6565 | AA144: =Z144/Z143*100-100 -> 0.3787739802 | AB144: =Z144/Z132*100-100 -> 6.676212187 | AC144: 169547.6383 | AD144: =AC144/AC143*100-100 -> 0.8105878111 | AE144: =AC144/AC132*100-100 -> 3.307652636 | AF144: 271443.4 | AG144: =AF144/AF143*100-100 -> 0.8053635777 | AH144: =AF144/AF132*100-100 -> 7.107075766
A145: 2016-02-01 | B145: 160455.3481 | C145: 1.417502859 | D145: 2.686585628 | E145: 174206.358 | F145: 1.688431467 | G145: 4.092624717 | H145: 179402.8312 | I145: 0.5003794629 | J145: 5.607922271 | K145: 194220.8544 | L145: 1.39063959 | M145: 6.012311542 | N145: 203124.9373 | O145: 1.210461881 | P145: 5.149605557 | Q145: 303722.1088 | R145: 2.712540066 | S145: 10.30676509 | T145: 583224.8649 | U145: 2.235833315 | V145: 12.75314996 | W145: 357606.9117 | X145: 2.710627372 | Y145: 10.69538652 | Z145: 263320.9899 | AA145: 1.992958393 | AB145: 7.904099806 | AC145: 172227.4828 | AD145: 1.580584957 | AE145: 4.111009869 | AF145: 277004.3694 | AG145: 2.048666278 | AH145: 8.779282383
A146: 2016-03-01 | B146: 159971.7842 | C146: -0.3013697834 | D146: 1.893976268 | E146: 175207.4897 | F146: 0.5746815048 | G146: 4.466758778 | H146: 179570.8811 | I146: 0.09367180629 | J146: 5.642488218 | K146: 194618.417 | L146: 0.2046961566 | M146: 5.672027277 | N146: 202065.1316 | O146: -0.5217506322 | P146: 4.467370184 | Q146: 305068.8109 | R146: 0.4433994219 | S146: 10.38569224 | T146: 585992.7903 | U146: 0.4745897476 | V146: 13.61144701 | W146: 357805.2488 | X146: 0.05546230449 | Y146: 10.02276159 | Z146: 262572.0775 | AA146: -0.2844104641 | AB146: 6.915967759 | AC146: 171129.8979 | AD146: -0.6372878588 | AE146: 3.460598433 | AF146: 277389.4646 | AG146: 0.1390213447 | AH146: 8.635316597
A147: 2016-04-01 | B147: 158841.5555 | C147: -0.7065175434 | D147: 1.565063181 | E147: 175700.179 | F147: 0.2812032929 | G147: 4.783899882 | H147: 178180.0037 | I147: -0.7745561544 | J147: 5.042143539 | K147: 194128.9031 | L147: -0.2515249478 | M147: 5.230836204 | N147: 202579.9674 | O147: 0.2547870448 | P147: 5.062016571 | Q147: 306604.5657 | R147: 0.5034125837 | S147: 10.50911026 | T147: 584735.9476 | U147: -0.2144809133 | V147: 12.74782845 | W147: 357614.4275 | X147: -0.05333104914 | Y147: 9.705993053 | Z147: 263226.8663 | AA147: 0.2493748768 | AB147: 6.513454882 | AC147: 170180.1097 | AD147: -0.5550100935 | AE147: 3.868133876 | AF147: 277297.0906 | AG147: -0.0333011822 | AH147: 8.371395083
A148: 2016-05-01 | B148: 156582.016 | C148: -1.422511567 | D148: 1.83554162 | E148: 174398.8436 | F148: -0.7406568166 | G148: 4.093780411 | H148: 178474.0284 | I148: 0.1650155367 | J148: 4.356627498 | K148: 193872.9874 | L148: -0.1318277333 | M148: 4.549779707 | N148: 203205.7696 | O148: 0.3089161369 | P148: 4.695130605 | Q148: 305086.7922 | R148: -0.4950263934 | S148: 9.870232793 | T148: 578925.6832 | U148: -0.9936560991 | V148: 10.73093344 | W148: 354565.4973 | X148: -0.8525747136 | Y148: 7.992020979 | Z148: 260385.0799 | AA148: -1.079595883 | AB148: 4.984112555 | AC148: 168705.6213 | AD148: -0.8664281907 | AE148: 3.315163178 | AF148: 275418.6201 | AG148: -0.6774216413 | AH148: 7.155939435
A149: 2016-06-01 | B149: 157294.5106 | C149: 0.4550296824 | D149: 2.747809212 | E149: 175040.5621 | F149: 0.3679602658 | G149: 4.171865977 | H149: 179247.9406 | I149: 0.4336273488 | J149: 4.092250583 | K149: 194947.0739 | L149: 0.5540155634 | M149: 4.319460762 | N149: 205059.7883 | O149: 0.9123848653 | P149: 4.839622827 | Q149: 307190.3627 | R149: 0.6894990667 | S149: 10.02369891 | T149: 574744.9638 | U149: -0.7221512985 | V149: 8.615722679 | W149: 357364.0839 | X149: 0.7893003164 | Y149: 8.458225079 | Z149: 262451.8177 | AA149: 0.7937236102 | AB149: 6.037472455 | AC149: 169555.4924 | AD149: 0.5037597992 | AE149: 4.085011601 | AF149: 276421.502 | AG149: 0.3641300212 | AH149: 6.971524327
A150: 2016-07-01 | B150: 156561.3324 | C150: =B150/B149*100-100 -> -0.4661181398 | D150: =B150/B138*100-100 -> 2.687359942 | E150: 174658.7821 | F150: =E150/E149*100-100 -> -0.2181094403 | G150: =E150/E138*100-100 -> 3.627297479 | H150: 179170.3407 | I150: =H150/H149*100-100 -> -0.04329195587 | J150: =H150/H138*100-100 -> 3.474261576 | K150: 196774.7275 | L150: =K150/K149*100-100 -> 0.9375126877 | M150: =K150/K138*100-100 -> 5.334689548 | N150: 206140.8248 | O150: =N150/N149*100-100 -> 0.527181126 | P150: =N150/N138*100-100 -> 5.123594172 | Q150: 307475.8321 | R150: =Q150/Q149*100-100 -> 0.09292915407 | S150: =Q150/Q138*100-100 -> 9.541771536 | T150: 572848.5451 | U150: =T150/T149*100-100 -> -0.329958311 | V150: =T150/T138*100-100 -> 7.765871821 | W150: 359508.5017 | X150: =W150/W149*100-100 -> 0.600065296 | Y150: =W150/W138*100-100 -> 8.495303814 | Z150: 263426.7507 | AA150: =Z150/Z149*100-100 -> 0.3714712309 | AB150: =Z150/Z138*100-100 -> 5.526855969 | AC150: 169152.4624 | AD150: =AC150/AC149*100-100 -> -0.2376979558 | AE150: =AC150/AC138*100-100 -> 3.14062654 | AF150: 276889.3191 | AG150: =AF150/AF149*100-100 -> 0.1692404756 | AH150: =AF150/AF138*100-100 -> 6.658901509
A151: 2016-08-01 | B151: 155963.083 | C151: =B151/B150*100-100 -> -0.3821181958 | D151: 1.395327396 | E151: 175502.3343 | F151: =E151/E150*100-100 -> 0.4829715287 | G151: 2.988365494 | H151: 178933.4041 | I151: =H151/H150*100-100 -> -0.1322409671 | J151: 2.449494202 | K151: 197682.7529 | L151: =K151/K150*100-100 -> 0.461454312 | M151: 5.527632948 | N151: 206518.4004 | O151: =N151/N150*100-100 -> 0.1831639397 | P151: 4.820729697 | Q151: 309143.0485 | R151: =Q151/Q150*100-100 -> 0.5422267989 | S151: 8.369668861 | T151: 573650.2754 | U151: =T151/T150*100-100 -> 0.1399550319 | V151: 6.116732655 | W151: 361127.1497 | X151: =W151/W150*100-100 -> 0.4502391304 | Y151: 8.374614286 | Z151: 264713.0643 | AA151: =Z151/Z150*100-100 -> 0.4883002863 | AB151: 5.696415456 | AC151: 168639.1163 | AD151: =AC151/AC150*100-100 -> -0.3034813287 | AE151: 2.542131442 | AF151: 277720.279 | AG151: =AF151/AF150*100-100 -> 0.300105442 | AH151: =AF151/AF139*100-100 -> 5.97581045
A152: 2016-09-01 | B152: 156018.8147 | C152: =B152/B151*100-100 -> 0.03573389904 | D152: 1.564557356 | E152: 175601.1941 | F152: =E152/E151*100-100 -> 0.05632962069 | G152: 2.815138657 | H152: 179558.8799 | I152: =H152/H151*100-100 -> 0.3495578527 | J152: 2.283956803 | K152: 199127.3338 | L152: =K152/K151*100-100 -> 0.7307571697 | M152: 5.270625632 | N152: 206784.1343 | O152: =N152/N151*100-100 -> 0.1286732292 | P152: 4.891069025 | Q152: 311485.075 | R152: =Q152/Q151*100-100 -> 0.757586669 | S152: 8.307532422 | T152: 582564.9077 | U152: =T152/T151*100-100 -> 1.554018644 | V152: 6.516535286 | W152: 362327.6502 | X152: =W152/W151*100-100 -> 0.3324315283 | Y152: 7.576446749 | Z152: 265082.6375 | AA152: =Z152/Z151*100-100 -> 0.1396127489 | AB152: 5.478275762 | AC152: 170160.9815 | AD152: =AC152/AC151*100-100 -> 0.9024390295 | AE152: 2.580527632 | AF152: 279478.8361 | AG152: 0.6332116382 | AH152: 5.834599631
A153: 2016-10-01 | B153: 157963.3644 | C153: =B153/B152*100-100 -> 1.246355864 | D153: 2.298078457 | E153: 178431.0039 | F153: =E153/E152*100-100 -> 1.611498071 | G153: 3.883761368 | H153: 181905.5508 | I153: =H153/H152*100-100 -> 1.306908872 | J153: 2.768359446 | K153: 200328.4507 | L153: =K153/K152*100-100 -> 0.6031903377 | M153: 4.600584045 | N153: 209122.0179 | O153: =N153/N152*100-100 -> 1.130591357 | P153: 5.191470672 | Q153: 314060.5722 | R153: =Q153/Q152*100-100 -> 0.8268444785 | S153: 8.271463662 | T153: 590451.8765 | U153: =T153/T152*100-100 -> 1.353835212 | V153: 6.418833654 | W153: 363750.3077 | X153: =W153/W152*100-100 -> 0.3926439204 | Y153: 6.720643259 | Z153: 266728.2684 | AA153: =Z153/Z152*100-100 -> 0.6207992148 | AB153: 5.407759897 | AC153: 172369.7664 | AD153: =AC153/AC152*100-100 -> 1.298056012 | AE153: 3.249887325 | AF153: 282129.0381 | AG153: 0.9482657046 | AH153: 5.752518875
A154: 2016-11-01 | B154: 159081.4999 | C154: =B154/B153*100-100 -> 0.7078448458 | D154: 2.773643881 | E154: 179164.2728 | F154: =E154/E153*100-100 -> 0.4109537511 | G154: 5.079161529 | H154: 183389.8723 | I154: =H154/H153*100-100 -> 0.8159847136 | J154: 3.680519539 | K154: 201414.1423 | L154: =K154/K153*100-100 -> 0.5419557714 | M154: 5.088734701 | N154: 209945.4725 | O154: =N154/N153*100-100 -> 0.3937675487 | P154: 5.701107614 | Q154: 315535.098 | R154: =Q154/Q153*100-100 -> 0.4695036377 | S154: 9.265230125 | T154: 597649.9307 | U154: =T154/T153*100-100 -> 1.21907551 | V154: 7.107361751 | W154: 365121.4873 | X154: =W154/W153*100-100 -> 0.3769562827 | Y154: 6.639297427 | Z154: 267224.8686 | AA154: =Z154/Z153*100-100 -> 0.1861820598 | AB154: 4.90253303 | AC154: 173641.9944 | AD154: =AC154/AC153*100-100 -> 0.7380807649 | AE154: 3.695146877 | AF154: 283867.7888 | AG154: 0.6162962557 | AH154: 6.20143365
A155: 2016-12-01 | B155: 160079.7653 | C155: =B155/B154*100-100 -> 0.6275182426 | D155: 2.370576487 | E155: 180755.7308 | F155: =E155/E154*100-100 -> 0.8882674945 | G155: 5.681474517 | H155: 183909.7095 | I155: =H155/H154*100-100 -> 0.283460158 | J155: 3.724787321 | K155: 202195.5489 | L155: =K155/K154*100-100 -> 0.3879601608 | M155: 5.99412791 | N155: 211945.3833 | O155: =N155/N154*100-100 -> 0.9525858272 | P155: 5.549624364 | Q155: 316165.4033 | R155: =Q155/Q154*100-100 -> 0.1997575978 | S155: 8.417205628 | T155: 600807.9173 | U155: =T155/T154*100-100 -> 0.5284007241 | V155: 6.631281979 | W155: 368745.6368 | X155: =W155/W154*100-100 -> 0.9925873031 | Y155: 6.816273245 | Z155: 271775.3683 | AA155: =Z155/Z154*100-100 -> 1.702872833 | AB155: 5.666346066 | AC155: 174754.4433 | AD155: =AC155/AC154*100-100 -> 0.6406565475 | AE155: 3.906479164 | AF155: 285994.3728 | AG155: 0.7491459507 | AH155: 6.209127694
A156: 2017-01-01 | B156: 160941.0248 | C156: 0.5380189422 | D156: 1.724479946 | E156: 180544.2809 | F156: -0.1169810249 | G156: 5.388029147 | H156: 184168.664 | I156: 0.1408052049 | J156: 3.170170115 | K156: 203948.842 | L156: 0.8671274434 | M156: 6.469017446 | N156: 213941.042 | O156: 0.9415910039 | P156: 6.599770415 | Q156: 319169.5 | R156: 0.9501661751 | S156: 7.936528519 | T156: 605792.1049 | U156: 0.8295808849 | V156: 6.191735634 | W156: 373141.5893 | X156: 1.192136801 | Y156: 7.172444033 | Z156: 274312.874 | AA156: 0.9336775932 | AB156: 6.250479891 | AC156: 175431.805 | AD156: 0.3876077631 | AE156: 3.470509406 | AF156: 288305.1739 | AG156: =AF156/AF155*100-100 -> 0.8079883097 | AH156: 6.211893127
A157: 2017-02-01 | B157: 161608.1813 | C157: 0.4145347972 | D157: 0.7184760354 | E157: 182142.2618 | F157: 0.8850908172 | G157: 4.555461601 | H157: 183810.934 | I157: -0.1942403982 | J157: 2.45709769 | K157: 205106.834 | L157: 0.5677855473 | M157: 5.60494891 | N157: 215358.5638 | O157: 0.6625759022 | P157: 6.022710312 | Q157: 321624.5932 | R157: 0.7692129645 | S157: 5.894363258 | T157: 607681.4473 | U157: 0.3118796538 | V157: 4.193336717 | W157: 376117.2054 | X157: 0.7974496138 | Y157: 5.176156585 | Z157: 276485.2285 | AA157: 0.7919258123 | AB157: 4.99931226 | AC157: 177201.0285 | AD157: 1.008496384 | AE157: 2.887777027 | AF157: 290047.7858 | AG157: =AF157/AF156*100-100 -> 0.6044331157 | AH157: 4.708740329
A158: 2017-03-01 | B158: 160948.1817 | C158: -0.4083949711 | D158: 0.6103560563 | E158: 182388.8566 | F158: 0.1353858741 | G158: 4.0987785 | H158: 185113.3876 | I158: 0.7085832801 | J158: 3.08652854 | K158: 206476.2971 | L158: 0.6676827748 | M158: 6.092886902 | N158: 216714.7701 | O158: 0.6297433654 | P158: 7.249958634 | Q158: 324674.2102 | R158: 0.9481914801 | S158: 6.426549882 | T158: 613119.4886 | U158: 0.8948835475 | V158: 4.629186353 | W158: 377236.0772 | X158: 0.2974795576 | Y158: 5.430559932 | Z158: 276328.9597 | AA158: -0.05651976073 | AB158: 5.23927842 | AC158: 176886.8889 | AD158: -0.1772786018 | AE158: 3.364105912 | AF158: 291500.7549 | AG158: =AF158/AF157*100-100 -> 0.5009412774 | AH158: 5.087176025
A159: 2017-04-01 | B159: 159789.5763 | C159: -0.7198623486 | D159: 0.5968342664 | E159: 181953.7695 | F159: -0.2385491794 | G159: 3.559239726 | H159: 185824.6652 | I159: 0.3842389107 | J159: 4.290414922 | K159: 206708.0418 | L159: 0.1122379665 | M159: 6.479786628 | N159: 215393.3508 | O159: -0.6097504295 | P159: 6.325098973 | Q159: 325041.9985 | R159: 0.11327917 | S159: 6.013424077 | T159: 615125.4548 | U159: 0.3271737775 | V159: 5.197133387 | W159: 376441.1642 | X159: -0.2107203146 | Y159: 5.264535005 | Z159: 275499.2094 | AA159: -0.3002762547 | AB159: 4.662268454 | AC159: 174635.687 | AD159: -1.27267881 | AE159: 2.61815395 | AF159: 291264.1633 | AG159: =AF159/AF158*100-100 -> -0.08116328508 | AH159: 5.036862338
A160: 2017-05-01 | B160: 159683.854 | C160: -0.06616346445 | D160: 1.980966967 | E160: 181979.6257 | F160: 0.0142102778 | G160: 4.346807524 | H160: 186054.379 | I160: 0.1236185889 | J160: 4.247312998 | K160: 206621.2083 | L160: -0.04200784332 | M160: 6.575552902 | N160: 215371.3734 | O160: -0.01020340841 | P160: 5.986839738 | Q160: 326686.5996 | R160: 0.5059657511 | S160: 7.079889409 | T160: 613687.1473 | U160: -0.233823439 | V160: 6.004477791 | W160: 375877.837 | X160: -0.1496454926 | Y160: 6.010832928 | Z160: 275747.2955 | AA160: 0.09004965399 | AB160: 5.899806414 | AC160: 173072.9746 | AD160: -0.8948414025 | AE160: 2.588742003 | AF160: 291153.3861 | AG160: =AF160/AF159*100-100 -> -0.03803324649 | AH160: 5.713036395
A161: 2017-06-01 | B161: 159413.1915 | C161: -0.1694989595 | D161: 1.346951577 | E161: 181883.3457 | F161: -0.05290697743 | G161: 3.909256008 | H161: 184167.8632 | I161: -1.013959372 | J161: 2.744758226 | K161: 207918.645 | L161: 0.6279301097 | M161: 6.653893718 | N161: 215545.0795 | O161: 0.08065423408 | P161: 5.113284909 | Q161: 327333.4164 | R161: 0.1979930344 | S161: 6.557189305 | T161: 605496.5655 | U161: -1.334651022 | V161: 5.350477788 | W161: 374495.5073 | X161: -0.3677603582 | Y161: 4.793829085 | Z161: 275396.2889 | AA161: -0.1272928585 | AB161: 4.932132414 | AC161: 173196.0192 | AD161: 0.07109409246 | AE161: 2.14710051 | AF161: 290026.5354 | AG161: =AF161/AF160*100-100 -> -0.387029933 | AH161: 4.921843371
A162: 2017-07-01 | B162: 159343.1073 | C162: -0.04396384523 | D162: 1.776795667 | E162: 183598.8508 | F162: 0.9431897566 | G162: 5.118591037 | H162: 184091.9206 | I162: -0.04123555173 | J162: 2.746871989 | K162: 207762.8855 | L162: -0.07491368014 | M162: 5.584130739 | N162: 215681.2431 | O162: 0.06317173451 | P162: 4.62810716 | Q162: 326403.8328 | R162: -0.2839867556 | S162: 6.155931192 | T162: 599992.911 | U162: -0.9089489175 | V162: 4.73848911 | W162: 374565.2061 | X162: 0.01861138675 | Y162: 4.188135824 | Z162: 277539.0626 | AA162: 0.7780691967 | AB162: 5.357205306 | AC162: 175058.2789 | AD162: 1.075232397 | AE162: 3.491416208 | AF162: 289885.1813 | AG162: =AF162/AF161*100-100 -> -0.04873833344 | AH162: 4.693522397
A163: 2017-08-01 | B163: 158538.5417 | C163: -0.50492654 | D163: =B163/B151*100-100 -> 1.651325826 | E163: 184765.4184 | F163: 0.6353893669 | G163: =E163/E151*100-100 -> 5.278040426 | H163: 186226.5718 | I163: 1.159557232 | J163: =H163/H151*100-100 -> 4.075911766 | K163: 208716.6317 | L163: 0.4590551289 | M163: =K163/K151*100-100 -> 5.581609218 | N163: 216962.3537 | O163: 0.5939833247 | P163: =N163/N151*100-100 -> 5.057153848 | Q163: 326757.1403 | R163: 0.1082424496 | S163: =Q163/Q151*100-100 -> 5.697715632 | T163: 597439.1262 | U163: -0.4256358343 | V163: =T163/T151*100-100 -> 4.146925705 | W163: 374866.6321 | X163: 0.08047357064 | Y163: =W163/W151*100-100 -> 3.80461076 | Z163: 277857.9264 | AA163: 0.1148897238 | AB163: =Z163/Z151*100-100 -> 4.965702084 | AC163: 176644.3904 | AD163: 0.9060476742 | AE163: =AC163/AC151*100-100 -> 4.746985321 | AF163: 290351.5275 | AG163: =AF163/AF162*100-100 -> 0.1608727431 | AH163: =AF163/AF151*100-100 -> 4.548190928
A164: 2017-09-01 | B164: 159527.8956 | C164: 0.6240462743 | D164: 2.249139534 | E164: 185469.5 | F164: 0.3810678557 | G164: 5.619726006 | H164: 188750.3414 | I164: 1.355214569 | J164: 5.118912273 | K164: 209084.7033 | L164: 0.1763499255 | M164: 5.000503599 | N164: 218347.1925 | O164: 0.6382852956 | P164: 5.59184977 | Q164: 326321.3045 | R164: -0.133382179 | S164: 4.763062719 | T164: 606680.6827 | U164: 1.546861626 | V164: 4.139585952 | W164: 374724.0082 | X164: -0.03804657341 | Y164: 3.421311616 | Z164: 280313.1921 | AA164: 0.8836406864 | AB164: 5.745587413 | AC164: 178983.6922 | AD164: =AC164/AC163*100-100 -> 1.324300087 | AE164: =AC164/AC152*100-100 -> 5.184919967 | AF164: 292184.806 | AG164: =AF164/AF163*100-100 -> 0.6313996406 | AH164: =AF164/AF152*100-100 -> 4.546308438
A165: 2017-10-01 | B165: 160076.3867 | C165: 0.3438214646 | D165: 1.337666079 | E165: 186155.9907 | F165: 0.3701367174 | G165: 4.32939717 | H165: 188962.3895 | I165: 0.1123431665 | J165: 3.87939713 | K165: 209870.6941 | L165: 0.3759197611 | M165: 4.763299144 | N165: 219299.0463 | O165: 0.4359359119 | P165: 4.866550408 | Q165: 328983.2254 | R165: 0.8157361723 | S165: 4.751520751 | T165: 613261.8339 | U165: 1.084780068 | V165: 3.86313572 | W165: 373827.1393 | X165: -0.2393411724 | Y165: 2.770260656 | Z165: 281684.0008 | AA165: 0.4890275428 | AB165: 5.607104386 | AC165: 180467.9185 | AD165: 0.8292522488 | AE165: 4.698127937 | AF165: 293542.5387 | AG165: =AF165/AF164*100-100 -> 0.4646828447 | AH165: =AF165/AF153*100-100 -> 4.045489504
A166: 2017-11-01 | B166: 160863.6272 | C166: 0.4917905482 | D166: 1.12026059 | E166: 186683.5145 | F166: 0.2833772457 | G166: 4.196842111 | H166: 188903.3264 | I166: -0.03125654157 | J166: 3.006411452 | K166: 210777.2146 | L166: 0.4319424122 | M166: 4.648666776 | N166: 219859.9698 | O166: 0.255780203 | P166: 4.722415396 | Q166: 328352.7622 | R166: -0.191639926 | S166: 4.062199203 | T166: 620858.5813 | U166: 1.238744538 | V166: 3.883318545 | W166: 373140.8753 | X166: -0.1835779069 | Y166: 2.196361557 | Z166: 283947.9251 | AA166: 0.8037106345 | AB166: 6.258046495 | AC166: 180972.9984 | AD166: 0.2798724179 | AE166: 4.221907269 | AF166: 294658.8439 | AG166: =AF166/AF165*100-100 -> 0.3802873859 | AH166: =AF166/AF154*100-100 -> 3.801437006
A167: 2017-12-01 | B167: 160625.3316 | C167: -0.1481351949 | D167: 0.3408090132 | E167: 189090.3558 | F167: 1.289262912 | G167: 4.61098795 | H167: 189415.9303 | I167: 0.2713578123 | J167: 2.993980497 | K167: 211357.3778 | L167: 0.2752494709 | M167: 4.531172373 | N167: 220426.5763 | O167: 0.257712424 | P167: 4.00159363 | Q167: 329187.0553 | R167: 0.2540843673 | S167: 4.118620129 | T167: 616114.3702 | U167: -0.764137164 | V167: 2.547645002 | W167: 376073.3145 | X167: 0.7858799127 | Y167: 1.987190332 | Z167: 287488.1376 | AA167: 1.246782292 | AB167: 5.781528098 | AC167: 180704.3795 | AD167: -0.1484303864 | AE167: 3.404741045 | AF167: 295560.9622 | AG167: =AF167/AF166*100-100 -> 0.3061568495 | AH167: =AF167/AF155*100-100 -> 3.345027129
A168: 2018-01-01 | B168: 163997.415 | C168: 2.09934718 | D168: 1.899074634 | E168: 189487.7776 | F168: 0.2101756367 | G168: 4.953630593 | H168: 190983.8662 | I168: 0.8277740156 | J168: 3.700522172 | K168: 215551.2458 | L168: 1.984254394 | M168: 5.688879475 | N168: 223220.9539 | O168: 1.267713562 | P168: 4.337602458 | Q168: 330586.2141 | R168: 0.4250345804 | S168: 3.577006588 | T168: 612917.7693 | U168: -0.5188323779 | V168: 1.176255739 | W168: 380329.0854 | X168: 1.131633305 | Y168: 1.926211468 | Z168: 287367.6587 | AA168: -0.04190741288 | AB168: 4.759085687 | AC168: 182175.5734 | AD168: 0.8141440087 | AE168: 3.844096768 | AF168: 297174.388 | AG168: =AF168/AF167*100-100 -> 0.5458859871 | AH168: =AF168/AF156*100-100 -> 3.076328467
A169: 2018-02-01 | B169: 166427.7335 | C169: 1.481924932 | D169: 2.982245185 | E169: 190144.3079 | F169: 0.3464763207 | G169: 4.393294606 | H169: 191370.4129 | I169: 0.2023975809 | J169: 4.112638324 | K169: 217512.7723 | L169: 0.910004728 | M169: 6.048525077 | N169: 225236.4638 | O169: 0.9029214603 | P169: 4.586722641 | Q169: 333960.3578 | R169: 1.020654683 | S169: 3.835454379 | T169: 606550.674 | U169: -1.03881722 | V169: -0.1860799361 | W169: 383654.2286 | X169: 0.8742805432 | Y169: 2.003902774 | Z169: 287975.1801 | AA169: 0.2114090932 | AB169: 4.155719889 | AC169: 185944.1957 | AD169: 2.068675954 | AE169: 4.934038643 | AF169: 298313.4397 | AG169: =AF169/AF168*100-100 -> 0.3832940169 | AH169: =AF169/AF157*100-100 -> 2.849755883
A170: 2018-03-01 | B170: 168072.6765 | C170: 0.9883826974 | D170: 4.426576766 | E170: 189251.1413 | F170: -0.4697309303 | G170: 3.762447316 | H170: 190969.0519 | I170: -0.2097299092 | J170: 3.163285192 | K170: 218065.5888 | L170: 0.2541535795 | M170: 5.612892111 | N170: 224922.1915 | O170: -0.1395299287 | P170: 3.787199856 | Q170: 335482.6298 | R170: 0.4558241625 | S170: 3.329004651 | T170: 601297.515 | U170: -0.8660709165 | V170: -1.928167958 | W170: 383669.4597 | X170: 0.003970026383 | Y170: 1.705399583 | Z170: 285188.1093 | AA170: -0.9678163111 | AB170: 3.206015636 | AC170: 183818.4916 | AD170: -1.143194638 | AE170: 3.918663894 | AF170: 297460.7034 | AG170: =AF170/AF169*100-100 -> -0.285852442 | AH170: =AF170/AF158*100-100 -> 2.044573952
A171: 2018-04-01 | B171: 165455.4374 | C171: -1.557206746 | D171: 3.545826486 | E171: 188382.0039 | F171: -0.4592508196 | G171: 3.532894296 | H171: 190674.1868 | I171: -0.1544046709 | J171: 2.609729753 | K171: 216977.1963 | L171: -0.4991124855 | M171: 4.967951086 | N171: 225446.8614 | O171: 0.2332672985 | P171: 4.667512058 | Q171: 335184.0028 | R171: -0.08901413066 | S171: 3.120213514 | T171: 599119.0421 | U171: -0.362295356 | V171: -2.602137916 | W171: 383260.3568 | X171: -0.1066290151 | Y171: 1.811489609 | Z171: 284891.3246 | AA171: -0.1040663197 | AB171: 3.409125984 | AC171: 181243.7117 | AD171: -1.400718646 | AE171: 3.783891386 | AF171: 296660.3491 | AG171: =AF171/AF170*100-100 -> -0.2690621909 | AH171: =AF171/AF159*100-100 -> 1.852677564
A172: 2018-05-01 | B172: 163621.9985 | C172: -1.108116464 | D172: 2.466213331 | E172: 186833.8408 | F172: -0.8218211231 | G172: 2.667449771 | H172: 190027.6925 | I172: -0.3390570366 | J172: 2.135565699 | K172: 216511.3204 | L172: -0.2147118775 | M172: 4.786591014 | N172: 224716.9553 | O172: -0.3237597507 | P172: 4.339286945 | Q172: 334217.8024 | R172: -0.2882597156 | S172: 2.30532955 | T172: 601780.1937 | U172: 0.4441774386 | V172: -1.940231864 | W172: 380856.4308 | X172: -0.6272305435 | Y172: 1.324524433 | Z172: 284483.7937 | AA172: -0.1430478438 | AB172: 3.168298763 | AC172: 176960.4059 | AD172: -2.363285184 | AE172: 2.246122696 | AF172: 295704.6959 | AG172: =AF172/AF171*100-100 -> -0.3221371681 | AH172: =AF172/AF160*100-100 -> 1.563200016
A173: 2018-06-01 | B173: 163284.3883 | C173: -0.2063354261 | D173: 2.428404313 | E173: 187041.1502 | F173: 0.1109592273 | G173: 2.835776081 | H173: 191010.5542 | I173: 0.5172202329 | J173: 3.715464179 | K173: 217577.7638 | L173: 0.4925577778 | M173: 4.645624136 | N173: 226029.2795 | O173: 0.5839898793 | P173: 4.864040532 | Q173: 335365.4898 | R173: 0.3433950708 | S173: 2.453789642 | T173: 601715.5761 | U173: -0.0107377422 | V173: -0.6244444013 | W173: 380451.3166 | X173: -0.1063692571 | Y173: 1.590355344 | Z173: 283693.1746 | AA173: -0.2779135542 | AB173: 3.012707898 | AC173: 179476.5742 | AD173: 1.421882056 | AE173: 3.626269811 | AF173: 296136.9271 | AG173: =AF173/AF172*100-100 -> 0.1461698928 | AH173: =AF173/AF161*100-100 -> 2.106838866
A174: 2018-07-01 | B174: 161779.8398 | C174: -0.9214282937 | D174: 1.529236171 | E174: 187741.4795 | F174: 0.3744252944 | G174: 2.25634784 | H174: 191924.8161 | I174: 0.4786446863 | J174: 4.254882813 | K174: 216442.2098 | L174: -0.5219072021 | M174: 4.177514297 | N174: 224667.3941 | O174: -0.602526129 | P174: 4.166403564 | Q174: 333537.0994 | R174: -0.5451933663 | S174: 2.185411412 | T174: 596210.1929 | U174: -0.9149477565 | V174: -0.6304604638 | W174: 378226.2508 | X174: -0.5848490327 | Y174: 0.9774118365 | Z174: 284334.4957 | AA174: 0.226061509 | AB174: 2.448460069 | AC174: 181840.0845 | AD174: 1.316890712 | AE174: 3.874027339 | AF174: 295042.2643 | AG174: =AF174/AF173*100-100 -> -0.3696475231 | AH174: =AF174/AF162*100-100 -> 1.779008858
A175: 2018-08-01 | B175: 161842.1416 | C175: 0.0385102732 | D175: 2.083783473 | E175: 189307.0858 | F175: 0.8339160013 | G175: 2.458072191 | H175: 192753.1094 | I175: 0.431571747 | J175: 3.504622101 | K175: 217991.8224 | L175: 0.7159475263 | M175: 4.443915483 | N175: 226496.8663 | O175: 0.8143025018 | P175: 4.394546994 | Q175: 333494.1633 | R175: -0.0128729585 | S175: 2.061782953 | T175: 594214.2176 | U175: -0.3347771178 | V175: -0.5397886438 | W175: 379037.5968 | X175: 0.2145134114 | Y175: 1.112652965 | Z175: 286210.404 | AA175: 0.6597540411 | AB175: 3.006024588 | AC175: 184100.6737 | AD175: 1.243174314 | AE175: 4.221069986 | AF175: 295883.6685 | AG175: =AF175/AF174*100-100 -> 0.2851809074 | AH175: =AF175/AF163*100-100 -> 1.905325267
A176: 2018-09-01 | B176: 161662.5423 | C176: -0.1109719015 | D176: 1.338102504 | E176: 189388.3144 | F176: 0.0429084103 | G176: 2.112915822 | H176: 192226.5077 | I176: -0.273200106 | J176: 1.841674159 | K176: 219398.8104 | L176: 0.6454315596 | M176: 4.932980243 | N176: 227993.3233 | O176: 0.6606965762 | P176: 4.417794761 | Q176: 332393.2923 | R176: -0.330102033 | S176: 1.860739005 | T176: 599578.3727 | U176: 0.9027308571 | V176: -1.170683399 | W176: 378921.5334 | X176: -0.03062055489 | Y176: 1.120164467 | Z176: 287891.6147 | AA176: 0.5874037573 | AB176: 2.703555444 | AC176: 184988.2455 | AD176: 0.4821121547 | AE176: 3.354804664 | AF176: 296762.15 | AG176: =AF176/AF175*100-100 -> 0.2969009804 | AH176: =AF176/AF164*100-100 -> 1.566592079
A177: 2018-10-01 | B177: 163351.8913 | C177: 1.044984775 | D177: 2.046213461 | E177: 190995.0844 | F177: 0.848399761 | G177: 2.599483197 | H177: 191868.3834 | I177: -0.1863032764 | J177: 1.537868926 | K177: 221568.67 | L177: 0.9890024364 | M177: 5.573896833 | N177: 229084.4057 | O177: 0.4785589421 | P177: 4.462107614 | Q177: 334422.68 | R177: 0.6105381078 | S177: 1.653413966 | T177: 607748.3215 | U177: 1.362615661 | V177: -0.8990470383 | W177: 379546.3191 | X177: 0.1648852543 | Y177: 1.52989956 | Z177: 289289.467 | AA177: 0.4855481035 | AB177: 2.699999326 | AC177: 186625.7333 | AD177: 0.8851847995 | AE177: 3.412138203 | AF177: 298734.4366 | AG177: =AF177/AF176*100-100 -> 0.6646018071 | AH177: =AF177/AF165*100-100 -> 1.768703778
A178: 2018-11-01 | B178: 162695.4935 | C178: -0.4018305467 | D178: 1.138769694 | E178: 191108.1785 | F178: 0.05921307377 | G178: 2.370141816 | H178: 191867.9411 | I178: -0.0002305076761 | J178: 1.569381949 | K178: 220861.939 | L178: -0.3189670236 | M178: 4.784542038 | N178: 228643.4847 | O178: -0.1924710015 | P178: 3.9950496 | Q178: 331923.6306 | R178: -0.7472727167 | S178: 1.087509767 | T178: 607456.4304 | U178: -0.04802828681 | V178: -2.158647933 | W178: 377822.7695 | X178: -0.4541078559 | Y178: 1.254725616 | Z178: 288375.8464 | AA178: -0.315815358 | AB178: 1.559413152 | AC178: 186851.7012 | AD178: 0.1210807915 | AE178: 3.248386682 | AF178: 297922.6039 | AG178: =AF178/AF177*100-100 -> -0.271757328 | AH178: =AF178/AF166*100-100 -> 1.107640266
A179: 2018-12-01 | B179: 162356.1572 | C179: -0.2085714205 | D179: 1.077554558 | E179: 192586.8537 | F179: 0.7737372706 | G179: 1.849114893 | H179: 194131.894 | I179: 1.179953717 | J179: 2.489739731 | K179: 220316.3663 | L179: -0.2470197838 | M179: 4.23878678 | N179: 229065.16 | O179: 0.1844248202 | P179: 3.919030032 | Q179: 332083.5837 | R179: 0.04818973765 | S179: 0.8799035077 | T179: 607366.3668 | U179: -0.01482635 | V179: -1.4198668 | W179: 377760.4199 | X179: -0.01650233846 | Y179: 0.4486107635 | Z179: 289849.672 | AA179: 0.5110780317 | AB179: 0.8214371767 | AC179: 187181.8756 | AD179: 0.1767039764 | AE179: 3.584581682 | AF179: 298472.3919 | AG179: =AF179/AF178*100-100 -> 0.1845405246 | AH179: =AF179/AF167*100-100 -> 0.9850521813
A180: 2019-01-01 | B180: 163346.4144 | C180: 0.6099289409 | D180: =B180/B168*100-100 -> -0.3969578409 | E180: 192098.9377 | F180: -0.2533485311 | G180: 1.378009779 | H180: 195186.4467 | I180: 0.5432145202 | J180: 2.200489781 | K180: 220123.3642 | L180: -0.08760227652 | M180: 2.121128255 | N180: 231047.8003 | O180: 0.8655354846 | P180: 3.506322426 | Q180: 332861.5 | R180: 0.234253159 | S180: 0.6882579537 | T180: 606784.1569 | U180: -0.09585811164 | V180: -1.000723554 | W180: 379723.817 | X180: 0.519746641 | Y180: -0.1591433421 | Z180: 288965.4848 | AA180: -0.3050502619 | AB180: 0.5560215457 | AC180: 187202.6174 | AD180: 0.01108108208 | AE180: 2.759450068 | AF180: 298998.1901 | AG180: =AF180/AF179*100-100 -> 0.1761631045 | AH180: =AF180/AF168*100-100 -> 0.6137144162
A181: 2019-02-01 | B181: 165226.1779 | C181: =B181/B180*100-100 -> 1.150783452 | D181: -0.7219684156 | E181: 193326.3179 | F181: =E181/E180*100-100 -> 0.6389312329 | G181: =E181/E169*100-100 -> 1.673471045 | H181: 195892.994 | I181: =H181/H180*100-100 -> 0.3619858827 | J181: =H181/H169*100-100 -> 2.363260363 | K181: 222494.2325 | L181: =K181/K180*100-100 -> 1.07706347 | M181: =K181/K169*100-100 -> 2.290192039 | N181: 231659.9238 | O181: =N181/N180*100-100 -> 0.2649337173 | P181: =N181/N169*100-100 -> 2.851873931 | Q181: 335657.7742 | R181: =Q181/Q180*100-100 -> 0.8400713853 | S181: =Q181/Q169*100-100 -> 0.5082688446 | T181: 606286.6332 | U181: =T181/T180*100-100 -> -0.08199351157 | V181: =T181/T169*100-100 -> -0.04353153056 | W181: 381663.5473 | X181: =W181/W180*100-100 -> 0.5108266241 | Y181: =W181/W169*100-100 -> -0.5188737951 | Z181: 289212.0937 | AA181: =Z181/Z180*100-100 -> 0.08534198487 | AB181: =Z181/Z169*100-100 -> 0.4295209109 | AC181: 188389.3183 | AD181: =AC181/AC180*100-100 -> 0.6339125695 | AE181: =AC181/AC169*100-100 -> 1.31497658 | AF181: 300254.5262 | AG181: =AF181/AF180*100-100 -> 0.4201818479 | AH181: =AF181/AF169*100-100 -> 0.6506869197
A182: 2019-03-01 | B182: 166843.7958 | C182: 0.9790324381 | D182: -0.7311603178 | E182: 193020.9751 | F182: -0.157941625 | G182: 1.991974162 | H182: 194952.994 | I182: -0.4798538422 | J182: 2.08617156 | K182: 223567.3025 | L182: 0.4822911515 | M182: 2.522962805 | N182: 230260.3151 | O182: -0.604165217 | P182: 2.373320105 | Q182: 334098.9401 | R182: -0.4644117542 | S182: -0.4124474971 | T182: 601260.3362 | U182: -0.8290298341 | V182: -0.006183108855 | W182: 380856.864 | X182: -0.2113598059 | Y182: -0.7330778333 | Z182: 288248.2611 | AA182: -0.333261518 | AB182: 1.073029228 | AC182: 187993.6737 | AD182: -0.2100143253 | AE182: 2.271361334 | AF182: 299193.8904 | AG182: =AF182/AF181*100-100 -> -0.3532455579 | AH182: 0.5826608314
A183: 2019-04-01 | B183: 165097.5539 | C183: -1.046632767 | D183: -0.2163020446 | E183: 193396.3323 | F183: 0.1944644542 | G183: 2.661787398 | H183: 194489.8865 | I183: -0.2375482538 | J183: 2.001162201 | K183: 224096.787 | L183: 0.2368344998 | M183: 3.281262226 | N183: 229161.507 | O183: -0.4772025797 | P183: 1.64768118 | Q183: 333481.8792 | R183: -0.1846940574 | S183: -0.5078176873 | T183: 598780.1957 | U183: -0.4124902783 | V183: -0.05655743142 | W183: 378037.5738 | X183: -0.7402492766 | Y183: -1.362724551 | Z183: 287767.8733 | AA183: -0.1666576621 | AB183: 1.009700358 | AC183: 187059.5279 | AD183: -0.4969028198 | AE183: 3.208837487 | AF183: 298148.0428 | AG183: =AF183/AF182*100-100 -> -0.3495551354 | AH183: 0.5014804603
A184: 2019-05-01 | B184: 165374.4048 | C184: 0.1676892878 | D184: 1.071009019 | E184: 192382.8623 | F184: -0.5240378902 | G184: 2.970030192 | H184: 193865.5499 | I184: -0.3210124158 | J184: 2.019630542 | K184: 222681.4186 | L184: -0.6315880183 | M184: 2.849780844 | N184: 228728.0288 | O184: -0.189158353 | P184: 1.784944784 | Q184: 333667.9908 | R184: 0.05580861292 | S184: -0.1645069721 | T184: 600828.5924 | U184: 0.3420949346 | V184: -0.1581310332 | W184: 376631.681 | X184: -0.371892339 | Y184: -1.109276198 | Z184: 287646.6276 | AA184: -0.04213314616 | AB184: 1.111780015 | AC184: 185469.5614 | AD184: -0.849978872 | AE184: 4.808508118 | AF184: 297703.1753 | AG184: =AF184/AF183*100-100 -> -0.1492102699 | AH184: 0.6758362177
A185: 2019-06-01 | B185: 163260.5456 | C185: -1.278226332 | D185: -0.01460193511 | E185: 191432.2841 | F185: -0.4941074876 | G185: 2.347683364 | H185: 193863.0333 | I185: -0.001298111046 | J185: 1.493362011 | K185: 220878.9452 | L185: -0.8094404065 | M185: 1.517242088 | N185: 228198.1554 | O185: -0.2316608868 | P185: 0.9595552935 | Q185: 334565.5101 | R185: 0.2689857538 | S185: -0.238539656 | T185: 600496.2946 | U185: -0.05530659653 | V185: -0.202634189 | W185: 376935.0541 | X185: 0.08054901273 | Y185: -0.9242345403 | Z185: 286654.6488 | AA185: -0.344860239 | AB185: 1.043900383 | AC185: 186081.2328 | AD185: 0.3297961164 | AE185: 3.679955821 | AF185: 297319.4975 | AG185: =AF185/AF184*100-100 -> -0.1288793305 | AH185: 0.3993322776
A186: 2019-07-01 | B186: 163900.8676 | C186: 0.3922086061 | D186: 1.311058155 | E186: 191378.2698 | F186: -0.02821586899 | G186: 1.937126689 | H186: 193444.4406 | I186: -0.2159218862 | J186: 0.7917811246 | K186: 220035.184 | L186: -0.3820016398 | M186: 1.660015501 | N186: 227462.5528 | O186: -0.3223525603 | P186: 1.244131931 | Q186: 332542.1524 | R186: -0.6047717681 | S186: -0.2983017588 | T186: 595654.7118 | U186: -0.8062635514 | V186: -0.09316866287 | W186: 376226.0323 | X186: -0.1881018623 | Y186: -0.5288417936 | Z186: 287241.1685 | AA186: 0.2046084678 | AB186: 1.022272286 | AC186: 188027.2382 | AD186: 1.045782697 | AE186: 3.402524617 | AF186: 296464.0417 | AG186: =AF186/AF185*100-100 -> -0.287722743 | AH186: 0.4818893801
A187: 2019-08-01 | B187: 164295.6277 | C187: 0.2408529894 | D187: 1.515974788 | E187: 192542.7887 | F187: 0.6084906547 | G187: 1.709234993 | H187: 194792.1799 | I187: 0.6967061856 | J187: 1.057866498 | K187: 219952.6657 | L187: -0.03750233265 | M187: 0.8995031273 | N187: 227945.4376 | O187: 0.2122919765 | P187: 0.6395546882 | Q187: 329456.1202 | R187: -0.9280123393 | S187: -1.210828732 | T187: 594381.6665 | U187: -0.2137220265 | V187: 0.02817989013 | W187: 375314.904 | X187: -0.2421757523 | Y187: -0.9821434014 | Z187: 288931.775 | AA187: 0.5885669403 | AB187: 0.9508288109 | AC187: 188451.0269 | AD187: 0.225386868 | AE187: 2.363029439 | AF187: 296366.0978 | AG187: =AF187/AF186*100-100 -> -0.03303735241 | AH187: 0.1630469381
A188: 2019-09-01 | B188: 165637.5438 | C188: 0.8167692071 | D188: 2.458826519 | E188: 194024.2345 | F188: 0.7694112129 | G188: 2.447838513 | H188: 196760.8717 | I188: 1.010662605 | J188: 2.358865092 | K188: 222452.5463 | L188: 1.136553908 | M188: 1.391865276 | N188: 229910.4525 | O188: 0.8620549472 | P188: 0.8408707677 | Q188: 329617.7003 | R188: 0.04904449462 | S188: -0.8350325085 | T188: 601182.2758 | U188: 1.144148558 | V188: 0.2675051591 | W188: 374602.2861 | X188: -0.1898720096 | Y188: -1.139879078 | Z188: 289755.8166 | AA188: 0.2852028232 | AB188: 0.6475360165 | AC188: 189783.7565 | AD188: 0.7072021249 | AE188: 2.592332852 | AF188: 297989.4857 | AG188: =AF188/AF187*100-100 -> 0.5477643887 | AH188: 0.4135755497
A189: 2019-10-01 | B189: 167100.8264 | C189: 0.8834244673 | D189: 2.295005627 | E189: 194906.1884 | F189: 0.4545586222 | G189: 2.047751119 | H189: 198339.2392 | I189: 0.8021755321 | J189: 3.372549309 | K189: 223268.6144 | L189: 0.3668504048 | M189: 0.7672313708 | N189: 231260.6954 | O189: 0.5872907924 | P189: 0.94999469 | Q189: 330107.6277 | R189: 0.1486350453 | S189: -1.290298955 | T189: 611034.162 | U189: 1.638751947 | V189: 0.5406580985 | W189: 376054.9771 | X189: 0.3877955617 | Y189: -0.9198724371 | Z189: 291435.7369 | AA189: 0.5797710514 | AB189: 0.7419108567 | AC189: 191268.3811 | AD189: 0.7822716765 | AE189: 2.487678265 | AF189: 300120.5621 | AG189: =AF189/AF188*100-100 -> 0.7151515241 | AH189: 0.4639992114
A190: 2019-11-01 | B190: 166330.5668 | C190: -0.4609549684 | D190: 2.234280283 | E190: 195189.4167 | F190: 0.1453151975 | G190: 2.135564403 | H190: 199134.5097 | I190: 0.4009647761 | J190: 3.787276058 | K190: 223472.9544 | L190: 0.09152207424 | M190: 1.182193462 | N190: 229958.0568 | O190: -0.5632771444 | P190: 0.5749440447 | Q190: 330176.2737 | R190: 0.02079505512 | S190: -0.5264333948 | T190: 616595.7351 | U190: 0.9101901994 | V190: 1.504520197 | W190: 377274.918 | X190: 0.3244049151 | Y190: -0.1450022441 | Z190: 290550.2649 | AA190: -0.3038309771 | AB190: 0.7540224012 | AC190: 193038.0706 | AD190: 0.9252388929 | AE190: 3.310844536 | AF190: 300889.7874 | AG190: 0.2563054378 | AH190: 0.9959578208
A191: 2019-12-01 | B191: 165718.7838 | C191: =B191/B190*100-100 -> -0.3678115313 | D191: =B191/B179*100-100 -> 2.071142042 | E191: 195662.0218 | F191: 0.242126397 | G191: 1.596769494 | H191: 198878.5492 | I191: -0.1285364676 | J191: 2.445067181 | K191: 222525.3795 | L191: -0.4240221922 | M191: 1.002655047 | N191: 229696.6041 | O191: -0.1136958325 | P191: 0.2756613166 | Q191: 327707.8397 | R191: -0.7476109799 | S191: -1.31766346 | T191: 618887.3805 | U191: 0.371660925 | V191: 1.896880424 | W191: 378551.3159 | X191: 0.3383203743 | Y191: 0.2093644466 | Z191: 291582.0573 | AA191: 0.355116669 | AB191: 0.5976840658 | AC191: 193671.4805 | AD191: 0.3281269493 | AE191: 3.467004947 | AF191: 301113.2047 | AG191: 0.07425221645 | AH191: 0.8847762626
A192: 2020-01-01 | B192: 165030.2881 | C192: -0.4154602458 | D192: 1.030860567 | E192: 196054.9977 | F192: 0.2008442055 | G192: 2.059386676 | H192: 199731.1239 | I192: 0.4286911022 | J192: 2.328377464 | K192: 222761.3715 | L192: 0.1060517128 | M192: 1.198422215 | N192: 229389.8183 | O192: -0.1335613072 | P192: -0.7175926332 | Q192: 325954.7044 | R192: -0.5349689783 | S192: -2.07497581 | T192: 623615.3382 | U192: 0.7639447533 | V192: 2.773833352 | W192: 379688.6254 | X192: 0.3004373597 | Y192: -0.009267657365 | Z192: 291664.6792 | AA192: 0.02833571278 | AB192: 0.9340888389 | AC192: 193263.237 | AD192: -0.2107917518 | AE192: 3.237465206 | AF192: 301688.2211 | AG192: =AF192/AF191*100-100 -> 0.1909635001 | AH192: =AF192/AF180*100-100 -> 0.8996813514
A193: 2020-02-01 | AF193: 303189.4453 | AG193: =AF193/AF192*100-100 -> 0.4976078336 | AH193: =AF193/AF181*100-100 -> 0.9774770409
A197: Peaks | B197: =MAX(B14:B193) -> 168072.6765 | E197: =MAX(E14:E193) -> 196054.9977 | H197: =MAX(H14:H193) -> 199731.1239 | K197: =MAX(K14:K193) -> 224096.787 | N197: =MAX(N14:N193) -> 231659.9238 | Q197: =MAX(Q14:Q193) -> 335657.7742 | T197: =MAX(T14:T193) -> 623615.3382 | W197: =MAX(W14:W193) -> 383669.4597 | Z197: =MAX(Z14:Z193) -> 291664.6792 | AC197: =MAX(AC14:AC193) -> 193671.4805 | AF197: =MAX(AF14:AF193) -> 303189.4453
B198: =+B197-B193 -> 168072.6765 | E198: =+E197-E193 -> 196054.9977 | H198: =+H197-H193 -> 199731.1239 | K198: =+K197-K193 -> 224096.787 | N198: =+N197-N193 -> 231659.9238 | Q198: =+Q197-Q193 -> 335657.7742 | T198: =+T197-T193 -> 623615.3382 | W198: =+W197-W193 -> 383669.4597 | Z198: =+Z197-Z193 -> 291664.6792 | AC198: =+AC197-AC193 -> 193671.4805 | AF198: =+AF197-AF193 -> 0

Sheet INTERACTIVE REGIONS CHARTS
C2: LSL ACADATA E&W HPI NATIONAL AND REGIONAL FORMATTED DATA FROM 2005 | O2: =SERIES!$K$2 -> 16th March 2020
C3: A TRUE MEASURE OF HOUSE PRICE INFLATION
C4: For data prior to 2005 please see | F4: APAT LGA | O4: =SERIES!$K$3 -> FEBRUARY 2020
O5: © Acadata Limited
O6: LSL Acadata E&W HPI clb/cms
Q8: Select Region(s)
Q11: North East
Q12: North West
Q13: East Midlands
Q14: West Midlands
Q15: Wales
Q16: Yorks & Humber
Q17: South West
Q18: East of England
Q19: South East
Q20: Greater London
D29: To change the date range, click on the start and end dates below and select from the drop down lists, then click Reset Dates.
D31: Start Date | E31: 2005-01-01 | G31: End Date | H31: 2020-01-01
E32: =MATCH(E31,dates)+ROW(dates)-1 -> 12 | H32: =MATCH(H31,dates)+ROW(dates)-1 -> 192
Q38: Select Region(s)
Q41: North East
Q42: North West
Q43: East Midlands
Q44: West Midlands
Q45: Wales
Q46: Yorks & Humber
Q47: South West
Q48: East of England
Q49: South East
Q50: Greater London
D58: To change the date range, click on the start and end dates below and select from the drop down lists, then click Reset Dates.
D60: Start Date | E60: 2005-01-01 | G60: End Date | H60: 2020-01-01
E61: =MATCH(E60,dates)+ROW(dates)-1 -> 12 | H61: =MATCH(H60,dates)+ROW(dates)-1 -> 192
Q65: Select Region(s)
Q68: North East
Q69: North West
Q70: East Midlands
Q71: West Midlands
Q72: Wales
Q73: Yorks & Humber
Q74: South West
Q75: East of England
Q76: South East
Q77: Greater London
D85: To change the date range, click on the start and end dates below and select from the drop down lists, then click Reset Dates.
D87: Start Date | E87: 2005-01-01 | G87: End Date | H87: 2020-01-01
E88: =MATCH(E87,dates)+ROW(dates)-1 -> 12 | H88: =MATCH(H87,dates)+ROW(dates)-1 -> 192
